Service Area,Service Division,Expense Type,Expense Code,Detailed Expense Type,Payment Date,Transaction Number,Amount Exc Vat,Supplier Name
Adult and Health Services,Public Health,Third Party Payments,460803,Contract Payments,01-Aug-2017,3316859-3980024234,"277,500.00",CO DURHAM & DARLINGTON NHS FOUNDATION TRUST.
Adult and Health Services,Public Health,Third Party Payments,460803,Contract Payments,01-Aug-2017,3316859-3980024667,"177,500.00",CO DURHAM & DARLINGTON NHS FOUNDATION TRUST.
Adult and Health Services,Head of Adults,Third Party Payments,472101,Purchase of Care,01-Aug-2017,3316877-3794,"1,972.50",DCS & D LTD T/A HERITAGE HEALTHCARE.
Adult and Health Services,Head of Adults,Third Party Payments,472101,Purchase of Care,01-Aug-2017,3316877-3795,"1,564.85",DCS & D LTD T/A HERITAGE HEALTHCARE.
Adult and Health Services,Head of Adults,Third Party Payments,472101,Purchase of Care,01-Aug-2017,3316877-3796,"1,564.85",DCS & D LTD T/A HERITAGE HEALTHCARE.
Adult and Health Services,Commissioning inc Supporting People,Debtors,930138,Debtor IC+ Residential Care Voids - CCG,01-Aug-2017,3316897-SL00089VOID10CD,"1,337.41",EMBRACE ALL LTD.
Adult and Health Services,Commissioning inc Supporting People,Debtors,930138,Debtor IC+ Residential Care Voids - CCG,01-Aug-2017,3316897-SL00089VOID11CD,"1,126.24",EMBRACE ALL LTD.
Adult and Health Services,Commissioning inc Supporting People,Debtors,930138,Debtor IC+ Residential Care Voids - CCG,01-Aug-2017,3316897-SL00089VOID9CD,"1,830.14",EMBRACE ALL LTD.
Adult and Health Services,Head of Adults,Third Party Payments,472101,Purchase of Care,01-Aug-2017,3316997-29507,536.00,NEURO PARTNERS LTD.
Adult and Health Services,Head of Adults,Third Party Payments,470101,Purchase of Care,01-Aug-2017,3317023-32490,747.00,PERCY HEDLEY FOUNDATION.
Adult and Health Services,Head of Adults,Third Party Payments,470101,Purchase of Care,01-Aug-2017,3317023-32491,736.00,PERCY HEDLEY FOUNDATION.
Adult and Health Services,Commissioning inc Supporting People,Debtors,930138,Debtor IC+ Residential Care Voids - CCG,01-Aug-2017,3317091-BARVOID04062017,"1,757.20",TAMARIS HEALTHCARE LTD.
Adult and Health Services,Commissioning inc Supporting People,Debtors,930138,Debtor IC+ Residential Care Voids - CCG,01-Aug-2017,3317091-BARVOID07052017,"1,323.91",TAMARIS HEALTHCARE LTD.
Adult and Health Services,Commissioning inc Supporting People,Third Party Payments,479102,Purchase of Care,01-Aug-2017,3317101-33788,"5,346.25",THE APPROPRIATE ADULT SERVICE LTD.
Children and Young Peoples Services,Head of Education,Supplies and Services,338099,Services,01-Aug-2017,3316831-INV17033,"1,950.00",BLAST PROGRAMME LTD.
Children and Young Peoples Services,Head of Looked After Provision Permanence and Care Leavers,Third Party Payments,486044,Service Level Agreements,01-Aug-2017,3316859-3980024465,"3,109.00",CO DURHAM & DARLINGTON NHS FOUNDATION TRUST.
Children and Young Peoples Services,Head of Education,Supplies and Services,324117,Provisions,01-Aug-2017,3316872-SI2000000310,"1,000.00",CYRENIANS FARESHARE NORTH EAST CIC T/A CHANGING LIVES.
Children and Young Peoples Services,Head of Education,Vehicles Equipment Furniture and Fittings,912701,Computer equipment,01-Aug-2017,3317005-NEI-EXP-27-2017-029,"290,846.00",NORTH DURHAM ACADEMY.
Children and Young Peoples Services,Head of Early Help Assessment and Safeguarding,Third Party Payments,425023,Rendered by Voluntary Organisations,01-Aug-2017,3317023-32489,"4,318.40",PERCY HEDLEY FOUNDATION.
Children and Young Peoples Services,Head of Early Help Assessment and Safeguarding,Third Party Payments,425020,Rendered by Voluntary Organisations,01-Aug-2017,3317023-32495,"1,311.75",PERCY HEDLEY FOUNDATION.
Children and Young Peoples Services,Head of Early Help Assessment and Safeguarding,Third Party Payments,425023,Rendered by Voluntary Organisations,01-Aug-2017,3317031-9012991,"73,917.33",PONTVILLE SCHOOL LTD.
Children and Young Peoples Services,Head of Early Help Assessment and Safeguarding,Third Party Payments,440016,Other Third Party Payments,01-Aug-2017,3317190-1210694,763.36,REDACTED - PAYMENT TO INDIVIDUAL
Children and Young Peoples Services,Head of Looked After Provision Permanence and Care Leavers,Third Party Payments,440027,Other Third Party Payments,01-Aug-2017,3317277-1209102,706.23,REDACTED - PAYMENT TO INDIVIDUAL
Children and Young Peoples Services,Head of Early Help Assessment and Safeguarding,Third Party Payments,440036,Other Third Party Payments,01-Aug-2017,3317637-1210285,623.05,REDACTED - PAYMENT TO INDIVIDUAL
Children and Young Peoples Services,Head of Looked After Provision Permanence and Care Leavers,Third Party Payments,440036,Other Third Party Payments,01-Aug-2017,3317663-1210458,659.70,REDACTED - PAYMENT TO INDIVIDUAL
Children and Young Peoples Services,Head of Looked After Provision Permanence and Care Leavers,Third Party Payments,440002,Other Third Party Payments,01-Aug-2017,3317803-1209755,"1,067.95",REDACTED - PAYMENT TO INDIVIDUAL
Children and Young Peoples Services,Head of Looked After Provision Permanence and Care Leavers,Third Party Payments,440001,Other Third Party Payments,01-Aug-2017,3317806-1210506,644.80,REDACTED - PAYMENT TO INDIVIDUAL
Resources,Legal & Democratic Services,Creditors,952238,Chairmans Charity,01-Aug-2017,3316816-RES-07-2017-138,640.83,ARCHIE CARE LTD T/A HOME INSTEAD SENIOR CARE.
Resources,Legal & Democratic Services,Creditors,952238,Chairmans Charity,01-Aug-2017,3316826-RES-07-2017-140,640.83,BEYOND LIMITS.
Resources,Legal & Democratic Services,Supplies and Services,384151,Miscellaneous Expenses,01-Aug-2017,3316859-3980024483,"17,771.64",CO DURHAM & DARLINGTON NHS FOUNDATION TRUST.
Resources,Legal & Democratic Services,Supplies and Services,384151,Miscellaneous Expenses,01-Aug-2017,3316859-3980024484,"14,064.00",CO DURHAM & DARLINGTON NHS FOUNDATION TRUST.
Resources,Legal & Democratic Services,Creditors,952238,Chairmans Charity,01-Aug-2017,3316885-RES-07-2017-139,640.83,DURHAM ALLIANCE FOR COMMUNITY CARE.
Resources,Legal & Democratic Services,Creditors,952238,Chairmans Charity,01-Aug-2017,3317075-RES-07-2017-136,640.83,SOS TEESDALE.
Resources,Legal & Democratic Services,Creditors,952238,Chairmans Charity,01-Aug-2017,3317113-RES-07-2017-135,640.83,TRIMDON VILLAGE HALL.
Resources,Financial Services,Supplies and Services,308011,Furniture,01-Aug-2017,3317114-16197R,"3,636.00",TROJAN CONSULTANTS LTD.
Resources,Legal & Democratic Services,Creditors,952238,Chairmans Charity,01-Aug-2017,3317117-RES-07-2017-137,640.83,UPPER TEESDALE AGRICULTURAL SUPPORT SERVICES LTD (UTASS).
Regeneration and Local Services,Technical Services,Supplies and Services,304221,Equipment and Materials,01-Aug-2017,3316806-25105635,"1,235.19",AGGREGATE INDUSTRIES UK LTD.
Regeneration and Local Services,Economic Development and Housing,Supplies and Services,384437,Miscellaneous Expenses,01-Aug-2017,3316809-2017-213-141-004546,"7,302.22",AMERICAN EXPRESS SERVICES EUROPE LTD.
Regeneration and Local Services,Technical Services,Supplies and Services,304358,Equipment and Materials,01-Aug-2017,3316821-MG05495,687.50,BAILEY CONCRETE PUMPING LTD.
Regeneration and Local Services,Technical Services,Supplies and Services,304358,Equipment and Materials,01-Aug-2017,3316821-MG05510,847.50,BAILEY CONCRETE PUMPING LTD.
Regeneration and Local Services,Direct Services,Transport,210057,Repair and Maintenance of Vehicles,01-Aug-2017,3316823-35138734,667.88,BELL TRUCK SALES LTD.
Regeneration and Local Services,Direct Services,Transport,210057,Repair and Maintenance of Vehicles,01-Aug-2017,3316823-35138899,505.06,BELL TRUCK SALES LTD.
Regeneration and Local Services,Direct Services,Premises,120037,Energy Costs,01-Aug-2017,3316829-0000032991,615.04,BILLINGTON BIOENERGY LTD.
Regeneration and Local Services,Direct Services,Stock,926004,Stock,01-Aug-2017,3316843-217757,"1,821.62",CARRS BILLINGTON AGRICULTURE.
Regeneration and Local Services,Direct Services,Stock,926004,Stock,01-Aug-2017,3316843-218141,505.16,CARRS BILLINGTON AGRICULTURE.
Regeneration and Local Services,Direct Services,Stock,926004,Stock,01-Aug-2017,3316843-218358,665.96,CARRS BILLINGTON AGRICULTURE.
Regeneration and Local Services,Direct Services,Stock,926004,Stock,01-Aug-2017,3316843-218361,531.38,CARRS BILLINGTON AGRICULTURE.
Regeneration and Local Services,Direct Services,Stock,926004,Stock,01-Aug-2017,3316844-218363,654.80,CARRS BILLINGTON AGRICULTURE.
Regeneration and Local Services,Direct Services,Transport,210057,Repair and Maintenance of Vehicles,01-Aug-2017,3316852-661164,547.57,CHATFIELDS.
Regeneration and Local Services,Direct Services,Transport,210057,Repair and Maintenance of Vehicles,01-Aug-2017,3316852-661182,643.43,CHATFIELDS.
Regeneration and Local Services,Transport and Contracted Services,Third Party Payments,430100,Rendered by Private Contractors,01-Aug-2017,3316854-7955,"2,739.60",CHESHIRE EAST UNITARY AUTHORITY.
Regeneration and Local Services,Direct Services,Third Party Payments,460305,Contract Payments,01-Aug-2017,3316860-3553,"1,260.00",CO-WHEELS CAR CLUB CIC.
Regeneration and Local Services,Direct Services,Third Party Payments,460305,Contract Payments,01-Aug-2017,3316860-3654,"1,260.00",CO-WHEELS CAR CLUB CIC.
Regeneration and Local Services,Direct Services,Transport,210057,Repair and Maintenance of Vehicles,01-Aug-2017,3316880-306583,"1,004.06",DENNIS EAGLE LTD.
Regeneration and Local Services,Direct Services,Third Party Payments,430101,Rendered by Private Contractors,01-Aug-2017,3316882-IV899539,"1,410.70",DIRECT TYRE MANAGEMENT (DTM).
Regeneration and Local Services,Direct Services,Employees,040149,Recruitment Instruction and Training,01-Aug-2017,3316890-0000040630,"1,200.00",EAST DURHAM COLLEGE.
Regeneration and Local Services,Direct Services,Third Party Payments,430100,Rendered by Private Contractors,01-Aug-2017,3316912-129018,"2,525.00",FORDINGBRIDGE PLC.
Regeneration and Local Services,Direct Services,Stock,926004,Stock,01-Aug-2017,3316918-IN190311,703.49,GB LUBRICANTS LTD.
Regeneration and Local Services,Direct Services,Transport,210057,Repair and Maintenance of Vehicles,01-Aug-2017,3316925-138065,"1,298.66",GREENLAY (GRASS MACHINERY) LTD.
Regeneration and Local Services,Direct Services,Debtors,930046,Debtor-leasing,01-Aug-2017,3316925-138964,"34,945.00",GREENLAY (GRASS MACHINERY) LTD.
Regeneration and Local Services,Direct Services,Transport,210057,Repair and Maintenance of Vehicles,01-Aug-2017,3316925-139152,668.55,GREENLAY (GRASS MACHINERY) LTD.
Regeneration and Local Services,Direct Services,Third Party Payments,430100,Rendered by Private Contractors,01-Aug-2017,3316938-15018,"14,032.20",JC MAINTENANCE SERVICES LTD.
Regeneration and Local Services,Technical Services,Supplies and Services,304358,Equipment and Materials,01-Aug-2017,3316943-26871,"1,696.50",JOHN R BUTTERFIELD LTD.
Regeneration and Local Services,Technical Services,Supplies and Services,304358,Equipment and Materials,01-Aug-2017,3316943-26882,978.90,JOHN R BUTTERFIELD LTD.
Regeneration and Local Services,Technical Services,Supplies and Services,304358,Equipment and Materials,01-Aug-2017,3316943-26884,700.20,JOHN R BUTTERFIELD LTD.
Regeneration and Local Services,Technical Services,Supplies and Services,304358,Equipment and Materials,01-Aug-2017,3316943-26900,"1,963.50",JOHN R BUTTERFIELD LTD.
Regeneration and Local Services,Technical Services,Supplies and Services,304358,Equipment and Materials,01-Aug-2017,3316943-26902,640.00,JOHN R BUTTERFIELD LTD.
Regeneration and Local Services,Technical Services,Supplies and Services,304358,Equipment and Materials,01-Aug-2017,3316943-26903,560.00,JOHN R BUTTERFIELD LTD.
Regeneration and Local Services,Technical Services,Supplies and Services,304358,Equipment and Materials,01-Aug-2017,3316943-26912,978.90,JOHN R BUTTERFIELD LTD.
Regeneration and Local Services,Technical Services,Supplies and Services,304358,Equipment and Materials,01-Aug-2017,3316943-26917,688.20,JOHN R BUTTERFIELD LTD.
Regeneration and Local Services,Technical Services,Supplies and Services,304358,Equipment and Materials,01-Aug-2017,3316943-26936,"1,696.50",JOHN R BUTTERFIELD LTD.
Regeneration and Local Services,Technical Services,Supplies and Services,304358,Equipment and Materials,01-Aug-2017,3316943-26938,925.00,JOHN R BUTTERFIELD LTD.
Regeneration and Local Services,Technical Services,Supplies and Services,304358,Equipment and Materials,01-Aug-2017,3316943-26940,589.00,JOHN R BUTTERFIELD LTD.
Regeneration and Local Services,Technical Services,Supplies and Services,304358,Equipment and Materials,01-Aug-2017,3316943-26942,806.00,JOHN R BUTTERFIELD LTD.
Regeneration and Local Services,Technical Services,Supplies and Services,304358,Equipment and Materials,01-Aug-2017,3316943-26943,"1,111.50",JOHN R BUTTERFIELD LTD.
Regeneration and Local Services,Technical Services,Supplies and Services,304358,Equipment and Materials,01-Aug-2017,3316943-26944,"1,020.20",JOHN R BUTTERFIELD LTD.
Regeneration and Local Services,Technical Services,Supplies and Services,304358,Equipment and Materials,01-Aug-2017,3316943-26945,737.40,JOHN R BUTTERFIELD LTD.
Regeneration and Local Services,Technical Services,Supplies and Services,304358,Equipment and Materials,01-Aug-2017,3316943-26947,688.20,JOHN R BUTTERFIELD LTD.
Regeneration and Local Services,Technical Services,Supplies and Services,304358,Equipment and Materials,01-Aug-2017,3316943-26965,"1,696.50",JOHN R BUTTERFIELD LTD.
Regeneration and Local Services,Technical Services,Supplies and Services,304358,Equipment and Materials,01-Aug-2017,3316943-26967,741.00,JOHN R BUTTERFIELD LTD.
Regeneration and Local Services,Technical Services,Supplies and Services,304358,Equipment and Materials,01-Aug-2017,3316943-26969,546.00,JOHN R BUTTERFIELD LTD.
Regeneration and Local Services,Technical Services,Supplies and Services,304358,Equipment and Materials,01-Aug-2017,3316943-26971,570.00,JOHN R BUTTERFIELD LTD.
Regeneration and Local Services,Technical Services,Supplies and Services,304358,Equipment and Materials,01-Aug-2017,3316943-26974,587.00,JOHN R BUTTERFIELD LTD.
Regeneration and Local Services,Technical Services,Supplies and Services,304358,Equipment and Materials,01-Aug-2017,3316943-26993,"1,696.50",JOHN R BUTTERFIELD LTD.
Regeneration and Local Services,Technical Services,Supplies and Services,304358,Equipment and Materials,01-Aug-2017,3316943-26994,575.00,JOHN R BUTTERFIELD LTD.
Regeneration and Local Services,Technical Services,Supplies and Services,304358,Equipment and Materials,01-Aug-2017,3316943-26997,"1,392.00",JOHN R BUTTERFIELD LTD.
Regeneration and Local Services,Direct Services,Supplies and Services,304221,Equipment and Materials,01-Aug-2017,3316949-GOI232/D,"2,795.44",JT DOVE LTD.
Regeneration and Local Services,Technical Services,Supplies and Services,304358,Equipment and Materials,01-Aug-2017,3316950-1684,598.00,KEVIN SNOWDON GROUNDWORKS LTD.
Regeneration and Local Services,Technical Services,Supplies and Services,304358,Equipment and Materials,01-Aug-2017,3316950-1685,850.00,KEVIN SNOWDON GROUNDWORKS LTD.
Regeneration and Local Services,Technical Services,Supplies and Services,304358,Equipment and Materials,01-Aug-2017,3316950-1688,"1,219.00",KEVIN SNOWDON GROUNDWORKS LTD.
Regeneration and Local Services,Technical Services,Supplies and Services,304358,Equipment and Materials,01-Aug-2017,3316950-1689,"1,016.50",KEVIN SNOWDON GROUNDWORKS LTD.
Regeneration and Local Services,Technical Services,Supplies and Services,304358,Equipment and Materials,01-Aug-2017,3316950-1714,814.00,KEVIN SNOWDON GROUNDWORKS LTD.
Regeneration and Local Services,Technical Services,Supplies and Services,304358,Equipment and Materials,01-Aug-2017,3316950-1715,741.00,KEVIN SNOWDON GROUNDWORKS LTD.
Regeneration and Local Services,Technical Services,Supplies and Services,304358,Equipment and Materials,01-Aug-2017,3316950-1717,"1,000.00",KEVIN SNOWDON GROUNDWORKS LTD.
Regeneration and Local Services,Technical Services,Supplies and Services,304358,Equipment and Materials,01-Aug-2017,3316950-1720,589.00,KEVIN SNOWDON GROUNDWORKS LTD.
Regeneration and Local Services,Direct Services,Transport,230005,Contract Hire,01-Aug-2017,3316956-4428197,"2,600.00",LEEDS COMMERCIAL LTD.
Regeneration and Local Services,Direct Services,Third Party Payments,430100,Rendered by Private Contractors,01-Aug-2017,3316963-138743,933.13,LONDONDERRY GARAGE (S.E) LTD.
Regeneration and Local Services,Technical Services,Supplies and Services,304358,Equipment and Materials,01-Aug-2017,3316968-63A,"5,096.00",REDACTED - PAYMENT TO INDIVIDUAL
Regeneration and Local Services,Direct Services,Third Party Payments,430100,Rendered by Private Contractors,01-Aug-2017,3316980-7970018037,798.93,MITCHELL POWERSYSTEMS.
Regeneration and Local Services,Direct Services,Third Party Payments,430100,Rendered by Private Contractors,01-Aug-2017,3316980-7970018292,"1,544.83",MITCHELL POWERSYSTEMS.
Regeneration and Local Services,Culture & Sport,Supplies and Services,338047,Services,01-Aug-2017,3316994-03/17,700.00,NEIL ARMSTRONG..
Regeneration and Local Services,Technical Services,Supplies and Services,384194,Miscellaneous Expenses,01-Aug-2017,3317002-85852,"1,606.00",NIRAMAX GROUP LTD.
Regeneration and Local Services,Technical Services,Third Party Payments,430100,Rendered by Private Contractors,01-Aug-2017,3317013-SIN7050222,"5,425.00",OWEN PUGH GDC LTD.*
Regeneration and Local Services,Direct Services,Transport,210057,Repair and Maintenance of Vehicles,01-Aug-2017,3317024-93987,820.79,PETERLEE GLASS CO LTD.
Regeneration and Local Services,Direct Services,Third Party Payments,430100,Rendered by Private Contractors,01-Aug-2017,3317046-773498,"1,141.61",RICKERBY LTD.
Regeneration and Local Services,Direct Services,Transport,210057,Repair and Maintenance of Vehicles,01-Aug-2017,3317056-467865,671.84,S JENNINGS LTD.
Regeneration and Local Services,Direct Services,Transport,210057,Repair and Maintenance of Vehicles,01-Aug-2017,3317057-308961,619.21,S JENNINGS LTD.
Regeneration and Local Services,Direct Services,Third Party Payments,430100,Rendered by Private Contractors,01-Aug-2017,3317073-011/17/900,985.00,SOCIETE GENERALE EQUIPMENT FINANCE LTD.
Regeneration and Local Services,Direct Services,Third Party Payments,430100,Rendered by Private Contractors,01-Aug-2017,3317073-105/17/8738,"11,660.45",SOCIETE GENERALE EQUIPMENT FINANCE LTD.
Regeneration and Local Services,Direct Services,Third Party Payments,430100,Rendered by Private Contractors,01-Aug-2017,3317079-5835,"7,000.00",ST ASTIER LTD.
Regeneration and Local Services,Culture & Sport,Income,715460,Sales,01-Aug-2017,3317083-NEI-EXP-07-2017-030,"1,900.00",STEVEN LLOYD PROMOTIONS LTD.
Regeneration and Local Services,Direct Services,Third Party Payments,430112,Rendered by Private Contractors,01-Aug-2017,3317084-30755483,"160,708.75",SUEZ RECYCLING & RECOVERY UK LTD.
Regeneration and Local Services,Direct Services,Third Party Payments,430111,Rendered by Private Contractors,01-Aug-2017,3317084-30755484,"930,674.62",SUEZ RECYCLING & RECOVERY UK LTD.
Regeneration and Local Services,Direct Services,Third Party Payments,430100,Rendered by Private Contractors,01-Aug-2017,3317085-1301776,"1,680.00",SUPATINT LTD T/A SUPATINT WINDOW FILMS & BLINDS.
Regeneration and Local Services,Direct Services,Supplies and Services,304221,Equipment and Materials,01-Aug-2017,3317089-2368400,"5,999.24",T CROSSLING & CO LTD.
Regeneration and Local Services,Direct Services,Third Party Payments,430103,Rendered by Private Contractors,01-Aug-2017,3317099-NEI-EXP-07-2017-031,"19,046.45",TEESDALE CONSERVATION VOLUNTEERS.
Regeneration and Local Services,Direct Services,Transport,230005,Contract Hire,01-Aug-2017,3317111-16671,675.00,TRASH UK LTD.
Regeneration and Local Services,Direct Services,Transport,230005,Contract Hire,01-Aug-2017,3317111-16767,"1,500.00",TRASH UK LTD.
Regeneration and Local Services,Technical Services,Supplies and Services,304358,Equipment and Materials,01-Aug-2017,3317134-6459,"1,202.50",YOULL CONSTRUCTION LTD.
Regeneration and Local Services,Technical Services,Supplies and Services,304358,Equipment and Materials,01-Aug-2017,3317134-6460,"2,085.00",YOULL CONSTRUCTION LTD.
Regeneration and Local Services,Technical Services,Supplies and Services,304358,Equipment and Materials,01-Aug-2017,3317134-6462,509.38,YOULL CONSTRUCTION LTD.
Regeneration and Local Services,Technical Services,Supplies and Services,304358,Equipment and Materials,01-Aug-2017,3317134-6469,509.38,YOULL CONSTRUCTION LTD.
Regeneration and Local Services,Direct Services,Transport,210057,Repair and Maintenance of Vehicles,01-Aug-2017,3317135-SI89433,620.00,ZOELLER WASTE SYSTEMS LTD.
Transformation and Partnerships,Partnerships & Community Engagement Div.,Supplies and Services,384086,Miscellaneous Expenses,01-Aug-2017,3317062-BELE01-17,653.00,SEAHAM COAST FC.
Adult and Health Services,Head of Adults,Transport,230005,Contract Hire,02-Aug-2017,3317896-DCC6JULY17,"2,141.75",ATLAS TAXIS BISHOP AUCKLAND.
Adult and Health Services,Commissioning inc Supporting People,Third Party Payments,442002,Supporting People,02-Aug-2017,3317909-1966587,"16,448.04",BID SERVICES WITH DEAF PEOPLE.
Adult and Health Services,Commissioning inc Supporting People,Third Party Payments,479102,Purchase of Care,02-Aug-2017,3317936-17/18054,"6,250.00",CORNFORTH PARTNERSHIP.
Adult and Health Services,Commissioning inc Supporting People,Third Party Payments,442002,Supporting People,02-Aug-2017,3317943-1966571,"19,868.48",CREATIVE SUPPORT LTD.
Adult and Health Services,Commissioning inc Supporting People,Third Party Payments,442002,Supporting People,02-Aug-2017,3317957-1966570,"5,668.48",DISC LTD.
Adult and Health Services,Commissioning inc Supporting People,Third Party Payments,442002,Supporting People,02-Aug-2017,3317957-1966623,"27,885.68",DISC LTD.
Adult and Health Services,Commissioning inc Supporting People,Third Party Payments,441001,Supporting People,02-Aug-2017,3317961-1966626,"20,819.76",DURHAM ACTION ON SINGLE HOUSING.
Adult and Health Services,Commissioning inc Supporting People,Third Party Payments,443001,Supporting People,02-Aug-2017,3317961-1966629,"1,475.92",DURHAM ACTION ON SINGLE HOUSING.
Adult and Health Services,Commissioning inc Supporting People,Third Party Payments,443001,Supporting People,02-Aug-2017,3317961-1966631,"4,480.47",DURHAM ACTION ON SINGLE HOUSING.
Adult and Health Services,Commissioning inc Supporting People,Third Party Payments,441001,Supporting People,02-Aug-2017,3317968-1966610,"5,483.40",EAST DURHAM COMMUNITY INITIATIVES LTD.
Adult and Health Services,Commissioning inc Supporting People,Third Party Payments,442002,Supporting People,02-Aug-2017,3317990-1966625,"19,776.44",FOUNDATION.
Adult and Health Services,Commissioning inc Supporting People,Third Party Payments,442002,Supporting People,02-Aug-2017,3317991-1966608,"32,194.64",FOUR HOUSING GROUP & CARE & REPAIR HANDYPERSON SERVICE.*
Adult and Health Services,Commissioning inc Supporting People,Third Party Payments,442002,Supporting People,02-Aug-2017,3318002-1966635,"3,297.48",HANOVER HOUSING ASSOCIATION.
Adult and Health Services,Commissioning inc Supporting People,Third Party Payments,441001,Supporting People,02-Aug-2017,3318003-1966572,"18,082.80",HARBOUR SUPPORT SERVICES.
Adult and Health Services,Commissioning inc Supporting People,Third Party Payments,442002,Supporting People,02-Aug-2017,3318059-1966573,"5,469.72",MENTAL HEALTH MATTERS.
Adult and Health Services,Commissioning inc Supporting People,Third Party Payments,442002,Supporting People,02-Aug-2017,3318072-1966606,"2,620.48",MOVING ON.
Adult and Health Services,Head of Adults,Third Party Payments,478151,Purchase of Care,02-Aug-2017,3318123-1300005448,849.12,PROGRESS CARE HOUSING ASSOCIATION LTD.
Adult and Health Services,Commissioning inc Supporting People,Third Party Payments,442002,Supporting People,02-Aug-2017,3318130-1966575,"7,356.72",RICHMOND FELLOWSHIP.
Adult and Health Services,Commissioning inc Supporting People,Third Party Payments,444002,Supporting People,02-Aug-2017,3318130-1966576,"3,328.56",RICHMOND FELLOWSHIP.
Adult and Health Services,Commissioning inc Supporting People,Third Party Payments,444002,Supporting People,02-Aug-2017,3318130-1966585,739.68,RICHMOND FELLOWSHIP.
Adult and Health Services,Commissioning inc Supporting People,Third Party Payments,441001,Supporting People,02-Aug-2017,3318130-1966609,"9,423.88",RICHMOND FELLOWSHIP.
Adult and Health Services,Commissioning inc Supporting People,Third Party Payments,442002,Supporting People,02-Aug-2017,3318148-1966607,"6,331.08",SHAID.
Adult and Health Services,Commissioning inc Supporting People,Third Party Payments,442002,Supporting People,02-Aug-2017,3318167-1966569,"113,942.68",STONHAM HOUSING ASSOCIATION LTD.
Adult and Health Services,Commissioning inc Supporting People,Third Party Payments,443001,Supporting People,02-Aug-2017,3318167-1966595,578.88,STONHAM HOUSING ASSOCIATION LTD.
Adult and Health Services,Commissioning inc Supporting People,Third Party Payments,441001,Supporting People,02-Aug-2017,3318167-1966640,"54,465.72",STONHAM HOUSING ASSOCIATION LTD.
Adult and Health Services,Commissioning inc Supporting People,Third Party Payments,443001,Supporting People,02-Aug-2017,3318167-1966642,"11,506.84",STONHAM HOUSING ASSOCIATION LTD.
Adult and Health Services,Commissioning inc Supporting People,Third Party Payments,442002,Supporting People,02-Aug-2017,3318167-1966645,"27,962.72",STONHAM HOUSING ASSOCIATION LTD.
Adult and Health Services,Commissioning inc Supporting People,Third Party Payments,441001,Supporting People,02-Aug-2017,3318167-1966646,"15,342.48",STONHAM HOUSING ASSOCIATION LTD.
Adult and Health Services,Commissioning inc Supporting People,Transport,240045,Car Allowances,02-Aug-2017,3318170-7334,"10,103.85",SUPPORTIVE SRC LTD.
Adult and Health Services,Commissioning inc Supporting People,Third Party Payments,441001,Supporting People,02-Aug-2017,3318184-1966588,"19,231.20",THE CYRENIANS LTD T/A CHANGING LIVES.
Adult and Health Services,Commissioning inc Supporting People,Third Party Payments,442002,Supporting People,02-Aug-2017,3318191-1966613,"5,088.84",THIRTEEN CARE & SUPPORT.
Adult and Health Services,Commissioning inc Supporting People,Third Party Payments,441001,Supporting People,02-Aug-2017,3318191-1966614,"7,776.68",THIRTEEN CARE & SUPPORT.
Adult and Health Services,Commissioning inc Supporting People,Third Party Payments,441001,Supporting People,02-Aug-2017,3318191-1966615,"23,518.04",THIRTEEN CARE & SUPPORT.
Adult and Health Services,Commissioning inc Supporting People,Third Party Payments,441001,Supporting People,02-Aug-2017,3318213-1966611,"2,367.20",WADDINGTON STREET CENTRE LTD.
Adult and Health Services,Commissioning inc Supporting People,Third Party Payments,441001,Supporting People,02-Aug-2017,3318216-1966574,"7,157.00",WEAR VALLEY WOMENS AID.
Children and Young Peoples Services,Head of Education,Transport,230012,Contract Hire,02-Aug-2017,3317885-32MO,528.00,AJ ADAMSON (TONY`S TAXIS).
Children and Young Peoples Services,Head of Education,Transport,230008,Contract Hire,02-Aug-2017,3317887-153911,"1,042.50",ALAN SOUTHERN T/A ALANS TAXIS PELTON FELL.
Children and Young Peoples Services,Head of Education,Transport,230008,Contract Hire,02-Aug-2017,3317887-388911,"1,237.50",ALAN SOUTHERN T/A ALANS TAXIS PELTON FELL.
Children and Young Peoples Services,Head of Education,Transport,230007,Contract Hire,02-Aug-2017,3317911-44-31/7/17,840.00,BL TAXIS.
Children and Young Peoples Services,Head of Education,Transfer Payments,510026,School Children,02-Aug-2017,3317917-10/7/17,877.50,BUSY BODIES CHILDCARE.
Children and Young Peoples Services,Head of Education,Transport,230008,Contract Hire,02-Aug-2017,307723-M047/44,"1,500.00",REDACTED - PAYMENT TO INDIVIDUAL
Children and Young Peoples Services,Head of Education,Transport,230007,Contract Hire,02-Aug-2017,307727-39,840.00,REDACTED - PAYMENT TO INDIVIDUAL
Children and Young Peoples Services,Central Charges (CYPS),Cap Exp on Grants & Other Financial Assistance (REFCUS),918401,Capital grants,02-Aug-2017,3317958-CAS-07-2017-165,"10,000.00",DO RE MI DAY NURSERY.
Children and Young Peoples Services,Head of Looked After Provision Permanence and Care Leavers,Supplies and Services,364352,Grants to Voluntary Organisations,02-Aug-2017,3317987-320,"22,225.60",FOREVER CARE.
Children and Young Peoples Services,Head of Education,Transport,230007,Contract Hire,02-Aug-2017,3317995-19372,"3,820.00",GARNETTS LTD (COACHES).
Children and Young Peoples Services,Head of Education,Transport,230007,Contract Hire,02-Aug-2017,3317995-19373,"3,680.00",GARNETTS LTD (COACHES).
Children and Young Peoples Services,Head of Education,Transport,230007,Contract Hire,02-Aug-2017,3317995-19377,"3,396.20",GARNETTS LTD (COACHES).
Children and Young Peoples Services,Head of Education,Supplies and Services,338027,Services,02-Aug-2017,3318005-HS10/073,"6,000.00",HEARTSTONE.
Children and Young Peoples Services,Head of Education,Transport,230012,Contract Hire,02-Aug-2017,3318015-44,975.00,IAN SHEPLEY T/A SHEPPA`S TAXIS.
Children and Young Peoples Services,Head of Education,Transport,230008,Contract Hire,02-Aug-2017,3318020-1961,600.00,J YOUNG T/A VIP TAXIS.
Children and Young Peoples Services,Head of Education,Transport,230007,Contract Hire,02-Aug-2017,3318020-1965,660.00,J YOUNG T/A VIP TAXIS.
Children and Young Peoples Services,Head of Education,Transport,230008,Contract Hire,02-Aug-2017,3318020-1967,795.00,J YOUNG T/A VIP TAXIS.
Children and Young Peoples Services,Head of Education,Transport,230008,Contract Hire,02-Aug-2017,3318020-1968,885.00,J YOUNG T/A VIP TAXIS.
Children and Young Peoples Services,Head of Education,Transport,230012,Contract Hire,02-Aug-2017,3318020-1971,"1,170.00",J YOUNG T/A VIP TAXIS.
Children and Young Peoples Services,Head of Education,Supplies and Services,338094,Services,02-Aug-2017,3318041-2015288,"1,512.00",LEISUREWORKS.
Children and Young Peoples Services,Head of Education,Transport,230007,Contract Hire,02-Aug-2017,3318063-0404,665.00,MICHAEL TYRES T/A AM PRIVATE HIRE.
Children and Young Peoples Services,Head of Education,Transport,230008,Contract Hire,02-Aug-2017,3318096-M0007499342,"1,444.00",NORTH TYNESIDE COUNCIL.
Children and Young Peoples Services,Head of Looked After Provision Permanence and Care Leavers,Third Party Payments,425021,Rendered by Voluntary Organisations,02-Aug-2017,3318098-140059,"11,012.26",NORTHUMBERLAND COUNTY COUNCIL.
Children and Young Peoples Services,Head of Looked After Provision Permanence and Care Leavers,Third Party Payments,425021,Rendered by Voluntary Organisations,02-Aug-2017,3318098-141680,"24,384.29",NORTHUMBERLAND COUNTY COUNCIL.
Children and Young Peoples Services,Head of Looked After Provision Permanence and Care Leavers,Third Party Payments,425021,Rendered by Voluntary Organisations,02-Aug-2017,3318098-141699,"8,400.00",NORTHUMBERLAND COUNTY COUNCIL.
Children and Young Peoples Services,Head of Looked After Provision Permanence and Care Leavers,Third Party Payments,425021,Rendered by Voluntary Organisations,02-Aug-2017,3318098-143844,960.00,NORTHUMBERLAND COUNTY COUNCIL.
Children and Young Peoples Services,Head of Looked After Provision Permanence and Care Leavers,Third Party Payments,425021,Rendered by Voluntary Organisations,02-Aug-2017,3318098-144262,"25,885.00",NORTHUMBERLAND COUNTY COUNCIL.
Children and Young Peoples Services,Head of Education,Transport,230007,Contract Hire,02-Aug-2017,3318100-7098-2,520.00,OVERLANDER LTD.
Children and Young Peoples Services,Head of Education,Transport,230007,Contract Hire,02-Aug-2017,3318107-1592,"1,800.00",PAUL WATSON TRAVEL.
Children and Young Peoples Services,Head of Education,Transport,230007,Contract Hire,02-Aug-2017,3318107-1593,"1,650.00",PAUL WATSON TRAVEL.
Children and Young Peoples Services,Head of Education,Transport,230007,Contract Hire,02-Aug-2017,3318107-1594,"1,200.00",PAUL WATSON TRAVEL.
Children and Young Peoples Services,Head of Education,Transport,230007,Contract Hire,02-Aug-2017,3318107-1595,900.00,PAUL WATSON TRAVEL.
Children and Young Peoples Services,Head of Education,Transport,230008,Contract Hire,02-Aug-2017,3318112-0564,951.00,PETER`S PRIVATE HIRE/PETER BEST.
Children and Young Peoples Services,Head of Looked After Provision Permanence and Care Leavers,Third Party Payments,440002,Other Third Party Payments,02-Aug-2017,307735-1210740,603.57,REDACTED - PAYMENT TO INDIVIDUAL
Children and Young Peoples Services,Head of Education,Transport,230008,Contract Hire,02-Aug-2017,3318153-464A,900.00,SJ MACKENZIE T/A SCOTTS TAXIS.
Children and Young Peoples Services,Head of Education,Transport,230007,Contract Hire,02-Aug-2017,3318160-26284,525.00,STANLEY TRAVEL (NORTH EAST) LTD.
Children and Young Peoples Services,Head of Education,Transport,230009,Contract Hire,02-Aug-2017,3318160-26285,"1,455.00",STANLEY TRAVEL (NORTH EAST) LTD.
Children and Young Peoples Services,Head of Education,Transport,230008,Contract Hire,02-Aug-2017,3318160-26289,"1,285.50",STANLEY TRAVEL (NORTH EAST) LTD.
Children and Young Peoples Services,Head of Education,Transport,230008,Contract Hire,02-Aug-2017,3318160-26290,727.50,STANLEY TRAVEL (NORTH EAST) LTD.
Children and Young Peoples Services,Head of Education,Transport,230008,Contract Hire,02-Aug-2017,3318160-26291,672.00,STANLEY TRAVEL (NORTH EAST) LTD.
Children and Young Peoples Services,Head of Education,Transport,230008,Contract Hire,02-Aug-2017,3318160-26292,749.85,STANLEY TRAVEL (NORTH EAST) LTD.
Children and Young Peoples Services,Head of Education,Transport,230008,Contract Hire,02-Aug-2017,3318160-26295,"1,598.40",STANLEY TRAVEL (NORTH EAST) LTD.
Children and Young Peoples Services,Head of Education,Transport,230008,Contract Hire,02-Aug-2017,3318160-26296,"1,290.00",STANLEY TRAVEL (NORTH EAST) LTD.
Children and Young Peoples Services,Head of Education,Transport,230008,Contract Hire,02-Aug-2017,3318160-26297,"1,048.50",STANLEY TRAVEL (NORTH EAST) LTD.
Children and Young Peoples Services,Head of Education,Transport,230008,Contract Hire,02-Aug-2017,3318164-170757,700.00,STEVEN PRATT T/A PTL TAXIS DURHAM.
Children and Young Peoples Services,Head of Early Help Assessment and Safeguarding,Transport,240045,Car Allowances,02-Aug-2017,3318170-7342,"63,373.40",SUPPORTIVE SRC LTD.
Children and Young Peoples Services,Head of Education,Transport,230008,Contract Hire,02-Aug-2017,3318178-07/2017/007,900.00,TARNS TAXIS LTD.
Children and Young Peoples Services,Head of Education,Supplies and Services,324500,Provisions,02-Aug-2017,3318179-SI-TSW,"2,073.65",TAYLOR SHAW LTD.
Children and Young Peoples Services,Head of Education,Transport,230006,Contract Hire,02-Aug-2017,3318195-571,"1,950.00",TONYS TAXIS (A BIRCH).
Children and Young Peoples Services,Head of Education,Transport,230012,Contract Hire,02-Aug-2017,3318195-572,840.00,TONYS TAXIS (A BIRCH).
Children and Young Peoples Services,Head of Education,Transport,230008,Contract Hire,02-Aug-2017,3318196-TS-15/11,720.00,TOP STAR TRAVEL.
Children and Young Peoples Services,Head of Education,Transport,230012,Contract Hire,02-Aug-2017,3318196-TS-18/11,900.00,TOP STAR TRAVEL.
Children and Young Peoples Services,Head of Education,Transport,230008,Contract Hire,02-Aug-2017,3318196-TS21/11,720.00,TOP STAR TRAVEL.
Children and Young Peoples Services,Head of Education,Transport,230008,Contract Hire,02-Aug-2017,3318201-24,630.00,TRIDENT TAXIS.
Dedicated Schools Grant,Dedicated Schools Grant,Third Party Payments,425005,Rendered by Voluntary Organisations,02-Aug-2017,3318222-24,"18,880.30",WITHERSLACK GROUP LTD T/A ASHBROOKE SCHOOL.
Dedicated Schools Grant,Dedicated Schools Grant,Third Party Payments,425005,Rendered by Voluntary Organisations,02-Aug-2017,3318222-26,"18,880.30",WITHERSLACK GROUP LTD T/A ASHBROOKE SCHOOL.
Dedicated Schools Grant,Dedicated Schools Grant,Third Party Payments,425005,Rendered by Voluntary Organisations,02-Aug-2017,3318222-27,"18,880.30",WITHERSLACK GROUP LTD T/A ASHBROOKE SCHOOL.
Dedicated Schools Grant,Dedicated Schools Grant,Third Party Payments,425005,Rendered by Voluntary Organisations,02-Aug-2017,3318222-3337,"32,470.00",WITHERSLACK GROUP LTD T/A ASHBROOKE SCHOOL.
Children and Young Peoples Services,Head of Early Help Assessment and Safeguarding,Third Party Payments,425023,Rendered by Voluntary Organisations,02-Aug-2017,3318223-367,"70,609.00",WITHERSLACK GROUP LTD.
Resources,Digital and Customer Services,Debtors,930168,Debtor - Mobile Telephone Holding Account,02-Aug-2017,3317976-01260855062,"7,765.62",EE LTD.*
Resources,Legal & Democratic Services,Supplies and Services,338099,Services,02-Aug-2017,3318053-1078,512.00,MARTIN AVERY.
Resources,Digital and Customer Services,Stock,926900,Stock in hand-Inventory system,02-Aug-2017,3318067-0000095042,748.00,MILLENNIUM BUSINESS SYSTEMS LTD.
Resources,Digital and Customer Services,Supplies and Services,342033,Computers and Communications,02-Aug-2017,3318115-OP/I801942,"1,448.95",PHOENIX SOFTWARE LTD.
Resources,Digital and Customer Services,Supplies and Services,384199,Miscellaneous Expenses,02-Aug-2017,3318120-PT10580,"4,900.00",POINT TOPIC LTD.
Resources,Legal & Democratic Services,Premises,125009,Rents,02-Aug-2017,3318135-9292,534.01,RIVERGREEN DEVELOPMENTS PLC.
Resources,Financial Services,Supplies and Services,340001,Postages,02-Aug-2017,3318138-9054747223,"12,539.64",ROYAL MAIL GROUP PLC.
Resources,Digital and Customer Services,Stock,926900,Stock in hand-Inventory system,02-Aug-2017,3318227-BR39405,897.19,XMA LTD.
Regeneration and Local Services,Technical Services,Stock,926900,Stock in hand-Inventory system,02-Aug-2017,3317881-91644469,"1,450.00",ABB LTD.
Regeneration and Local Services,Technical Services,Supplies and Services,304221,Equipment and Materials,02-Aug-2017,3317884-25010311,"1,988.64",AGGREGATE INDUSTRIES UK LTD.
Regeneration and Local Services,Technical Services,Supplies and Services,304221,Equipment and Materials,02-Aug-2017,3317884-25018079,"2,401.53",AGGREGATE INDUSTRIES UK LTD.
Regeneration and Local Services,Technical Services,Supplies and Services,304221,Equipment and Materials,02-Aug-2017,3317884-25075280,"1,197.57",AGGREGATE INDUSTRIES UK LTD.
Regeneration and Local Services,Technical Services,Supplies and Services,304221,Equipment and Materials,02-Aug-2017,3317884-25075284,"1,242.92",AGGREGATE INDUSTRIES UK LTD.
Regeneration and Local Services,Technical Services,Supplies and Services,304221,Equipment and Materials,02-Aug-2017,3317884-25082081,"1,232.68",AGGREGATE INDUSTRIES UK LTD.
Regeneration and Local Services,Technical Services,Supplies and Services,304221,Equipment and Materials,02-Aug-2017,3317884-25082083,"1,111.04",AGGREGATE INDUSTRIES UK LTD.
Regeneration and Local Services,Technical Services,Supplies and Services,304221,Equipment and Materials,02-Aug-2017,3317884-25090002,"1,235.19",AGGREGATE INDUSTRIES UK LTD.
Regeneration and Local Services,Technical Services,Supplies and Services,304221,Equipment and Materials,02-Aug-2017,3317884-25090005,761.00,AGGREGATE INDUSTRIES UK LTD.
Regeneration and Local Services,Technical Services,Supplies and Services,304221,Equipment and Materials,02-Aug-2017,3317884-25097492,"1,238.95",AGGREGATE INDUSTRIES UK LTD.
Regeneration and Local Services,Technical Services,Supplies and Services,304221,Equipment and Materials,02-Aug-2017,3317884-25132511,"1,242.71",AGGREGATE INDUSTRIES UK LTD.
Regeneration and Local Services,Technical Services,Supplies and Services,304221,Equipment and Materials,02-Aug-2017,3317884-25132512,"1,577.38",AGGREGATE INDUSTRIES UK LTD.
Regeneration and Local Services,Technical Services,Supplies and Services,304221,Equipment and Materials,02-Aug-2017,3317884-25132513,792.51,AGGREGATE INDUSTRIES UK LTD.
Regeneration and Local Services,Technical Services,Supplies and Services,304221,Equipment and Materials,02-Aug-2017,3317884-25132514,"1,148.66",AGGREGATE INDUSTRIES UK LTD.
Regeneration and Local Services,Technical Services,Supplies and Services,304221,Equipment and Materials,02-Aug-2017,3317884-25132515,723.88,AGGREGATE INDUSTRIES UK LTD.
Regeneration and Local Services,Technical Services,Supplies and Services,304221,Equipment and Materials,02-Aug-2017,3317884-25132516,"2,058.62",AGGREGATE INDUSTRIES UK LTD.
Regeneration and Local Services,Technical Services,Supplies and Services,304221,Equipment and Materials,02-Aug-2017,3317884-25139414,"1,252.75",AGGREGATE INDUSTRIES UK LTD.
Regeneration and Local Services,Technical Services,Supplies and Services,304221,Equipment and Materials,02-Aug-2017,3317884-25139415,"1,831.11",AGGREGATE INDUSTRIES UK LTD.
Regeneration and Local Services,Technical Services,Supplies and Services,304221,Equipment and Materials,02-Aug-2017,3317884-25139416,"1,002.09",AGGREGATE INDUSTRIES UK LTD.
Regeneration and Local Services,Technical Services,Supplies and Services,304221,Equipment and Materials,02-Aug-2017,3317884-25139418,832.40,AGGREGATE INDUSTRIES UK LTD.
Regeneration and Local Services,Technical Services,Supplies and Services,304221,Equipment and Materials,02-Aug-2017,3317884-25145019,505.78,AGGREGATE INDUSTRIES UK LTD.
Regeneration and Local Services,Technical Services,Supplies and Services,304221,Equipment and Materials,02-Aug-2017,3317884-25145020,846.45,AGGREGATE INDUSTRIES UK LTD.
Regeneration and Local Services,Technical Services,Supplies and Services,304221,Equipment and Materials,02-Aug-2017,3317884-25147923,"1,246.48",AGGREGATE INDUSTRIES UK LTD.
Regeneration and Local Services,Technical Services,Supplies and Services,304221,Equipment and Materials,02-Aug-2017,3317884-25147925,"1,207.12",AGGREGATE INDUSTRIES UK LTD.
Regeneration and Local Services,Technical Services,Supplies and Services,304221,Equipment and Materials,02-Aug-2017,3317884-25147927,734.38,AGGREGATE INDUSTRIES UK LTD.
Regeneration and Local Services,Technical Services,Third Party Payments,430100,Rendered by Private Contractors,02-Aug-2017,3317889-06977,999.00,ALL EVENTS SECURITY LTD (AES).
Regeneration and Local Services,Economic Development and Housing,Cap Exp on Grants & Other Financial Assistance (REFCUS),918401,Capital grants,02-Aug-2017,3317898-RED-07-2017-231,"11,119.62",AVENSWAY BUILDING CONTRACTORS LTD.
Regeneration and Local Services,Technical Services,Supplies and Services,304221,Equipment and Materials,02-Aug-2017,3317906-INV-0196,"2,400.00",BEAVER BRIDGE HIRE LTD.
Regeneration and Local Services,Direct Services,Third Party Payments,430100,Rendered by Private Contractors,02-Aug-2017,3317924-2830,"5,896.08",CATHEDRAL LOCK & SAFE SERVICES LTD.
Regeneration and Local Services,Direct Services,Third Party Payments,430100,Rendered by Private Contractors,02-Aug-2017,3317924-2831,"5,727.42",CATHEDRAL LOCK & SAFE SERVICES LTD.
Regeneration and Local Services,Economic Development and Housing,Premises,120021,Energy Costs,02-Aug-2017,3317937-12230263,"1,146.35",CORONA ENERGY RETAIL 2 LTD.
Regeneration and Local Services,Culture & Sport,Supplies and Services,338047,Services,02-Aug-2017,3317938-BRASS16/7/17,"4,500.00",CORY BAND.
Regeneration and Local Services,Economic Development and Housing,Cap Exp on Grants & Other Financial Assistance (REFCUS),918004,Contributions to other bodies,02-Aug-2017,3317953-RED-07-2017-227,"3,000.00",DEBORAH FASCIANO T/A GREGG BROS.
Regeneration and Local Services,Direct Services,Third Party Payments,430101,Rendered by Private Contractors,02-Aug-2017,3317956-IV899542,994.65,DIRECT TYRE MANAGEMENT (DTM).
Regeneration and Local Services,Transport and Contracted Services,Third Party Payments,430106,Rendered by Private Contractors,02-Aug-2017,3317982-PUBLICSERVICE-JUN/JUL7,"5,669.60",FERRYHILL VILLAGE TRAVEL.
Regeneration and Local Services,Technical Services,Stock,926900,Stock in hand-Inventory system,02-Aug-2017,3317999-06/644107,"3,769.69",GREENHAM TRADING LTD.
Regeneration and Local Services,Technical Services,Stock,926900,Stock in hand-Inventory system,02-Aug-2017,3317999-06/645580,"1,164.26",GREENHAM TRADING LTD.
Regeneration and Local Services,Technical Services,Stock,926900,Stock in hand-Inventory system,02-Aug-2017,3317999-06/646222,"1,693.71",GREENHAM TRADING LTD.
Regeneration and Local Services,Culture & Sport,Supplies and Services,384199,Miscellaneous Expenses,02-Aug-2017,3318000-JULY252017,"4,000.00",GRESHAUNA SANDERS.
Regeneration and Local Services,Economic Development and Housing,Cap Exp on Grants & Other Financial Assistance (REFCUS),918401,Capital grants,02-Aug-2017,3318007-RED-07-2017-233,"3,631.13",HES GROUP UK LTD.
Regeneration and Local Services,Economic Development and Housing,Cap Exp on Grants & Other Financial Assistance (REFCUS),918401,Capital grants,02-Aug-2017,3318007-RED-07-2017-234,"3,827.00",HES GROUP UK LTD.
Regeneration and Local Services,Economic Development and Housing,Cap Exp on Grants & Other Financial Assistance (REFCUS),918401,Capital grants,02-Aug-2017,3318007-RED-07-2017-235,"2,598.00",HES GROUP UK LTD.
Regeneration and Local Services,Economic Development and Housing,Cap Exp on Grants & Other Financial Assistance (REFCUS),918401,Capital grants,02-Aug-2017,3318007-RED-07-2017-236,"3,495.00",HES GROUP UK LTD.
Regeneration and Local Services,Economic Development and Housing,Cap Exp on Grants & Other Financial Assistance (REFCUS),918401,Capital grants,02-Aug-2017,3318007-RED-07-2017-237,"2,995.00",HES GROUP UK LTD.
Regeneration and Local Services,Economic Development and Housing,Cap Exp on Grants & Other Financial Assistance (REFCUS),918401,Capital grants,02-Aug-2017,3318007-RED-07-2017-238,"2,985.00",HES GROUP UK LTD.
Regeneration and Local Services,Transport and Contracted Services,Third Party Payments,430106,Rendered by Private Contractors,02-Aug-2017,3318009-11947,"4,612.06",HODGSONS COACH OPERATORS LTD.
Regeneration and Local Services,Technical Services,Stock,926900,Stock in hand-Inventory system,02-Aug-2017,3318018-590722,915.60,INSTARMAC GROUP PLC.
Regeneration and Local Services,Economic Development and Housing,Supplies and Services,384437,Miscellaneous Expenses,02-Aug-2017,3318026-20697,"3,149.00",JIM HUGHES COACHES LTD.
Regeneration and Local Services,Economic Development and Housing,Supplies and Services,384437,Miscellaneous Expenses,02-Aug-2017,3318026-20698,"3,149.00",JIM HUGHES COACHES LTD.
Regeneration and Local Services,Economic Development and Housing,Cap Exp on Grants & Other Financial Assistance (REFCUS),918004,Contributions to other bodies,02-Aug-2017,3318029-RED-07-2017-226,"1,325.00",JOHN MEARMAN T/A BLADES.
Regeneration and Local Services,Technical Services,Stock,926900,Stock in hand-Inventory system,02-Aug-2017,3318033-STI461269,589.60,JT DOVE LTD.
Regeneration and Local Services,Direct Services,Supplies and Services,304221,Equipment and Materials,02-Aug-2017,3318045-4063069,612.77,LONDON GENERAL SALES LTD.
Regeneration and Local Services,Direct Services,Supplies and Services,304221,Equipment and Materials,02-Aug-2017,3318066-0000070878,"1,236.58",MIKROFILL SYSTEMS LTD.
Regeneration and Local Services,Direct Services,Premises,145009,Cleaning and Domestic Supplies,02-Aug-2017,3318093-85851,726.63,NIRAMAX GROUP LTD.
Regeneration and Local Services,Direct Services,Supplies and Services,308011,Furniture,02-Aug-2017,3318094-14599340,"2,197.80",NISBETS PLC.
Regeneration and Local Services,Economic Development and Housing,Supplies and Services,304337,Equipment and Materials,02-Aug-2017,3318097-71415,890.81,NORTHERN HERITAGE SERVICES LTD.
Regeneration and Local Services,Direct Services,Transport,215005,Running Costs of Vehicles,02-Aug-2017,3318099-256333,"16,103.61",OIL NRG LTD.
Regeneration and Local Services,Direct Services,Supplies and Services,304221,Equipment and Materials,02-Aug-2017,3318104-BR572694,618.00,PARK ELECTRICAL DISTRIBUTORS LTD.
Regeneration and Local Services,Technical Services,Stock,926900,Stock in hand-Inventory system,02-Aug-2017,3318104-XL204700,690.20,PARK ELECTRICAL DISTRIBUTORS LTD.
Regeneration and Local Services,Culture & Sport,Supplies and Services,338047,Services,02-Aug-2017,3318106-PAULBOND-10/7/17,931.42,PARKSIDE SPORTS COLLEGE ACADEMY.
Regeneration and Local Services,Economic Development and Housing,Cap Exp on Grants & Other Financial Assistance (REFCUS),918401,Capital grants,02-Aug-2017,3318085-RED-07-2017-229,"5,000.00",REDACTED - PAYMENT TO INDIVIDUAL
Regeneration and Local Services,Economic Development and Housing,Cap Exp on Grants & Other Financial Assistance (REFCUS),918401,Capital grants,02-Aug-2017,3318124-RED-07-2017-230,"5,000.00",REDACTED - PAYMENT TO INDIVIDUAL
Regeneration and Local Services,Culture & Sport,Supplies and Services,384199,Miscellaneous Expenses,02-Aug-2017,3318129-466,"2,350.00",RICHARD KENWORTHY.
Regeneration and Local Services,Economic Development and Housing,Construction Work,908105,Construction work,02-Aug-2017,3318135-9300,"21,870.00",RIVERGREEN DEVELOPMENTS PLC.
Regeneration and Local Services,Business Support,Supplies and Services,340001,Postages,02-Aug-2017,3318138-9054754433,"1,328.83",ROYAL MAIL GROUP PLC.
Regeneration and Local Services,Transport and Contracted Services,Third Party Payments,430106,Rendered by Private Contractors,02-Aug-2017,3318160-25862-30/6/17,"6,279.00",STANLEY TRAVEL (NORTH EAST) LTD.
Regeneration and Local Services,Technical Services,Supplies and Services,304221,Equipment and Materials,02-Aug-2017,3318177-9036474857,830.13,TARMAC TRADING LTD.
Regeneration and Local Services,Technical Services,Supplies and Services,304221,Equipment and Materials,02-Aug-2017,3318177-9036517549,566.50,TARMAC TRADING LTD.
Regeneration and Local Services,Technical Services,Stock,926900,Stock in hand-Inventory system,02-Aug-2017,3318177-9036518678,695.45,TARMAC TRADING LTD.
Regeneration and Local Services,Technical Services,Supplies and Services,304221,Equipment and Materials,02-Aug-2017,3318177-9036524789,"1,250.91",TARMAC TRADING LTD.
Regeneration and Local Services,Culture & Sport,Supplies and Services,304259,Equipment and Materials,02-Aug-2017,3318182-96018,800.00,TECHNICAL LAMP SUPPLIES UK LTD.
Regeneration and Local Services,Technical Services,Stock,926900,Stock in hand-Inventory system,02-Aug-2017,3318192-N/IN201014,504.00,THOMAS OWEN & SONS (NEWCASTLE) LTD.
Regeneration and Local Services,Technical Services,Stock,926900,Stock in hand-Inventory system,02-Aug-2017,3318192-N/IN201037,"1,288.84",THOMAS OWEN & SONS (NEWCASTLE) LTD.
Regeneration and Local Services,Technical Services,Stock,926900,Stock in hand-Inventory system,02-Aug-2017,3318192-N/IN201038,542.67,THOMAS OWEN & SONS (NEWCASTLE) LTD.
Regeneration and Local Services,Economic Development and Housing,Cap Exp on Grants & Other Financial Assistance (REFCUS),918401,Capital grants,02-Aug-2017,3318193-RED-07-2017-232,"1,927.00",THYSSENKRUPP ENCASA A DIVISION OF THYSSENKRUPP ACCESS LTD.
Regeneration and Local Services,Direct Services,Supplies and Services,304221,Equipment and Materials,02-Aug-2017,3318194-111409,"2,200.00",TOMMY WARDLE.
Regeneration and Local Services,Transport and Contracted Services,Third Party Payments,430106,Rendered by Private Contractors,02-Aug-2017,3318195-PPT3303-214,"2,169.10",TONYS TAXIS (A BIRCH).
Regeneration and Local Services,Technical Services,Stock,926900,Stock in hand-Inventory system,02-Aug-2017,3318198-100159,530.00,TOTAL RENTAL SOLUTIONS.
Regeneration and Local Services,Technical Services,Stock,926900,Stock in hand-Inventory system,02-Aug-2017,3318198-100160,870.00,TOTAL RENTAL SOLUTIONS.
Regeneration and Local Services,Direct Services,Supplies and Services,304259,Equipment and Materials,02-Aug-2017,3318198-100161,"2,188.00",TOTAL RENTAL SOLUTIONS.
Regeneration and Local Services,Direct Services,Supplies and Services,342051,Computers and Communications,02-Aug-2017,3318204-12043,"3,341.87",TRISCAN SYSTEMS LTD.
Regeneration and Local Services,Culture & Sport,Supplies and Services,384700,Miscellaneous Expenses,02-Aug-2017,3318208-4100584649,"3,000.00",TYNE VALLEY CYCLING CLUB EVENTS.
Regeneration and Local Services,Technical Services,Supplies and Services,304221,Equipment and Materials,02-Aug-2017,3318209-175028,914.30,TYNEDALE ROADSTONE LTD.
Regeneration and Local Services,Technical Services,Supplies and Services,304221,Equipment and Materials,02-Aug-2017,3318209-175086,907.65,TYNEDALE ROADSTONE LTD.
Regeneration and Local Services,Technical Services,Supplies and Services,304221,Equipment and Materials,02-Aug-2017,3318209-175149,902.90,TYNEDALE ROADSTONE LTD.
Regeneration and Local Services,Technical Services,Supplies and Services,304221,Equipment and Materials,02-Aug-2017,3318209-175490,894.35,TYNEDALE ROADSTONE LTD.
Regeneration and Local Services,Technical Services,Supplies and Services,304221,Equipment and Materials,02-Aug-2017,3318209-175537,895.30,TYNEDALE ROADSTONE LTD.
Regeneration and Local Services,Technical Services,Supplies and Services,304221,Equipment and Materials,02-Aug-2017,3318209-175589,802.70,TYNEDALE ROADSTONE LTD.
Regeneration and Local Services,Technical Services,Supplies and Services,304221,Equipment and Materials,02-Aug-2017,3318209-175590,976.75,TYNEDALE ROADSTONE LTD.
Regeneration and Local Services,Technical Services,Supplies and Services,304221,Equipment and Materials,02-Aug-2017,3318209-175591,898.15,TYNEDALE ROADSTONE LTD.
Regeneration and Local Services,Technical Services,Supplies and Services,304221,Equipment and Materials,02-Aug-2017,3318209-175697,890.55,TYNEDALE ROADSTONE LTD.
Regeneration and Local Services,Transport and Contracted Services,Third Party Payments,430109,Rendered by Private Contractors,02-Aug-2017,307758-23536,871.00,UNIPAR SERVICES LLP.
Regeneration and Local Services,Culture & Sport,Supplies and Services,338047,Services,02-Aug-2017,3318214-1613847,"1,372.82",WALT DISNEY CO LTD.
Regeneration and Local Services,Technical Services,Supplies and Services,304221,Equipment and Materials,02-Aug-2017,3318215-20688,"1,333.10",WARD TIMBER LTD.
Transformation and Partnerships,Partnerships & Community Engagement Div.,Supplies and Services,384086,Miscellaneous Expenses,02-Aug-2017,3317951-VOUCHER15NB,"1,125.00",DAWDON YOUTH & COMMUNITY CENTRE.
Transformation and Partnerships,Partnerships & Community Engagement Div.,Transfer Payments,525030,Other,02-Aug-2017,3317951-VOUCHER17AB,"1,800.00",DAWDON YOUTH & COMMUNITY CENTRE.
Transformation and Partnerships,Partnerships & Community Engagement Div.,Cap Exp on Grants & Other Financial Assistance (REFCUS),918004,Contributions to other bodies,02-Aug-2017,3317960-VOUCHER16NB-3TWN031,"3,000.00",DURHAM & DARLINGTON FIRE & RESCUE.
Transformation and Partnerships,Partnerships & Community Engagement Div.,Supplies and Services,384086,Miscellaneous Expenses,02-Aug-2017,3317965-VOUCHER17SG01,"1,900.00",DURHAM POLICE & CRIME COMMISSIONER.
Transformation and Partnerships,Partnerships & Community Engagement Div.,Transfer Payments,525030,Other,02-Aug-2017,3317967-VOUCHER17WR-EDUR001HOL-02,"1,500.00",EASINGTON COLLIERY REGENERATION PARTNERSHIP.
Transformation and Partnerships,Partnerships & Community Engagement Div.,Transfer Payments,525030,Other,02-Aug-2017,3318001-VOUCHER17WR-EDUR001HOL-03,"1,730.00",GROUNDWORK NORTH EAST.
Transformation and Partnerships,Partnerships & Community Engagement Div.,Transfer Payments,525030,Other,02-Aug-2017,3318004-VOUCHER17AB-EDUR001HOL-04,"2,000.00",HASWELL & DISTRICT MENCAP SOCIETY.
Transformation and Partnerships,Partnerships & Community Engagement Div.,Transfer Payments,525030,Other,02-Aug-2017,3318012-VOUCHER17WR-EDUR001HOL-05,"2,100.00",HORDEN YOUTH & COMMUNITY ASSOCIATION.
Transformation and Partnerships,Partnerships & Community Engagement Div.,Transfer Payments,525030,Other,02-Aug-2017,3318070-VOUCHER17AB-EDUR001HOL-06,"2,100.00",MONK HESLEDEN PARISH COUNCIL.
Transformation and Partnerships,Partnerships & Community Engagement Div.,Supplies and Services,312010,Newspapers Books and Periodicals,02-Aug-2017,3318090-321439/0,790.61,NATIONAL LEAFLET CO LTD.
Transformation and Partnerships,Partnerships & Community Engagement Div.,Transfer Payments,525030,Other,02-Aug-2017,3318105-VOUCHER17AB-EDUR001HOL-08,"2,000.00",PARKSIDE & DISTRICT COMMUNITY ASSOCIATION.
Transformation and Partnerships,Partnerships & Community Engagement Div.,Transfer Payments,525030,Other,02-Aug-2017,3318147-VOUCHER17AB-EDUR001HOL-10,"1,260.00",SEAHAM EASTLEA & DISTRICT COMMUNITY ASSOCIATION.
Transformation and Partnerships,Partnerships & Community Engagement Div.,Transfer Payments,525030,Other,02-Aug-2017,3318149-VOUCHER17WR-EDUR001HOL-11,"2,090.00",SHOTTON PARTNERSHIP 2000 LTD.
Transformation and Partnerships,Partnerships & Community Engagement Div.,Transfer Payments,525030,Other,02-Aug-2017,3318155-VOUCHER17AB-EDUR001HOL-09,"1,730.00",SOUTH HETTON & DISTRICT COMMUNITY ASSOCIATION.
Transformation and Partnerships,Partnerships & Community Engagement Div.,Cap Exp on Grants & Other Financial Assistance (REFCUS),918004,Contributions to other bodies,02-Aug-2017,3318156-VOUCHER16NB-SPEN028,"24,000.00",SPENNYMOOR TOWN COUNCIL.
Transformation and Partnerships,Partnerships & Community Engagement Div.,Transfer Payments,525030,Other,02-Aug-2017,3318183-VOUCHER17AB-EDUR001HOL-12,540.00,THE COMMUNITY CLUB.
Transformation and Partnerships,Partnerships & Community Engagement Div.,Supplies and Services,384086,Miscellaneous Expenses,02-Aug-2017,3318202-VOUCHER17NB-EDRC001,"2,160.00",TRIMDON STATION RESIDENTS ASSOCIATION.
Transformation and Partnerships,Partnerships & Community Engagement Div.,Transfer Payments,525030,Other,02-Aug-2017,3318219-VOUCHER17WR-EDUR001HOL-13,"2,095.00",WHEATLEY HILL COMMUNITY ASSOCIATION.
Transformation and Partnerships,Partnerships & Community Engagement Div.,Transfer Payments,525030,Other,02-Aug-2017,3318221-VOUCHER17AB-EDUR001HOL-14,"1,200.00",WINGATE COMMUNITY ASSOCIATION.
Adult and Health Services,Commissioning inc Supporting People,Third Party Payments,479111,Purchase of Care,03-Aug-2017,3318345-21939,"55,500.00",FAMILY ACTION.
Adult and Health Services,Commissioning inc Supporting People,Third Party Payments,479111,Purchase of Care,03-Aug-2017,3318415-555/05420,"15,053.14",MENTAL HEALTH MATTERS.
Adult and Health Services,Head of Adults,Supplies and Services,338365,Services,03-Aug-2017,3318484-SIN132597,661.88,RNIB ENTERPRISES LTD.
Adult and Health Services,Commissioning inc Supporting People,Third Party Payments,479111,Purchase of Care,03-Aug-2017,3318520-CRM8495,"8,522.50",STROKE ASSOCIATION.
Children and Young Peoples Services,Head of Looked After Provision Permanence and Care Leavers,Supplies and Services,364352,Grants to Voluntary Organisations,03-Aug-2017,3318295-1423,800.00,CITY OF SUNDERLAND YMCA LTD.
Dedicated Schools Grant,Dedicated Schools Grant,Income,720090,Fees and Charges,03-Aug-2017,3318371-RES-08-2017-001,"1,552.04",HERMITAGE ACADEMY.
Children and Young Peoples Services,Head of Education,Construction Work,908105,Construction work,03-Aug-2017,3318381-INSGREENFIELDSCHOOL,"41,938.61",INSPIREDSPACES DURHAM LTD.
Children and Young Peoples Services,Head of Education,Construction Work,908105,Construction work,03-Aug-2017,3318381-INSSUNNYDALESCHOOL,"39,976.68",INSPIREDSPACES DURHAM LTD.
Children and Young Peoples Services,Head of Early Help Assessment and Safeguarding,Supplies and Services,384302,Miscellaneous Expenses,03-Aug-2017,3318404-031,540.00,LITTLE LEARNERS DURHAM.
Children and Young Peoples Services,Head of Education,Supplies and Services,338094,Services,03-Aug-2017,3318477-INV44570,"3,316.04",RAMSIDE HALL HOTEL & GOLF CLUB.*
Children and Young Peoples Services,Head of Looked After Provision Permanence and Care Leavers,Supplies and Services,384534,Miscellaneous Expenses,03-Aug-2017,3318420-CAS-08-2017-016,578.17,REDACTED - PAYMENT TO INDIVIDUAL
Children and Young Peoples Services,Head of Education,Supplies and Services,384199,Miscellaneous Expenses,03-Aug-2017,3318511-1,"1,171.50",SPORTSWORLD (NE) LTD.
Children and Young Peoples Services,Head of Education,Transport,230009,Contract Hire,03-Aug-2017,3318515-26294-26/7/17,538.50,STANLEY TRAVEL (NORTH EAST) LTD.
Children and Young Peoples Services,Head of Education,Transport,230008,Contract Hire,03-Aug-2017,3318516-11-31/7/17,"1,050.00",STEELYS TAXIS.
Children and Young Peoples Services,Head of Looked After Provision Permanence and Care Leavers,Supplies and Services,364352,Grants to Voluntary Organisations,03-Aug-2017,3318519-267,984.00,STONHAM HOUSING ASSOCIATION LTD.
Children and Young Peoples Services,Head of Education,Transport,230008,Contract Hire,03-Aug-2017,3318562-1108-29/6/17,"1,800.00",WAYNE`S TAXIS.
Children and Young Peoples Services,Head of Education,Transfer Payments,510026,School Children,03-Aug-2017,3318567-HPALMER1/5/17-7/7/17,720.00,WESTMINSTER DAY NURSERIES LTD T/A BUSY BEES NURSERY.
Children and Young Peoples Services,Head of Early Help Assessment and Safeguarding,Third Party Payments,425023,Rendered by Voluntary Organisations,03-Aug-2017,3318569-369,"70,609.00",WITHERSLACK GROUP LTD.
Children and Young Peoples Services,Head of Early Help Assessment and Safeguarding,Third Party Payments,425023,Rendered by Voluntary Organisations,03-Aug-2017,3318569-374,"70,609.00",WITHERSLACK GROUP LTD.
Children and Young Peoples Services,Head of Looked After Provision Permanence and Care Leavers,Third Party Payments,425021,Rendered by Voluntary Organisations,03-Aug-2017,3318569-396,"81,553.33",WITHERSLACK GROUP LTD.
Children and Young Peoples Services,Head of Early Help Assessment and Safeguarding,Third Party Payments,425023,Rendered by Voluntary Organisations,03-Aug-2017,3318569-403,"87,770.33",WITHERSLACK GROUP LTD.
Resources - C A C,Centrally Administered costs,Supplies and Services,384199,Miscellaneous Expenses,03-Aug-2017,3318245-8020931116,"1,990.00",ADVANCED PAYMENT SOLUTIONS LTD.
Resources,Financial Services,Supplies and Services,342051,Computers and Communications,03-Aug-2017,3318296-C/RB155013,"4,880.60",CIVICA UK LTD.
Resources,Legal & Democratic Services,Supplies and Services,338025,Services,03-Aug-2017,3318298-S44995-01389,870.00,CO-OPERATIVE FUNERAL CARE.
Resources,Legal & Democratic Services,Supplies and Services,338042,Services,03-Aug-2017,3318323-326972/INVSW497,"1,050.00",DERE STREET BARRISTERS.
Resources,Digital and Customer Services,Supplies and Services,304303,Equipment and Materials,03-Aug-2017,3318378-SIN409711,"1,182.00",INFORMATION & DATA NETWORK SUPPLIES LTD (IDN).
Resources,Digital and Customer Services,Supplies and Services,304303,Equipment and Materials,03-Aug-2017,3318380-3458214,770.00,INSIGHT DIRECT (UK) LTD.
Resources,Digital and Customer Services,Supplies and Services,332029,Printing Stationery and Gen Off Exps,03-Aug-2017,3318468-647025,848.00,POTTS PRINTERS LTD.
Regeneration and Local Services,Direct Services,Third Party Payments,430100,Rendered by Private Contractors,03-Aug-2017,3318237-2478,"5,965.02",A & J GUTHRIE.
Regeneration and Local Services,Technical Services,Supplies and Services,304221,Equipment and Materials,03-Aug-2017,3318247-25125768,"1,238.95",AGGREGATE INDUSTRIES UK LTD.
Regeneration and Local Services,Technical Services,Supplies and Services,304221,Equipment and Materials,03-Aug-2017,3318247-25125770,"1,545.53",AGGREGATE INDUSTRIES UK LTD.
Regeneration and Local Services,Technical Services,Supplies and Services,304221,Equipment and Materials,03-Aug-2017,3318247-25125771,"1,241.17",AGGREGATE INDUSTRIES UK LTD.
Regeneration and Local Services,Technical Services,Supplies and Services,304221,Equipment and Materials,03-Aug-2017,3318247-25147924,"2,122.01",AGGREGATE INDUSTRIES UK LTD.
Regeneration and Local Services,Technical Services,Supplies and Services,304221,Equipment and Materials,03-Aug-2017,3318247-25154430,"1,260.27",AGGREGATE INDUSTRIES UK LTD.
Regeneration and Local Services,Technical Services,Supplies and Services,304221,Equipment and Materials,03-Aug-2017,3318247-25154431,"1,127.23",AGGREGATE INDUSTRIES UK LTD.
Regeneration and Local Services,Technical Services,Supplies and Services,304221,Equipment and Materials,03-Aug-2017,3318247-25154432,736.49,AGGREGATE INDUSTRIES UK LTD.
Regeneration and Local Services,Technical Services,Supplies and Services,304221,Equipment and Materials,03-Aug-2017,3318247-25154433,"1,315.45",AGGREGATE INDUSTRIES UK LTD.
Regeneration and Local Services,Technical Services,Supplies and Services,304221,Equipment and Materials,03-Aug-2017,3318247-25154434,727.27,AGGREGATE INDUSTRIES UK LTD.
Regeneration and Local Services,Technical Services,Supplies and Services,304221,Equipment and Materials,03-Aug-2017,3318247-25154435,870.73,AGGREGATE INDUSTRIES UK LTD.
Regeneration and Local Services,Culture & Sport,Supplies and Services,304259,Equipment and Materials,03-Aug-2017,3318248-IN20898,"3,968.00",AIRQUEE LTD.
Regeneration and Local Services,Direct Services,Third Party Payments,430100,Rendered by Private Contractors,03-Aug-2017,3318257-1697,"1,797.00",AWR ROOFING & ALUMIN RAINWATER SYSTEMS LTD.
Regeneration and Local Services,Direct Services,Premises,125009,Rents,03-Aug-2017,3318259-QUARTERLYRENT,"2,000.00",BEEMYHOME LTD.
Regeneration and Local Services,Technical Services,Supplies and Services,304221,Equipment and Materials,03-Aug-2017,3318266-BMPR/074/LW,750.00,BISHOP MIDDLEHAM PLANT & RECYCLING LTD.
Regeneration and Local Services,Economic Development and Housing,Cap Exp on Grants & Other Financial Assistance (REFCUS),918401,Capital grants,03-Aug-2017,3318267-RED-08-2017-020,"12,000.00",BMW BUILDING PRODUCTS LTD.
Regeneration and Local Services,Transport and Contracted Services,Supplies and Services,304245,Equipment and Materials,03-Aug-2017,3318277-52168,600.00,BUDDI.
Regeneration and Local Services,Technical Services,Supplies and Services,372009,Subscriptions,03-Aug-2017,3318278-5584,"3,250.00",BUILDING SOFTWARE LTD.
Regeneration and Local Services,Direct Services,Supplies and Services,304221,Equipment and Materials,03-Aug-2017,3318283-851701671,"3,814.78",CARLISLE CONSTRUCTION MATERIALS LTD.
Regeneration and Local Services,Direct Services,Third Party Payments,430100,Rendered by Private Contractors,03-Aug-2017,3318285-2733,"2,657.52",CATHEDRAL LOCK & SAFE SERVICES LTD.
Regeneration and Local Services,Direct Services,Third Party Payments,430100,Rendered by Private Contractors,03-Aug-2017,3318285-2911,"2,037.14",CATHEDRAL LOCK & SAFE SERVICES LTD.
Regeneration and Local Services,Technical Services,Supplies and Services,304358,Equipment and Materials,03-Aug-2017,3318289-1648,"8,504.99",CG SIMPSON & SON.
Regeneration and Local Services,Direct Services,Premises,145009,Cleaning and Domestic Supplies,03-Aug-2017,3318293-CC109806,"2,395.00",CITY CLEAN NORTHERN LTD.
Regeneration and Local Services,Direct Services,Construction Work,908105,Construction work,03-Aug-2017,3318299-SI/013746,"68,863.70",COAL AUTHORITY.
Regeneration and Local Services,Economic Development and Housing,Supplies and Services,384700,Miscellaneous Expenses,03-Aug-2017,3318309-RED-08-2017-004,"1,000.00",COUNTY DURHAM FURNITURE HELP SCHEME (CDFHS).
Regeneration and Local Services,Culture & Sport,Supplies and Services,384199,Miscellaneous Expenses,03-Aug-2017,3318331-120717,600.00,DURHAM MARKETS CO.
Regeneration and Local Services,Economic Development and Housing,Supplies and Services,344033,Telephones,03-Aug-2017,3318353-137472,"1,040.63",FREEDOM COMMUNICATIONS (UK) LTD.
Regeneration and Local Services,Technical Services,Supplies and Services,304358,Equipment and Materials,03-Aug-2017,3318361-10793,690.00,GEORGE VARDY HAULAGE.
Regeneration and Local Services,Technical Services,Supplies and Services,304358,Equipment and Materials,03-Aug-2017,3318361-10797,"1,100.00",GEORGE VARDY HAULAGE.
Regeneration and Local Services,Economic Development and Housing,Cap Exp on Grants & Other Financial Assistance (REFCUS),918401,Capital grants,03-Aug-2017,3318372-RED-08-2017-010,"2,809.00",HES GROUP UK LTD.
Regeneration and Local Services,Economic Development and Housing,Cap Exp on Grants & Other Financial Assistance (REFCUS),918401,Capital grants,03-Aug-2017,3318372-RED-08-2017-012,"3,543.00",HES GROUP UK LTD.
Regeneration and Local Services,Direct Services,Supplies and Services,304221,Equipment and Materials,03-Aug-2017,3318376-B33/0110914,"1,142.11",HOWDENS JOINERY LTD.
Regeneration and Local Services,Culture & Sport,Supplies and Services,324117,Provisions,03-Aug-2017,3318411-196192,832.01,MARK TONEY & CO LTD.
Regeneration and Local Services,Technical Services,Third Party Payments,430100,Rendered by Private Contractors,03-Aug-2017,3318417-280,"1,267.20",MICHAEL KELLY.
Regeneration and Local Services,Culture & Sport,Supplies and Services,304252,Equipment and Materials,03-Aug-2017,3318424-DRS/DCC/03/REPAIRS,624.70,MR PT STOCKDALE T/A DR SPOKES (BICYCLE REPAIR & INSTRUCTION).
Regeneration and Local Services,Culture & Sport,Supplies and Services,304221,Equipment and Materials,03-Aug-2017,3318424-DRS/DCC/03/SERVICING,901.00,MR PT STOCKDALE T/A DR SPOKES (BICYCLE REPAIR & INSTRUCTION).
Regeneration and Local Services,Economic Development and Housing,Supplies and Services,304259,Equipment and Materials,03-Aug-2017,3318436-2017049511,607.95,NEOPOST FINANCE LTD.
Regeneration and Local Services,Transport and Contracted Services,Supplies and Services,332029,Printing Stationery and Gen Off Exps,03-Aug-2017,3318438-20901595,"2,319.41",NEWSQUEST (YORKSHIRE & NORTH EAST) LTD.
Regeneration and Local Services,Technical Services,Premises,120009,Energy Costs,03-Aug-2017,3318444-NNO7ZG9K,"569,906.09",NPOWER.
Regeneration and Local Services,Transport and Contracted Services,Third Party Payments,430100,Rendered by Private Contractors,03-Aug-2017,3318445-045064,"26,316.68",NSL LTD.
Regeneration and Local Services,Transport and Contracted Services,Third Party Payments,430100,Rendered by Private Contractors,03-Aug-2017,3318445-045066,"1,414.18",NSL LTD.
Regeneration and Local Services,Transport and Contracted Services,Third Party Payments,430100,Rendered by Private Contractors,03-Aug-2017,3318445-045070,"48,404.26",NSL LTD.
Regeneration and Local Services,Transport and Contracted Services,Third Party Payments,430100,Rendered by Private Contractors,03-Aug-2017,3318445-045072,"3,141.40",NSL LTD.
Regeneration and Local Services,Transport and Contracted Services,Third Party Payments,430100,Rendered by Private Contractors,03-Aug-2017,3318445-045074,"5,331.64",NSL LTD.
Regeneration and Local Services,Transport and Contracted Services,Third Party Payments,430100,Rendered by Private Contractors,03-Aug-2017,3318445-045075,"16,873.87",NSL LTD.
Regeneration and Local Services,Transport and Contracted Services,Third Party Payments,430100,Rendered by Private Contractors,03-Aug-2017,3318445-045088,"7,457.31",NSL LTD.
Regeneration and Local Services,Direct Services,Third Party Payments,430114,Rendered by Private Contractors,03-Aug-2017,3318451-0000002216,"29,233.82",O`BRIEN WASTE RECYCLING SOLUTIONS LTD.
Regeneration and Local Services,Direct Services,Transport,215005,Running Costs of Vehicles,03-Aug-2017,3318446-254803,"9,961.02",OIL NRG LTD.
Regeneration and Local Services,Direct Services,Transport,215022,Running Costs of Vehicles,03-Aug-2017,3318446-254805,"1,347.60",OIL NRG LTD.
Regeneration and Local Services,Direct Services,Transport,215005,Running Costs of Vehicles,03-Aug-2017,3318446-256869,"10,106.80",OIL NRG LTD.
Regeneration and Local Services,Direct Services,Transport,215005,Running Costs of Vehicles,03-Aug-2017,3318446-256876,"1,783.72",OIL NRG LTD.
Regeneration and Local Services,Technical Services,Third Party Payments,430100,Rendered by Private Contractors,03-Aug-2017,3318449-SIN7050359,"11,017.50",OWEN PUGH GDC LTD.*
Regeneration and Local Services,Direct Services,Third Party Payments,430100,Rendered by Private Contractors,03-Aug-2017,3318453-1/-1347,"9,400.00",PARAMOUNT CEILINGS & PARTITIONS.
Regeneration and Local Services,Direct Services,Third Party Payments,430100,Rendered by Private Contractors,03-Aug-2017,3318453-1/-1348,"2,800.00",PARAMOUNT CEILINGS & PARTITIONS.
Regeneration and Local Services,Economic Development and Housing,Cap Exp on Grants & Other Financial Assistance (REFCUS),918401,Capital grants,03-Aug-2017,3318462-RED-08-2017-019,"2,407.00",PEART ACCESS RAMPS.
Regeneration and Local Services,Economic Development and Housing,Cap Exp on Grants & Other Financial Assistance (REFCUS),918401,Capital grants,03-Aug-2017,3318465-RED-08-2017-008,"13,642.76",PINKNEY BUILDING CONTRACTORS LTD.
Regeneration and Local Services,Direct Services,Third Party Payments,430100,Rendered by Private Contractors,03-Aug-2017,3318476-60503,544.00,QW SECURITY LTD.
Regeneration and Local Services,Economic Development and Housing,Cap Exp on Grants & Other Financial Assistance (REFCUS),918401,Capital grants,03-Aug-2017,3318383-RED-08-2017-032,"1,733.74",REDACTED - PAYMENT TO INDIVIDUAL
Regeneration and Local Services,Direct Services,Supplies and Services,304259,Equipment and Materials,03-Aug-2017,3318480-RSIN0227828,"1,060.00",RIGBY TAYLOR LTD.
Regeneration and Local Services,Technical Services,Supplies and Services,304358,Equipment and Materials,03-Aug-2017,3318492-1200,"1,215.00",S & R LANDSCAPES.
Regeneration and Local Services,Technical Services,Supplies and Services,304358,Equipment and Materials,03-Aug-2017,3318492-1229,"1,015.00",S & R LANDSCAPES.
Regeneration and Local Services,Direct Services,Employees,040149,Recruitment Instruction and Training,03-Aug-2017,3318507-0001/10128557,605.00,SMH PRODUCTS LTD.
Regeneration and Local Services,Culture & Sport,Supplies and Services,338047,Services,03-Aug-2017,3318509-1159382-1,"2,016.17",SONY PICTURES RELEASING.
Regeneration and Local Services,Spatial Policy Planning Assets & Environment,Premises,120021,Energy Costs,03-Aug-2017,3318514-RED-08-2017-003,"2,340.37",STANLEY LEARNING PARTNERSHIP.
Regeneration and Local Services,Culture & Sport,Supplies and Services,384199,Miscellaneous Expenses,03-Aug-2017,3318515-25860/2017,"17,060.00",STANLEY TRAVEL (NORTH EAST) LTD.
Regeneration and Local Services,Technical Services,Supplies and Services,304221,Equipment and Materials,03-Aug-2017,3318518-095697,"2,772.96",STONEGRAVE AGGREGATES LTD.
Regeneration and Local Services,Technical Services,Supplies and Services,304221,Equipment and Materials,03-Aug-2017,3318526-9036503193,672.78,TARMAC TRADING LTD.
Regeneration and Local Services,Economic Development and Housing,Cap Exp on Grants & Other Financial Assistance (REFCUS),918401,Capital grants,03-Aug-2017,3318541-RED-08-2017-009,"4,643.00",THYSSENKRUPP ENCASA A DIVISION OF THYSSENKRUPP ACCESS LTD.
Regeneration and Local Services,Economic Development and Housing,Cap Exp on Grants & Other Financial Assistance (REFCUS),918401,Capital grants,03-Aug-2017,3318541-RED-08-2017-011,"3,881.00",THYSSENKRUPP ENCASA A DIVISION OF THYSSENKRUPP ACCESS LTD.
Regeneration and Local Services,Economic Development and Housing,Cap Exp on Grants & Other Financial Assistance (REFCUS),918401,Capital grants,03-Aug-2017,3318541-RED-08-2017-013,"1,628.20",THYSSENKRUPP ENCASA A DIVISION OF THYSSENKRUPP ACCESS LTD.
Regeneration and Local Services,Economic Development and Housing,Cap Exp on Grants & Other Financial Assistance (REFCUS),918401,Capital grants,03-Aug-2017,3318541-RED-08-2017-014,"4,360.00",THYSSENKRUPP ENCASA A DIVISION OF THYSSENKRUPP ACCESS LTD.
Regeneration and Local Services,Economic Development and Housing,Cap Exp on Grants & Other Financial Assistance (REFCUS),918401,Capital grants,03-Aug-2017,3318541-RED-08-2017-015,"3,772.00",THYSSENKRUPP ENCASA A DIVISION OF THYSSENKRUPP ACCESS LTD.
Regeneration and Local Services,Economic Development and Housing,Cap Exp on Grants & Other Financial Assistance (REFCUS),918401,Capital grants,03-Aug-2017,3318541-RED-08-2017-016,"1,907.00",THYSSENKRUPP ENCASA A DIVISION OF THYSSENKRUPP ACCESS LTD.
Regeneration and Local Services,Economic Development and Housing,Cap Exp on Grants & Other Financial Assistance (REFCUS),918401,Capital grants,03-Aug-2017,3318541-RED-08-2017-017,"3,423.47",THYSSENKRUPP ENCASA A DIVISION OF THYSSENKRUPP ACCESS LTD.
Regeneration and Local Services,Economic Development and Housing,Cap Exp on Grants & Other Financial Assistance (REFCUS),918401,Capital grants,03-Aug-2017,3318541-RED-08-2017-018,"2,215.00",THYSSENKRUPP ENCASA A DIVISION OF THYSSENKRUPP ACCESS LTD.
Regeneration and Local Services,Direct Services,Supplies and Services,304221,Equipment and Materials,03-Aug-2017,3318542-657912,"2,831.12",TOR COATINGS LTD.
Regeneration and Local Services,Culture & Sport,Supplies and Services,338047,Services,03-Aug-2017,3318546-00008774,653.75,TRAFALGAR RELEASING LTD T/A PICTUREHOUSE ENTERTAINMENT LTD.
Regeneration and Local Services,Culture & Sport,Supplies and Services,338047,Services,03-Aug-2017,3318546-00008776,506.46,TRAFALGAR RELEASING LTD T/A PICTUREHOUSE ENTERTAINMENT LTD.
Regeneration and Local Services,Technical Services,Supplies and Services,304221,Equipment and Materials,03-Aug-2017,3318551-175593,800.06,TYNEDALE ROADSTONE LTD.
Regeneration and Local Services,Technical Services,Third Party Payments,430100,Rendered by Private Contractors,03-Aug-2017,3318555-INV043174,"1,442.56",URBIS SCHREDER LTD.
Regeneration and Local Services,Culture & Sport,Supplies and Services,338047,Services,03-Aug-2017,3318561-22513286,"5,000.62",WARNER BROS ENTERTAINMENT UK LTD.
Regeneration and Local Services,Economic Development and Housing,Supplies and Services,338066,Services,03-Aug-2017,3318573-64302548,"7,000.00",WSP UK LTD.
Transformation and Partnerships,Partnerships & Community Engagement Div.,Transfer Payments,525030,Other,03-Aug-2017,3318328-VOUCHER16AB-3TWN015,"5,000.00",DURHAM COMMUNITY ACTION LTD.
Transformation and Partnerships,Partnerships & Community Engagement Div.,Transfer Payments,525030,Other,03-Aug-2017,3318430-VOUCHER16AB-WEAR001SGF205,"1,462.00",MUGGLESWICK PARISH HALL COMMUNITY ASSOCIATION.
Transformation and Partnerships,Partnerships & Community Engagement Div.,Transfer Payments,525030,Other,03-Aug-2017,3318431-VOUCHER17AB-EDUR001HOL-07,"1,120.00",MURTON PARISH COUNCIL.
Transformation and Partnerships,Partnerships & Community Engagement Div.,Cap Exp on Grants & Other Financial Assistance (REFCUS),918004,Contributions to other bodies,03-Aug-2017,3318501-VOUCHER17AB-CHES001,"15,000.00",SHAID.
Transformation and Partnerships,Partnerships & Community Engagement Div.,Transfer Payments,525030,Other,03-Aug-2017,3318510-VOUCHER16AB-SPEN002SPENPB01,"2,500.00",SPENNYMOOR TOWN YOUTH FC.
Adult and Health Services,Public Health,Premises,145009,Cleaning and Domestic Supplies,04-Aug-2017,3318638-0000025261,651.97,BETTAKLEEN LTD.
Adult and Health Services,Head of Adults,Transport,230005,Contract Hire,04-Aug-2017,3318644-1331-31/7/17,"1,050.00",BOBBY DOVE.
Adult and Health Services,Head of Adults,Supplies and Services,384619,Miscellaneous Expenses,04-Aug-2017,3318680-3910013064,"7,626.68",CO DURHAM & DARLINGTON NHS FOUNDATION TRUST.
Adult and Health Services,Head of Adults,Transport,230005,Contract Hire,04-Aug-2017,3318698-INV-100358,503.88,CROFT BUSINESS SERVICES (UK) LTD T/A CROFT TAXIS.
Adult and Health Services,Head of Adults,Transport,230005,Contract Hire,04-Aug-2017,3318799-1157,"1,290.45",JDS PRIVATE HIRE DURHAM.
Adult and Health Services,Head of Adults,Transport,230005,Contract Hire,04-Aug-2017,3318819-KW771,630.00,KWIK CABS.
Adult and Health Services,Head of Adults,Transport,230005,Contract Hire,04-Aug-2017,3318859-EDB07-17,855.00,MR CT WALKER T/A CW TAXIS.
Adult and Health Services,Head of Adults,Third Party Payments,478151,Purchase of Care,04-Aug-2017,3318895-29750,630.00,OAKLEA TRUST.
Adult and Health Services,Commissioning inc Supporting People,Third Party Payments,479102,Purchase of Care,04-Aug-2017,3318930-14011,"2,190.00",RETHINK MENTAL ILLNESS.
Children and Young Peoples Services,Head of Education,Transport,230008,Contract Hire,04-Aug-2017,3318631-681,523.65,BEELINE MINI BUSES.
Children and Young Peoples Services,Head of Education,Transport,230008,Contract Hire,04-Aug-2017,3318644-1438,"1,640.25",BOBBY DOVE.
Children and Young Peoples Services,Head of Education,Transport,230008,Contract Hire,04-Aug-2017,3318657-M108011,"1,125.00",C & R TAXIS.
Children and Young Peoples Services,Head of Education,Transport,230008,Contract Hire,04-Aug-2017,3318657-W153011,795.00,C & R TAXIS.
Children and Young Peoples Services,Head of Education,Transport,230008,Contract Hire,04-Aug-2017,3318672-SW11,648.00,CHIPPERS TAXIS.
Children and Young Peoples Services,Head of Education,Transport,230007,Contract Hire,04-Aug-2017,3318678-983,750.00,CLIVE HUBERY.
Children and Young Peoples Services,Head of Education,Transport,230003,Contract Hire,04-Aug-2017,3318681-C/9890,"1,927.50",COCHRANES T/A KELVIN TRAVEL.
Children and Young Peoples Services,Head of Education,Transport,230008,Contract Hire,04-Aug-2017,3318686-1184,"1,290.00",CONNORS MINI BUSES.*
Children and Young Peoples Services,Head of Education,Transport,230008,Contract Hire,04-Aug-2017,3318686-1185,"1,290.00",CONNORS MINI BUSES.*
Children and Young Peoples Services,Head of Education,Transport,230006,Contract Hire,04-Aug-2017,3318686-1187,"1,410.00",CONNORS MINI BUSES.*
Children and Young Peoples Services,Head of Education,Transport,230008,Contract Hire,04-Aug-2017,3318693-N069/JULY/17,"1,153.50",CRAIG RAMSHAW T/A CRAIG`S CABS.
Children and Young Peoples Services,Head of Education,Transport,230006,Contract Hire,04-Aug-2017,3318693-N220/JULY/17,637.20,CRAIG RAMSHAW T/A CRAIG`S CABS.
Children and Young Peoples Services,Head of Education,Transport,230008,Contract Hire,04-Aug-2017,3318698-INV-100355,"2,383.05",CROFT BUSINESS SERVICES (UK) LTD T/A CROFT TAXIS.
Children and Young Peoples Services,Head of Education,Transport,230008,Contract Hire,04-Aug-2017,3318698-INV-100363,"1,932.30",CROFT BUSINESS SERVICES (UK) LTD T/A CROFT TAXIS.
Children and Young Peoples Services,Head of Education,Transport,230008,Contract Hire,04-Aug-2017,3318698-INV-100364,598.20,CROFT BUSINESS SERVICES (UK) LTD T/A CROFT TAXIS.
Children and Young Peoples Services,Head of Education,Transport,230008,Contract Hire,04-Aug-2017,3318698-INV-100366,883.80,CROFT BUSINESS SERVICES (UK) LTD T/A CROFT TAXIS.
Children and Young Peoples Services,Head of Education,Transport,230007,Contract Hire,04-Aug-2017,3318705-1533-JULY17,600.00,DA TAXIS.
Children and Young Peoples Services,Head of Education,Transport,230008,Contract Hire,04-Aug-2017,3318708-3159,"1,431.45",DAVES MINIBUSES.
Children and Young Peoples Services,Head of Education,Transport,230008,Contract Hire,04-Aug-2017,3318708-3161,"1,695.00",DAVES MINIBUSES.
Children and Young Peoples Services,Head of Education,Transport,230012,Contract Hire,04-Aug-2017,3318709-A30,"1,350.00",DAVES TAXIS.
Children and Young Peoples Services,Head of Education,Transport,230008,Contract Hire,04-Aug-2017,3318709-A31,"1,125.00",DAVES TAXIS.
Children and Young Peoples Services,Head of Education,Transport,230008,Contract Hire,04-Aug-2017,3318709-A32,525.00,DAVES TAXIS.
Children and Young Peoples Services,Head of Education,Transfer Payments,510028,School Children,04-Aug-2017,3318721-5,"2,500.00",DIANE DIXON ASSOCIATES LTD.
Children and Young Peoples Services,Head of Education,Transport,230012,Contract Hire,04-Aug-2017,3318724-17/34,"1,043.10",DMG PRIVATE HIRE.
Children and Young Peoples Services,Head of Education,Transport,230007,Contract Hire,04-Aug-2017,3318728-24980,"2,102.40",DURHAM CITY COACHES.
Children and Young Peoples Services,Head of Education,Transfer Payments,510026,School Children,04-Aug-2017,3318730-309870,839.25,DURHAM UNIVERSITY.
Children and Young Peoples Services,Head of Education,Transfer Payments,510028,School Children,04-Aug-2017,3318733-CAS-08-2017-022,"15,000.00",EARLY LEARNERS PRIVATE DAY NURSERY.
Children and Young Peoples Services,Head of Education,Transport,230007,Contract Hire,04-Aug-2017,3318742-5182/0717,628.50,ELLIOTTS OF TRIMDON.
Children and Young Peoples Services,Head of Education,Transport,230006,Contract Hire,04-Aug-2017,3318742-E122/0717,885.00,ELLIOTTS OF TRIMDON.
Children and Young Peoples Services,Head of Education,Transport,230007,Contract Hire,04-Aug-2017,3318744-0725,753.45,EN ROUTE TRAVEL.
Children and Young Peoples Services,Head of Education,Transport,230008,Contract Hire,04-Aug-2017,3318744-0726,"1,205.70",EN ROUTE TRAVEL.
Children and Young Peoples Services,Head of Education,Supplies and Services,338094,Services,04-Aug-2017,3318749-5101707,"1,192.50",EXCEL ACADEMY PARTNERSHIP T/A FRAMWELLGATE SCHOOL DURHAM.
Children and Young Peoples Services,Head of Education,Transport,230008,Contract Hire,04-Aug-2017,3318756-1707,"1,350.00",FRANK ATKINSON T/A FJ MINIBUS TRAVEL.
Children and Young Peoples Services,Head of Looked After Provision Permanence and Care Leavers,Supplies and Services,364358,Grants to Voluntary Organisations,04-Aug-2017,3318759-CAS-08-2017-027,770.00,FRESH STUDENT LIVING.
Children and Young Peoples Services,Head of Education,Transport,230007,Contract Hire,04-Aug-2017,3318761-19562,"1,638.00",GARNETTS LTD (COACHES).
Children and Young Peoples Services,Head of Education,Transport,230007,Contract Hire,04-Aug-2017,3318761-19563,"2,547.15",GARNETTS LTD (COACHES).
Children and Young Peoples Services,Head of Education,Transport,230007,Contract Hire,04-Aug-2017,3318761-19564,"11,205.45",GARNETTS LTD (COACHES).
Children and Young Peoples Services,Head of Education,Transport,230007,Contract Hire,04-Aug-2017,3318761-19567,"1,770.00",GARNETTS LTD (COACHES).
Children and Young Peoples Services,Head of Education,Transport,230007,Contract Hire,04-Aug-2017,3318761-19568,"2,085.00",GARNETTS LTD (COACHES).
Children and Young Peoples Services,Head of Education,Transport,230008,Contract Hire,04-Aug-2017,3318764-054,"1,057.50",GMC TAXIS NORTH EAST.
Children and Young Peoples Services,Head of Education,Transport,230008,Contract Hire,04-Aug-2017,3318766-000034,"1,185.00",GP TAXIS.
Children and Young Peoples Services,Head of Education,Transport,230008,Contract Hire,04-Aug-2017,3318776-HT285,"1,950.00",HARRY`S TAXI`S.
Children and Young Peoples Services,Head of Education,Transport,230006,Contract Hire,04-Aug-2017,3318776-HT286,"1,950.00",HARRY`S TAXI`S.
Children and Young Peoples Services,Head of Education,Transport,230008,Contract Hire,04-Aug-2017,3318778-11-21/7/17,675.00,HENRY FOREMAN T/A HENRY`S TAXIS.
Children and Young Peoples Services,Head of Education,Transport,230008,Contract Hire,04-Aug-2017,3318779-440,"1,054.65",HEPWORTHS LUXURY TRAVEL.
Children and Young Peoples Services,Head of Education,Transport,230008,Contract Hire,04-Aug-2017,3318779-441,"1,655.40",HEPWORTHS LUXURY TRAVEL.
Children and Young Peoples Services,Head of Education,Transport,230007,Contract Hire,04-Aug-2017,3318782-11922,"1,050.00",HODGSONS COACH OPERATORS LTD.
Children and Young Peoples Services,Head of Education,Transport,230012,Contract Hire,04-Aug-2017,3318799-1156,"1,350.00",JDS PRIVATE HIRE DURHAM.
Children and Young Peoples Services,Head of Education,Transport,230008,Contract Hire,04-Aug-2017,3318799-1158,"1,106.40",JDS PRIVATE HIRE DURHAM.
Children and Young Peoples Services,Head of Education,Transport,230008,Contract Hire,04-Aug-2017,3318799-1159,"1,325.85",JDS PRIVATE HIRE DURHAM.
Children and Young Peoples Services,Head of Education,Transport,230008,Contract Hire,04-Aug-2017,3318799-1161,"1,296.15",JDS PRIVATE HIRE DURHAM.
Children and Young Peoples Services,Head of Education,Transport,230008,Contract Hire,04-Aug-2017,3318799-1162,870.00,JDS PRIVATE HIRE DURHAM.
Children and Young Peoples Services,Head of Education,Transport,230008,Contract Hire,04-Aug-2017,3318799-1163,"1,095.00",JDS PRIVATE HIRE DURHAM.
Children and Young Peoples Services,Head of Education,Transport,230007,Contract Hire,04-Aug-2017,3318799-1164,690.00,JDS PRIVATE HIRE DURHAM.
Children and Young Peoples Services,Head of Education,Transport,230008,Contract Hire,04-Aug-2017,3318799-1168,"1,950.00",JDS PRIVATE HIRE DURHAM.
Children and Young Peoples Services,Head of Education,Transport,230007,Contract Hire,04-Aug-2017,3318799-1171,780.00,JDS PRIVATE HIRE DURHAM.
Children and Young Peoples Services,Head of Education,Transport,230007,Contract Hire,04-Aug-2017,3318799-1173,"1,290.00",JDS PRIVATE HIRE DURHAM.
Children and Young Peoples Services,Head of Education,Transport,230008,Contract Hire,04-Aug-2017,3318803-21/07/17A,689.00,JL EBDON. T/A DIAL-A-CAB.
Children and Young Peoples Services,Head of Education,Transport,230008,Contract Hire,04-Aug-2017,3318803-21/07/17C,"1,533.00",JL EBDON. T/A DIAL-A-CAB.
Children and Young Peoples Services,Head of Education,Transport,230008,Contract Hire,04-Aug-2017,3318803-21/07/17E,"1,020.00",JL EBDON. T/A DIAL-A-CAB.
Children and Young Peoples Services,Head of Education,Transport,230008,Contract Hire,04-Aug-2017,3318803-21/07/17F,"1,470.00",JL EBDON. T/A DIAL-A-CAB.
Children and Young Peoples Services,Head of Education,Transport,230008,Contract Hire,04-Aug-2017,3318803-21/07/17G,900.00,JL EBDON. T/A DIAL-A-CAB.
Children and Young Peoples Services,Head of Education,Transport,230008,Contract Hire,04-Aug-2017,3318804-2017/14,672.00,JM HUMBLE COACH HIRE.
Children and Young Peoples Services,Head of Education,Transport,230008,Contract Hire,04-Aug-2017,3318819-KW769,750.00,KWIK CABS.
Children and Young Peoples Services,Head of Early Help Assessment and Safeguarding,Transport,230005,Contract Hire,04-Aug-2017,3318831-3287,"1,070.00",LOCAL TRANSPORT LTD.
Children and Young Peoples Services,Head of Looked After Provision Permanence and Care Leavers,Transport,230005,Contract Hire,04-Aug-2017,3318831-3348,"1,184.00",LOCAL TRANSPORT LTD.
Children and Young Peoples Services,Head of Looked After Provision Permanence and Care Leavers,Transport,230005,Contract Hire,04-Aug-2017,3318831-3352,"1,268.00",LOCAL TRANSPORT LTD.
Children and Young Peoples Services,Head of Looked After Provision Permanence and Care Leavers,Transport,230005,Contract Hire,04-Aug-2017,3318831-3408,588.00,LOCAL TRANSPORT LTD.
Children and Young Peoples Services,Head of Education,Transport,230006,Contract Hire,04-Aug-2017,3318831-3438,"1,798.00",LOCAL TRANSPORT LTD.
Children and Young Peoples Services,Head of Education,Transport,230006,Contract Hire,04-Aug-2017,3318831-3440,"1,392.00",LOCAL TRANSPORT LTD.
Children and Young Peoples Services,Head of Education,Transport,230008,Contract Hire,04-Aug-2017,3318844-061707,"1,430.00",MARK & JOHN CHISHOLM T/A (CHEVRON).
Children and Young Peoples Services,Head of Education,Transport,230008,Contract Hire,04-Aug-2017,3318844-061707-JULY17,"1,072.50",MARK & JOHN CHISHOLM T/A (CHEVRON).
Dedicated Schools Grant,Dedicated Schools Grant,Transport,230010,Contract Hire,04-Aug-2017,3318844-071702,"1,140.00",MARK & JOHN CHISHOLM T/A (CHEVRON).
Children and Young Peoples Services,Head of Education,Transport,230012,Contract Hire,04-Aug-2017,3318844-071706,"1,282.50",MARK & JOHN CHISHOLM T/A (CHEVRON).
Children and Young Peoples Services,Head of Education,Transport,230008,Contract Hire,04-Aug-2017,3318844-071709,"1,962.50",MARK & JOHN CHISHOLM T/A (CHEVRON).
Children and Young Peoples Services,Head of Education,Transport,230008,Contract Hire,04-Aug-2017,3318844-071714,"1,410.00",MARK & JOHN CHISHOLM T/A (CHEVRON).
Children and Young Peoples Services,Head of Education,Transport,230008,Contract Hire,04-Aug-2017,3318857-KDC-1717,"2,408.25",MJ TIMNEY T/A KDC & C&M TAXIS.
Children and Young Peoples Services,Head of Education,Transport,230007,Contract Hire,04-Aug-2017,3318859-HLA07-17,957.00,MR CT WALKER T/A CW TAXIS.
Children and Young Peoples Services,Head of Education,Transport,230008,Contract Hire,04-Aug-2017,3318859-TDW07-17,732.00,MR CT WALKER T/A CW TAXIS.
Children and Young Peoples Services,Head of Education,Transport,230008,Contract Hire,04-Aug-2017,3318859-VLR07-17,717.00,MR CT WALKER T/A CW TAXIS.
Children and Young Peoples Services,Head of Education,Transport,230008,Contract Hire,04-Aug-2017,3318859-WINDS07-17,"1,706.40",MR CT WALKER T/A CW TAXIS.
Children and Young Peoples Services,Head of Education,Transport,230008,Contract Hire,04-Aug-2017,3318861-0304857,"1,368.00",MR GN ROBBINS T/A GNR MINIBUS HIRE.
Children and Young Peoples Services,Head of Education,Transport,230008,Contract Hire,04-Aug-2017,3318863-JK229,750.00,MR JOHN KNIGHTON T/A JK TAXIS.
Children and Young Peoples Services,Head of Education,Transport,230008,Contract Hire,04-Aug-2017,3318868-2979,"1,356.90",MR S BOWERS T/A DH7 TAXIS.
Children and Young Peoples Services,Head of Education,Transport,230008,Contract Hire,04-Aug-2017,3318868-2981,560.00,MR S BOWERS T/A DH7 TAXIS.
Children and Young Peoples Services,Head of Education,Third Party Payments,440999,Other Third Party Payments,04-Aug-2017,3318884-2PROGRESSIONPROJECT,895.27,NIGEL BROUGH T/A BESPOKE TRAINING SOLUTIONS LTD.
Children and Young Peoples Services,Head of Education,Transport,230007,Contract Hire,04-Aug-2017,3318869-12-4349,900.00,REDACTED - PAYMENT TO INDIVIDUAL
Children and Young Peoples Services,Head of Education,Transport,230008,Contract Hire,04-Aug-2017,3318932-3084,"1,036.00",RICHIES TAXIS.
Children and Young Peoples Services,Head of Education,Transport,230008,Contract Hire,04-Aug-2017,3318938-1111,"1,020.00",ROAD RUNNERS (NE) LTD.
Children and Young Peoples Services,Head of Education,Transport,230008,Contract Hire,04-Aug-2017,3318969-16,"1,406.00",STEVEN HENDERSON T/A HENDYS TAXIS.
Dedicated Schools Grant,Dedicated Schools Grant,Third Party Payments,425005,Rendered by Voluntary Organisations,04-Aug-2017,3318974-523,"49,136.54",TALBOT HOUSE SCHOOL.
Children and Young Peoples Services,Head of Education,Transport,230008,Contract Hire,04-Aug-2017,3318994-0001886,"1,232.50",TONY RIDLEY T/A COLORS TAXIS LTD.
Children and Young Peoples Services,Head of Education,Transport,230006,Contract Hire,04-Aug-2017,3318994-0001889,"1,500.00",TONY RIDLEY T/A COLORS TAXIS LTD.
Children and Young Peoples Services,Head of Education,Transport,230007,Contract Hire,04-Aug-2017,3319020-90-21/7/17,720.00,WALTONS TAXIS.
Children and Young Peoples Services,Head of Education,Transport,230007,Contract Hire,04-Aug-2017,3319021-10COFE,555.00,WE AR CABS.
Resources,Financial Services,Supplies and Services,384199,Miscellaneous Expenses,04-Aug-2017,3318608-8020930517,559.98,ADVANCED PAYMENT SOLUTIONS LTD.
Resources,Financial Services,Supplies and Services,384199,Miscellaneous Expenses,04-Aug-2017,3318608-8020931216,979.95,ADVANCED PAYMENT SOLUTIONS LTD.
Resources,Financial Services,Supplies and Services,384199,Miscellaneous Expenses,04-Aug-2017,3318608-8021210217,689.00,ADVANCED PAYMENT SOLUTIONS LTD.
Resources,Financial Services,Supplies and Services,384199,Miscellaneous Expenses,04-Aug-2017,3318608-DUR003,"1,500.00",ADVANCED PAYMENT SOLUTIONS LTD.
Resources,Financial Services,Supplies and Services,384199,Miscellaneous Expenses,04-Aug-2017,3318608-DUR004,"1,500.00",ADVANCED PAYMENT SOLUTIONS LTD.
Resources,Internal Audit and Insurance,Supplies and Services,342051,Computers and Communications,04-Aug-2017,3318628-15927,"1,655.00",AUDITWARE SYSTEMS LTD.
Resources,Digital and Customer Services,Supplies and Services,338027,Services,04-Aug-2017,3318712-201720,"2,290.30",DAWN PARKIN SOLUTIONS LTD.
Resources,Digital and Customer Services,Stock,926900,Stock in hand-Inventory system,04-Aug-2017,3318714-7402374339,"1,280.79",DELL COMPUTER CORPORATION LTD.
Resources,Digital and Customer Services,Stock,926900,Stock in hand-Inventory system,04-Aug-2017,3318714-7402378634,"5,772.80",DELL COMPUTER CORPORATION LTD.
Resources,Legal & Democratic Services,Supplies and Services,338042,Services,04-Aug-2017,3318717-328639/INVLW131,"2,250.00",DERE STREET BARRISTERS.
Resources,Digital and Customer Services,Supplies and Services,304639,Equipment and Materials,04-Aug-2017,3318723-147106370,511.42,DIVERSEY LTD.
Resources,Digital and Customer Services,Supplies and Services,340001,Postages,04-Aug-2017,3318881-92351833,"1,801.97",NEOPOST LTD.
Resources,Digital and Customer Services,Supplies and Services,304252,Equipment and Materials,04-Aug-2017,3318937-I060717,"1,950.00",RN SERVICE ENGINEERS LTD.
Resources,Digital and Customer Services,Supplies and Services,342051,Computers and Communications,04-Aug-2017,3318957-INV01667007,"17,490.48",SOFTCAT LTD.
Resources,Digital and Customer Services,Supplies and Services,304639,Equipment and Materials,04-Aug-2017,3318957-INV01667117,"6,059.80",SOFTCAT LTD.
Resources,Digital and Customer Services,Stock,926900,Stock in hand-Inventory system,04-Aug-2017,3319032-BQ45058,893.38,XMA LTD.
Regeneration and Local Services,Technical Services,Supplies and Services,304221,Equipment and Materials,04-Aug-2017,3318609-25115497,"1,798.37",AGGREGATE INDUSTRIES UK LTD.
Regeneration and Local Services,Technical Services,Supplies and Services,304221,Equipment and Materials,04-Aug-2017,3318609-25115498,"1,988.16",AGGREGATE INDUSTRIES UK LTD.
Regeneration and Local Services,Technical Services,Supplies and Services,304221,Equipment and Materials,04-Aug-2017,3318609-25160861,"1,243.97",AGGREGATE INDUSTRIES UK LTD.
Regeneration and Local Services,Technical Services,Supplies and Services,304221,Equipment and Materials,04-Aug-2017,3318609-25160868,"1,158.25",AGGREGATE INDUSTRIES UK LTD.
Regeneration and Local Services,Technical Services,Supplies and Services,304221,Equipment and Materials,04-Aug-2017,3318609-25160870,618.08,AGGREGATE INDUSTRIES UK LTD.
Regeneration and Local Services,Culture & Sport,Supplies and Services,304337,Equipment and Materials,04-Aug-2017,3318613-101606,528.50,ALISON BLACK LTD T/A SPORTMAX.
Regeneration and Local Services,Culture & Sport,Supplies and Services,338047,Services,04-Aug-2017,3318616-29/6/17,"1,844.00",AM PRODUCTIONS.
Regeneration and Local Services,Culture & Sport,Supplies and Services,384199,Miscellaneous Expenses,04-Aug-2017,3318627-5720,"7,620.00",AS AUDIO SERVICES.
Regeneration and Local Services,Culture & Sport,Supplies and Services,338047,Services,04-Aug-2017,3318642-BF1807,"1,562.57",BLAZIN` FIDDLES.
Regeneration and Local Services,Direct Services,Supplies and Services,338027,Services,04-Aug-2017,3318646-3225963,"1,125.00",BOND DICKINSON LLP.
Regeneration and Local Services,Transport and Contracted Services,Supplies and Services,336005,Advertising,04-Aug-2017,3318658-116990,"2,250.00",CALCO PUBLICATIONS LLP.
Regeneration and Local Services,Culture & Sport,Supplies and Services,324001,Provisions,04-Aug-2017,3318661-843978660,"1,043.88",CARLSBERG UK LTD.
Regeneration and Local Services,Direct Services,Third Party Payments,430100,Rendered by Private Contractors,04-Aug-2017,3318664-2837,721.41,CATHEDRAL LOCK & SAFE SERVICES LTD.
Regeneration and Local Services,Direct Services,Third Party Payments,430100,Rendered by Private Contractors,04-Aug-2017,3318664-2912,752.92,CATHEDRAL LOCK & SAFE SERVICES LTD.
Regeneration and Local Services,Technical Services,Supplies and Services,304221,Equipment and Materials,04-Aug-2017,3318667-3009768282,"1,007.85",CEMEX UK MATERIALS LTD.
Regeneration and Local Services,Direct Services,Transport,210057,Repair and Maintenance of Vehicles,04-Aug-2017,3318670-550274437,"1,475.06",CHEMETALL PLC.
Regeneration and Local Services,Direct Services,Third Party Payments,430100,Rendered by Private Contractors,04-Aug-2017,3318716-306114,511.08,DENNIS EAGLE LTD.
Regeneration and Local Services,Culture & Sport,Supplies and Services,384199,Miscellaneous Expenses,04-Aug-2017,3318719-11DCC,992.14,DGB EVENTS LTD.
Regeneration and Local Services,Direct Services,Third Party Payments,430101,Rendered by Private Contractors,04-Aug-2017,3318722-IV903860,"1,908.00",DIRECT TYRE MANAGEMENT (DTM).
Regeneration and Local Services,Direct Services,Third Party Payments,430101,Rendered by Private Contractors,04-Aug-2017,3318722-IV903862,900.85,DIRECT TYRE MANAGEMENT (DTM).
Regeneration and Local Services,Culture & Sport,Supplies and Services,384199,Miscellaneous Expenses,04-Aug-2017,3318734-4100584345,600.00,EASINGTON COLLIERY BRASS BAND.
Regeneration and Local Services,Technical Services,Construction Work,908105,Construction work,04-Aug-2017,3318735-7102481,957.48,EAST COAST MAIN LINE COMPANY LTD.
Regeneration and Local Services,Technical Services,Stock,926900,Stock in hand-Inventory system,04-Aug-2017,3318737-059-207974,837.50,EDMUNDSON ELECTRICAL LTD.
Regeneration and Local Services,Direct Services,Supplies and Services,304221,Equipment and Materials,04-Aug-2017,3318737-059-207996,680.16,EDMUNDSON ELECTRICAL LTD.
Regeneration and Local Services,Technical Services,Supplies and Services,304221,Equipment and Materials,04-Aug-2017,3318770-06/654245,"1,018.00",GREENHAM TRADING LTD.
Regeneration and Local Services,Economic Development and Housing,Supplies and Services,384700,Miscellaneous Expenses,04-Aug-2017,3318774-RED-08-2017-042,"1,500.00",HARPERLEY HALL FARM NURSERY.
Regeneration and Local Services,Direct Services,Third Party Payments,430100,Rendered by Private Contractors,04-Aug-2017,3318783-69169,"1,005.00",HOGARTH COACHWORKS LTD.
Regeneration and Local Services,Technical Services,Construction Work,908108,Capital - Surface Dressing,04-Aug-2017,3318794-20596,512.88,JACK COUPE & SONS LTD T/A COUPE LINE.
Regeneration and Local Services,Culture & Sport,Supplies and Services,384199,Miscellaneous Expenses,04-Aug-2017,3318814-007,"1,500.00",KAREN HOLMES T/A REFRILL.
Regeneration and Local Services,Technical Services,Supplies and Services,304358,Equipment and Materials,04-Aug-2017,3318817-1722,958.00,KEVIN SNOWDON GROUNDWORKS LTD.
Regeneration and Local Services,Technical Services,Supplies and Services,304358,Equipment and Materials,04-Aug-2017,3318817-1723,830.00,KEVIN SNOWDON GROUNDWORKS LTD.
Regeneration and Local Services,Technical Services,Supplies and Services,304358,Equipment and Materials,04-Aug-2017,3318817-1724,830.00,KEVIN SNOWDON GROUNDWORKS LTD.
Regeneration and Local Services,Technical Services,Supplies and Services,304358,Equipment and Materials,04-Aug-2017,3318817-1725,736.50,KEVIN SNOWDON GROUNDWORKS LTD.
Regeneration and Local Services,Technical Services,Supplies and Services,304358,Equipment and Materials,04-Aug-2017,3318817-1726,"1,040.00",KEVIN SNOWDON GROUNDWORKS LTD.
Regeneration and Local Services,Technical Services,Supplies and Services,304358,Equipment and Materials,04-Aug-2017,3318817-1732,850.00,KEVIN SNOWDON GROUNDWORKS LTD.
Regeneration and Local Services,Technical Services,Supplies and Services,304358,Equipment and Materials,04-Aug-2017,3318817-1733,814.00,KEVIN SNOWDON GROUNDWORKS LTD.
Regeneration and Local Services,Technical Services,Supplies and Services,304358,Equipment and Materials,04-Aug-2017,3318817-1735,940.00,KEVIN SNOWDON GROUNDWORKS LTD.
Regeneration and Local Services,Technical Services,Supplies and Services,304358,Equipment and Materials,04-Aug-2017,3318817-1736,"1,030.00",KEVIN SNOWDON GROUNDWORKS LTD.
Regeneration and Local Services,Technical Services,Supplies and Services,304358,Equipment and Materials,04-Aug-2017,3318817-1738,814.00,KEVIN SNOWDON GROUNDWORKS LTD.
Regeneration and Local Services,Technical Services,Supplies and Services,304358,Equipment and Materials,04-Aug-2017,3318817-1739,814.00,KEVIN SNOWDON GROUNDWORKS LTD.
Regeneration and Local Services,Technical Services,Supplies and Services,304358,Equipment and Materials,04-Aug-2017,3318817-1740,"1,040.00",KEVIN SNOWDON GROUNDWORKS LTD.
Regeneration and Local Services,Technical Services,Stock,926900,Stock in hand-Inventory system,04-Aug-2017,3318826-LFP/17/5594,729.00,LIFELINE FIRE PREVENTION LTD.
Regeneration and Local Services,Direct Services,Third Party Payments,430100,Rendered by Private Contractors,04-Aug-2017,3318833-138774,"2,367.08",LONDONDERRY GARAGE (S.E) LTD.
Regeneration and Local Services,Technical Services,Stock,926900,Stock in hand-Inventory system,04-Aug-2017,3318841-115651,"1,519.50",MALLATITE LTD T/A MALLATITE PLASTICS LTD.
Regeneration and Local Services,Technical Services,Stock,926900,Stock in hand-Inventory system,04-Aug-2017,3318841-115653,"7,011.50",MALLATITE LTD T/A MALLATITE PLASTICS LTD.
Regeneration and Local Services,Technical Services,Supplies and Services,304358,Equipment and Materials,04-Aug-2017,3318845-1982,721.50,MARTIN JEWITT PLANT HIRE.
Regeneration and Local Services,Technical Services,Third Party Payments,430100,Rendered by Private Contractors,04-Aug-2017,3318891-DI20274284,"2,832.45",NORTHERN POWERGRID (NORTHEAST) LTD.
Regeneration and Local Services,Direct Services,Transport,215005,Running Costs of Vehicles,04-Aug-2017,3318898-256969,"11,025.60",OIL NRG LTD.
Regeneration and Local Services,Direct Services,Transport,215005,Running Costs of Vehicles,04-Aug-2017,3318898-256971,940.13,OIL NRG LTD.
Regeneration and Local Services,Direct Services,Supplies and Services,304221,Equipment and Materials,04-Aug-2017,3318899-6973-03,"1,123.08",OPUS BUILDING SERVICES LTD.
Regeneration and Local Services,Direct Services,Supplies and Services,304221,Equipment and Materials,04-Aug-2017,3318904-BR572802,509.23,PARK ELECTRICAL DISTRIBUTORS LTD.
Regeneration and Local Services,Technical Services,Stock,926900,Stock in hand-Inventory system,04-Aug-2017,3318904-XL204879,"2,688.70",PARK ELECTRICAL DISTRIBUTORS LTD.
Regeneration and Local Services,Direct Services,Supplies and Services,304221,Equipment and Materials,04-Aug-2017,3318909-277297,534.15,PEW ELECTRICAL DISTRIBUTORS LTD.
Regeneration and Local Services,Economic Development and Housing,Cap Exp on Grants & Other Financial Assistance (REFCUS),918401,Capital grants,04-Aug-2017,3318808-RED-08-2017-037,"5,000.00",REDACTED - PAYMENT TO INDIVIDUAL
Regeneration and Local Services,Economic Development and Housing,Cap Exp on Grants & Other Financial Assistance (REFCUS),918401,Capital grants,04-Aug-2017,3318848-RED-08-2017-036,"5,000.00",REDACTED - PAYMENT TO INDIVIDUAL
Regeneration and Local Services,Economic Development and Housing,Cap Exp on Grants & Other Financial Assistance (REFCUS),918004,Contributions to other bodies,04-Aug-2017,3318966-RED-08-2017-039,"3,276.00",REDACTED - PAYMENT TO INDIVIDUAL
Regeneration and Local Services,Technical Services,Supplies and Services,304358,Equipment and Materials,04-Aug-2017,3318931-2878,872.00,REUBEN SMITH (PLANT HIRE) LTD.
Regeneration and Local Services,Direct Services,Transport,210057,Repair and Maintenance of Vehicles,04-Aug-2017,3318933-771991,610.72,RICKERBY LTD.
Regeneration and Local Services,Economic Development and Housing,Supplies and Services,384199,Miscellaneous Expenses,04-Aug-2017,3318960-860338,"1,377.00",SP SERVICES (UK) LTD.
Regeneration and Local Services,Spatial Policy Planning Assets & Environment,Premises,108099,Service Repairs and Maintenance,04-Aug-2017,3318968-11565,"7,659.79",STEADFAST SECURITY SYSTEMS LTD.
Regeneration and Local Services,Direct Services,Supplies and Services,338013,Services,04-Aug-2017,3318982-BAB35969,"1,125.00",THE BRITISH ASSESSMENT BUREAU.
Regeneration and Local Services,Economic Development and Housing,Supplies and Services,338066,Services,04-Aug-2017,3318988-TICEUK/1617-10,"3,000.00",THIS IS CREATIVE ENTERPRISE CIC.
Regeneration and Local Services,Direct Services,Supplies and Services,304221,Equipment and Materials,04-Aug-2017,3318993-111425,"2,560.00",TOMMY WARDLE.
Regeneration and Local Services,Direct Services,Supplies and Services,304221,Equipment and Materials,04-Aug-2017,3318993-111426,525.40,TOMMY WARDLE.
Regeneration and Local Services,Technical Services,Supplies and Services,304221,Equipment and Materials,04-Aug-2017,3319008-175314,906.70,TYNEDALE ROADSTONE LTD.
Regeneration and Local Services,Technical Services,Supplies and Services,304221,Equipment and Materials,04-Aug-2017,3319008-175315,"1,044.23",TYNEDALE ROADSTONE LTD.
Regeneration and Local Services,Technical Services,Supplies and Services,304221,Equipment and Materials,04-Aug-2017,3319008-175316,688.56,TYNEDALE ROADSTONE LTD.
Regeneration and Local Services,Technical Services,Supplies and Services,304221,Equipment and Materials,04-Aug-2017,3319008-175416,596.59,TYNEDALE ROADSTONE LTD.
Regeneration and Local Services,Technical Services,Supplies and Services,304221,Equipment and Materials,04-Aug-2017,3319008-175417,904.80,TYNEDALE ROADSTONE LTD.
Regeneration and Local Services,Culture & Sport,Supplies and Services,338047,Services,04-Aug-2017,3319011-22314159774-1,830.53,UNIVERSAL PICTURES INTERNATIONAL UK & EIRE LTD.
Regeneration and Local Services,Culture & Sport,Supplies and Services,338047,Services,04-Aug-2017,3319019-1614275,934.59,WALT DISNEY CO LTD.
Regeneration and Local Services,Direct Services,Transport,210057,Repair and Maintenance of Vehicles,04-Aug-2017,3319027-20661,730.00,WOODALL NICHOLSON LTD T/A MELLOR COACHCRAFT LTD.
Regeneration and Local Services,Technical Services,Supplies and Services,304358,Equipment and Materials,04-Aug-2017,3319034-6478,"1,018.75",YOULL CONSTRUCTION LTD.
Regeneration and Local Services,Technical Services,Supplies and Services,304358,Equipment and Materials,04-Aug-2017,3319034-6479,"1,760.00",YOULL CONSTRUCTION LTD.
Regeneration and Local Services,Technical Services,Supplies and Services,304358,Equipment and Materials,04-Aug-2017,3319034-6480,"1,689.00",YOULL CONSTRUCTION LTD.
Regeneration and Local Services,Technical Services,Supplies and Services,304358,Equipment and Materials,04-Aug-2017,3319034-6485,718.00,YOULL CONSTRUCTION LTD.
Regeneration and Local Services,Technical Services,Supplies and Services,304358,Equipment and Materials,04-Aug-2017,3319034-6494,"2,120.00",YOULL CONSTRUCTION LTD.
Regeneration and Local Services,Direct Services,Transport,210057,Repair and Maintenance of Vehicles,04-Aug-2017,3319035-110783,629.74,ZOELLER WASTE SYSTEMS LTD.
Transformation and Partnerships,Partnerships & Community Engagement Div.,Transport,235005,Public Transport,04-Aug-2017,3318809-FIUDW3,595.00,JOVIAL PRIVATE HIRE.
Transformation and Partnerships,Partnerships & Community Engagement Div.,Supplies and Services,384086,Miscellaneous Expenses,04-Aug-2017,3318939-VOUCHER17NB-BASH001,"1,740.00",ROYAL BRITISH LEGION SHILDON BRANCH.
Adult and Health Services,Head of Adults,Transport,230005,Contract Hire,07-Aug-2017,3319056-NCL07017,680.00,AIRPORT CARS DURHAM
Adult and Health Services,Commissioning inc Supporting People,Premises,145050,Cleaning and Domestic Supplies,07-Aug-2017,3319064-65099,"11,288.96",ANLABY OFFICE CLEANING SERVICES LTD.
Adult and Health Services,Commissioning inc Supporting People,Third Party Payments,478101,Purchase of Care,07-Aug-2017,3319079-AHS01504,"2,828.06",AUCKLAND HOME SOLUTIONS CIC.
Adult and Health Services,Head of Adults,Supplies and Services,338045,Services,07-Aug-2017,3319114-77844,"2,500.00",CARTWRIGHT KING SOLICITORS.
Adult and Health Services,Head of Adults,Transport,230005,Contract Hire,07-Aug-2017,3319202-67,728.00,EXTREME TAXI`S.
Adult and Health Services,Head of Adults,Third Party Payments,470101,Purchase of Care,07-Aug-2017,3319213-322,"11,000.00",FOREVER CARE.
Adult and Health Services,EnvironmentHealth & Consumer Protection,Supplies and Services,304259,Equipment and Materials,07-Aug-2017,3319239-2212,"1,012.00",HOWELL CUMMINGS CATERING EQUIPMENT LTD.
Adult and Health Services,Head of Adults,Transport,230005,Contract Hire,07-Aug-2017,3319242-232,598.40,I CLYDESDALE T/A BURNOPFIELD TAXIS.
Adult and Health Services,Head of Adults,Transport,230005,Contract Hire,07-Aug-2017,3319330-JK491,"1,470.00",MR JOHN KNIGHTON T/A JK TAXIS.
Adult and Health Services,Public Health,Third Party Payments,460803,Contract Payments,07-Aug-2017,3319436-2001958626,"2,289.00",SLIMMING WORLD.
Adult and Health Services,Public Health,Supplies and Services,338094,Services,07-Aug-2017,3319472-4695,554.50,THE DURHAM CENTRE LTD.
Children and Young Peoples Services,Head of Education,Transport,230007,Contract Hire,07-Aug-2017,3319040-JULY-01,"1,050.00",A & P TAXIS.
Children and Young Peoples Services,Head of Education,Transport,230009,Contract Hire,07-Aug-2017,3319040-JULY-03,675.00,A & P TAXIS.
Children and Young Peoples Services,Head of Education,Transport,230008,Contract Hire,07-Aug-2017,3319043-AA1403,"1,288.50",AA MINIBUS HIRE.
Children and Young Peoples Services,Head of Education,Transport,230008,Contract Hire,07-Aug-2017,3319043-AA1404,732.00,AA MINIBUS HIRE.
Children and Young Peoples Services,Head of Education,Transport,230008,Contract Hire,07-Aug-2017,3319044-V1/SA,"1,800.00",AABAT TAXIS.
Children and Young Peoples Services,Head of Education,Transport,230008,Contract Hire,07-Aug-2017,3319044-V11/SP,"1,800.00",AABAT TAXIS.
Children and Young Peoples Services,Head of Education,Transport,230012,Contract Hire,07-Aug-2017,3319044-V13/SS,960.00,AABAT TAXIS.
Children and Young Peoples Services,Head of Education,Transport,230006,Contract Hire,07-Aug-2017,3319044-V14/ST,"1,620.00",AABAT TAXIS.
Children and Young Peoples Services,Head of Education,Transport,230008,Contract Hire,07-Aug-2017,3319044-V15/SV,735.00,AABAT TAXIS.
Children and Young Peoples Services,Head of Education,Transport,230008,Contract Hire,07-Aug-2017,3319044-V16/SX,"2,700.00",AABAT TAXIS.
Children and Young Peoples Services,Head of Education,Transport,230008,Contract Hire,07-Aug-2017,3319044-V2/SB,"1,134.00",AABAT TAXIS.
Children and Young Peoples Services,Head of Education,Transport,230008,Contract Hire,07-Aug-2017,3319044-V3/SF,735.00,AABAT TAXIS.
Children and Young Peoples Services,Head of Education,Transport,230008,Contract Hire,07-Aug-2017,3319044-V4/SC,"1,425.00",AABAT TAXIS.
Children and Young Peoples Services,Head of Looked After Provision Permanence and Care Leavers,Transport,230005,Contract Hire,07-Aug-2017,3319044-V49/ZC,"1,500.00",AABAT TAXIS.
Children and Young Peoples Services,Head of Education,Transport,230008,Contract Hire,07-Aug-2017,3319044-V6/SH,"1,575.00",AABAT TAXIS.
Children and Young Peoples Services,Head of Education,Transport,230008,Contract Hire,07-Aug-2017,3319044-V7/SJ,"1,335.00",AABAT TAXIS.
Children and Young Peoples Services,Head of Education,Transport,230007,Contract Hire,07-Aug-2017,3319044-V8/SK,900.00,AABAT TAXIS.
Children and Young Peoples Services,Head of Early Help Assessment and Safeguarding,Transport,230005,Contract Hire,07-Aug-2017,3319044-W49/PL,540.00,AABAT TAXIS.
Children and Young Peoples Services,Head of Looked After Provision Permanence and Care Leavers,Transport,230005,Contract Hire,07-Aug-2017,3319044-W74/ZM,805.00,AABAT TAXIS.
Children and Young Peoples Services,Head of Early Help Assessment and Safeguarding,Transport,230005,Contract Hire,07-Aug-2017,3319044-X84/ZF,770.00,AABAT TAXIS.
Children and Young Peoples Services,Head of Early Help Assessment and Safeguarding,Transport,230005,Contract Hire,07-Aug-2017,3319044-X85/ZJ,"2,494.00",AABAT TAXIS.
Children and Young Peoples Services,Head of Looked After Provision Permanence and Care Leavers,Transport,230005,Contract Hire,07-Aug-2017,3319044-X88/ZH,500.00,AABAT TAXIS.
Children and Young Peoples Services,Head of Looked After Provision Permanence and Care Leavers,Transport,230005,Contract Hire,07-Aug-2017,3319044-X89/ZC,680.00,AABAT TAXIS.
Children and Young Peoples Services,Head of Early Help Assessment and Safeguarding,Transport,230005,Contract Hire,07-Aug-2017,3319044-X90/ZA,780.00,AABAT TAXIS.
Children and Young Peoples Services,Head of Early Help Assessment and Safeguarding,Transport,230005,Contract Hire,07-Aug-2017,3319044-Y70/ZM,665.00,AABAT TAXIS.
Children and Young Peoples Services,Head of Education,Transport,230008,Contract Hire,07-Aug-2017,3319046-O356,855.00,ABC & OUSTON CABS.
Children and Young Peoples Services,Head of Education,Transport,230012,Contract Hire,07-Aug-2017,3319046-O357,"1,260.00",ABC & OUSTON CABS.
Children and Young Peoples Services,Head of Education,Transport,230007,Contract Hire,07-Aug-2017,3319047-615,750.00,AC TAXIS.
Children and Young Peoples Services,Head of Education,Third Party Payments,440999,Other Third Party Payments,07-Aug-2017,3319059-YEI33/07/08/09,"17,015.99",AMACUS LTD.
Children and Young Peoples Services,Head of Education,Transport,230008,Contract Hire,07-Aug-2017,3319062-122,825.00,ANDY CABS.
Children and Young Peoples Services,Head of Education,Transport,230008,Contract Hire,07-Aug-2017,3319071-JULY2017-01,"1,380.00",ARMSTRONG`S TAXIS.
Children and Young Peoples Services,Head of Education,Transport,230012,Contract Hire,07-Aug-2017,3319071-JULY2017-03,567.00,ARMSTRONG`S TAXIS.
Children and Young Peoples Services,Head of Education,Transport,230007,Contract Hire,07-Aug-2017,3319076-589,742.50,AT TAXIS LTD.
Children and Young Peoples Services,Head of Education,Transport,230008,Contract Hire,07-Aug-2017,3319076-590,"1,080.40",AT TAXIS LTD.
Dedicated Schools Grant,Dedicated Schools Grant,Transport,230010,Contract Hire,07-Aug-2017,3319076-591,"1,185.00",AT TAXIS LTD.
Dedicated Schools Grant,Dedicated Schools Grant,Transport,230010,Contract Hire,07-Aug-2017,3319076-592,958.80,AT TAXIS LTD.
Children and Young Peoples Services,Head of Education,Transport,230008,Contract Hire,07-Aug-2017,3319077-DCC11JULY17,"1,740.00",ATLAS TAXIS BISHOP AUCKLAND.
Children and Young Peoples Services,Head of Education,Transport,230008,Contract Hire,07-Aug-2017,3319077-DCC13JULY17,"1,335.00",ATLAS TAXIS BISHOP AUCKLAND.
Children and Young Peoples Services,Head of Education,Transport,230008,Contract Hire,07-Aug-2017,3319077-DCC14JULY17,"1,425.00",ATLAS TAXIS BISHOP AUCKLAND.
Children and Young Peoples Services,Head of Education,Transport,230008,Contract Hire,07-Aug-2017,3319077-DCC7JULY17,"1,875.00",ATLAS TAXIS BISHOP AUCKLAND.
Children and Young Peoples Services,Head of Education,Transport,230008,Contract Hire,07-Aug-2017,3319081-210717,"1,624.20",AVALON TAXIS.
Children and Young Peoples Services,Head of Education,Transport,230012,Contract Hire,07-Aug-2017,3319089-SMITH/10JULY/17,"1,281.15",BEELINE PRIVATE HIRE.
Children and Young Peoples Services,Head of Education,Transport,230008,Contract Hire,07-Aug-2017,3319089-SMITH/JULY17,"1,054.95",BEELINE PRIVATE HIRE.
Children and Young Peoples Services,Head of Education,Transport,230008,Contract Hire,07-Aug-2017,3319109-BIL0107,"1,340.25",CA MUSGROVE.
Children and Young Peoples Services,Head of Early Help Assessment and Safeguarding,Transport,230005,Contract Hire,07-Aug-2017,3319130-CLUB1717E,610.00,CLUBMAN CABS.
Children and Young Peoples Services,Head of Early Help Assessment and Safeguarding,Transport,230005,Contract Hire,07-Aug-2017,3319146-6701,677.18,CROFT BUSINESS SERVICES (UK) LTD T/A CROFT TAXIS.
Children and Young Peoples Services,Head of Early Help Assessment and Safeguarding,Transport,230005,Contract Hire,07-Aug-2017,3319146-6991,823.37,CROFT BUSINESS SERVICES (UK) LTD T/A CROFT TAXIS.
Children and Young Peoples Services,Head of Early Help Assessment and Safeguarding,Transport,230005,Contract Hire,07-Aug-2017,3319146-INV-100238,717.32,CROFT BUSINESS SERVICES (UK) LTD T/A CROFT TAXIS.
Children and Young Peoples Services,Head of Early Help Assessment and Safeguarding,Transport,230005,Contract Hire,07-Aug-2017,3319146-INV-100263,521.67,CROFT BUSINESS SERVICES (UK) LTD T/A CROFT TAXIS.
Children and Young Peoples Services,Head of Education,Transport,230008,Contract Hire,07-Aug-2017,3319154-1534,"1,035.00",DA TAXIS.
Children and Young Peoples Services,Head of Education,Transport,230008,Contract Hire,07-Aug-2017,3319154-1537,"1,062.00",DA TAXIS.
Children and Young Peoples Services,Head of Education,Transport,230008,Contract Hire,07-Aug-2017,3319155-234,"1,200.00",DA TRAVEL.
Children and Young Peoples Services,Head of Education,Transport,230008,Contract Hire,07-Aug-2017,3319162-3160,"1,220.85",DAVES MINIBUSES.
Children and Young Peoples Services,Head of Education,Transport,230008,Contract Hire,07-Aug-2017,3319162-3162,"1,500.00",DAVES MINIBUSES.
Dedicated Schools Grant,Dedicated Schools Grant,Third Party Payments,440080,Other Third Party Payments,07-Aug-2017,3319169-012/18/1204,"7,250.86",DISC LTD.
Children and Young Peoples Services,Head of Education,Transport,230008,Contract Hire,07-Aug-2017,3319198-E014/0717,"1,198.50",ELLIOTTS OF TRIMDON.
Children and Young Peoples Services,Head of Education,Transport,230008,Contract Hire,07-Aug-2017,3319202-65,615.00,EXTREME TAXI`S.
Children and Young Peoples Services,Head of Education,Transport,230007,Contract Hire,07-Aug-2017,3319234-11934,"1,942.50",HODGSONS COACH OPERATORS LTD.
Children and Young Peoples Services,Head of Education,Transport,230008,Contract Hire,07-Aug-2017,3319237-INV164,975.00,HORNDALE TAXIS LTD.
Dedicated Schools Grant,Dedicated Schools Grant,Third Party Payments,425005,Rendered by Voluntary Organisations,07-Aug-2017,3319241-4140000673,"17,195.66",HURWORTH HOUSE PRIORY.
Dedicated Schools Grant,Dedicated Schools Grant,Third Party Payments,425005,Rendered by Voluntary Organisations,07-Aug-2017,3319241-4140000722,"31,471.00",HURWORTH HOUSE PRIORY.
Children and Young Peoples Services,Head of Education,Transport,230008,Contract Hire,07-Aug-2017,3319261-1160,"1,039.95",JDS PRIVATE HIRE DURHAM.
Children and Young Peoples Services,Head of Education,Transport,230008,Contract Hire,07-Aug-2017,3319261-1166,"1,800.00",JDS PRIVATE HIRE DURHAM.
Children and Young Peoples Services,Head of Education,Transport,230007,Contract Hire,07-Aug-2017,3319262-2669,"1,574.85",JEFF ANDERSON COACHES LTD.
Children and Young Peoples Services,Head of Education,Transport,230007,Contract Hire,07-Aug-2017,3319262-2670,"1,409.85",JEFF ANDERSON COACHES LTD.
Children and Young Peoples Services,Head of Education,Transport,230009,Contract Hire,07-Aug-2017,3319270-723111-20/7/17,"1,120.00",JOVIAL PRIVATE HIRE.
Children and Young Peoples Services,Head of Education,Transport,230008,Contract Hire,07-Aug-2017,3319270-M03633,735.00,JOVIAL PRIVATE HIRE.
Children and Young Peoples Services,Head of Education,Transport,230008,Contract Hire,07-Aug-2017,3319270-N03033,"1,245.00",JOVIAL PRIVATE HIRE.
Children and Young Peoples Services,Head of Education,Transport,230008,Contract Hire,07-Aug-2017,3319282-KW768,825.00,KWIK CABS.
Children and Young Peoples Services,Head of Looked After Provision Permanence and Care Leavers,Premises,155001,Insurance of Premises,07-Aug-2017,3319287-1241-17/18,"1,401.40",LANGLEY MOOR B3 LTD.
Children and Young Peoples Services,Head of Education,Construction Work,908105,Construction work,07-Aug-2017,3319300-53283,620.00,LUCION ENVIRONMENTAL LLP LTD.
Children and Young Peoples Services,Head of Education,Transport,230006,Contract Hire,07-Aug-2017,3319302-32,"1,050.00",MALCOLM CARR T/A CARLY CABS.
Children and Young Peoples Services,Head of Education,Transport,230007,Contract Hire,07-Aug-2017,3319304-061703,760.00,MARK & JOHN CHISHOLM T/A (CHEVRON).
Dedicated Schools Grant,Dedicated Schools Grant,Transport,230010,Contract Hire,07-Aug-2017,3319304-071701,"1,140.00",MARK & JOHN CHISHOLM T/A (CHEVRON).
Children and Young Peoples Services,Head of Education,Transport,230007,Contract Hire,07-Aug-2017,3319304-071703,570.00,MARK & JOHN CHISHOLM T/A (CHEVRON).
Children and Young Peoples Services,Head of Education,Third Party Payments,440999,Other Third Party Payments,07-Aug-2017,3319310-1316,"1,150.00",MBC CERAMICS.
Children and Young Peoples Services,Head of Education,Transport,230007,Contract Hire,07-Aug-2017,3319314-0088,600.00,MICKS TAXIS - MURTON.
Children and Young Peoples Services,Head of Education,Transport,230008,Contract Hire,07-Aug-2017,3319323-748,"1,740.00",MOLLYS TAXIS.
Children and Young Peoples Services,Head of Education,Transport,230008,Contract Hire,07-Aug-2017,3319323-749,"1,950.00",MOLLYS TAXIS.
Children and Young Peoples Services,Head of Education,Transport,230008,Contract Hire,07-Aug-2017,3319327-0304858,"1,729.05",MR GN ROBBINS T/A GNR MINIBUS HIRE.
Dedicated Schools Grant,Dedicated Schools Grant,Transport,230010,Contract Hire,07-Aug-2017,3319328-135-A-8208,"1,275.00",REDACTED - PAYMENT TO INDIVIDUAL
Children and Young Peoples Services,Head of Education,Transport,230008,Contract Hire,07-Aug-2017,3319328-136-B83-09,"1,437.60",REDACTED - PAYMENT TO INDIVIDUAL
Children and Young Peoples Services,Head of Education,Transport,230008,Contract Hire,07-Aug-2017,3319333-AA384,"1,956.15",REDACTED - PAYMENT TO INDIVIDUAL
Children and Young Peoples Services,Head of Education,Transport,230008,Contract Hire,07-Aug-2017,3319371-SC-121,"1,425.00",PAUL BURRELL T/A PAUL BURRELL TAXIS.
Children and Young Peoples Services,Head of Education,Construction Work,908105,Construction work,07-Aug-2017,3319397-272294,653.60,QUICKSILVER MOVING & STORAGE.
Children and Young Peoples Services,Head of Education,Transport,230007,Contract Hire,07-Aug-2017,3319408-1102,570.00,ROAD RUNNERS (NE) LTD.
Children and Young Peoples Services,Head of Education,Transport,230008,Contract Hire,07-Aug-2017,3319408-1104,"1,110.00",ROAD RUNNERS (NE) LTD.
Children and Young Peoples Services,Head of Education,Transport,230006,Contract Hire,07-Aug-2017,3319408-1107,810.00,ROAD RUNNERS (NE) LTD.
Children and Young Peoples Services,Head of Education,Transport,230008,Contract Hire,07-Aug-2017,3319408-1117,"1,125.00",ROAD RUNNERS (NE) LTD.
Children and Young Peoples Services,Head of Education,Transport,230008,Contract Hire,07-Aug-2017,3319408-1122,"1,830.00",ROAD RUNNERS (NE) LTD.
Children and Young Peoples Services,Head of Education,Transport,230007,Contract Hire,07-Aug-2017,3319448-21958,510.00,STAR CABS.
Children and Young Peoples Services,Head of Education,Transport,230008,Contract Hire,07-Aug-2017,3319458-B897,"1,080.00",TALBOTS TRAVEL LTD.
Children and Young Peoples Services,Head of Looked After Provision Permanence and Care Leavers,Third Party Payments,486044,Service Level Agreements,07-Aug-2017,3319466-4810009988,"4,536.92",TEES ESK & WEAR VALLEYS NHS FOUNDATION TRUST.
Children and Young Peoples Services,Head of Looked After Provision Permanence and Care Leavers,Third Party Payments,486044,Service Level Agreements,07-Aug-2017,3319466-4810010201,"4,536.92",TEES ESK & WEAR VALLEYS NHS FOUNDATION TRUST.
Children and Young Peoples Services,Head of Education,Income,740299,Other Income,07-Aug-2017,3319500-CAS-08-2017-033,"4,099.08",UNIVERSITY OF DURHAM DAY NURSERY.
Children and Young Peoples Services,Head of Education,Transport,230007,Contract Hire,07-Aug-2017,3319510-5933,"1,012.50",WEARDALE PRIVATE HIRE.
Resources,Legal & Democratic Services,Supplies and Services,338042,Services,07-Aug-2017,3319167-327439,"3,150.00",DERE STREET BARRISTERS.
Resources,Corporate Finance,Employees,040149,Recruitment Instruction and Training,07-Aug-2017,3319200-INV-0078,835.00,EMILY SWEETMAN LTD.
Resources,Digital and Customer Services,Supplies and Services,304303,Equipment and Materials,07-Aug-2017,3319247-SIN410154,"3,646.00",INFORMATION & DATA NETWORK SUPPLIES LTD (IDN).
Resources,Digital and Customer Services,Supplies and Services,344137,Telephones,07-Aug-2017,3319301-12062306,"10,549.17",MAINTEL EUROPE LTD.
Resources,Digital and Customer Services,Supplies and Services,304040,Equipment and Materials,07-Aug-2017,3319394-6286195,"2,050.00",PUBLIC HEALTH ENGLAND (PHE).
Resources,Legal & Democratic Services,Supplies and Services,340001,Postages,07-Aug-2017,3319412-9054711773,"1,109.07",ROYAL MAIL GROUP PLC.
Resources,Digital and Customer Services,Vehicles Equipment Furniture and Fittings,912701,Computer equipment,07-Aug-2017,3319517-BR83624,"1,388.08",XMA LTD.
Regeneration and Local Services,Technical Services,Stock,926900,Stock in hand-Inventory system,07-Aug-2017,3319045-91647768,"1,558.00",ABB LTD.
Regeneration and Local Services,Culture & Sport,Supplies and Services,304259,Equipment and Materials,07-Aug-2017,3319048-3459,"12,954.28",ACROL AIR CONDITIONING CO LTD.
Regeneration and Local Services,Technical Services,Supplies and Services,304221,Equipment and Materials,07-Aug-2017,3319055-25167819,"1,238.95",AGGREGATE INDUSTRIES UK LTD.
Regeneration and Local Services,Technical Services,Supplies and Services,304221,Equipment and Materials,07-Aug-2017,3319055-25167820,"1,157.19",AGGREGATE INDUSTRIES UK LTD.
Regeneration and Local Services,Technical Services,Supplies and Services,304221,Equipment and Materials,07-Aug-2017,3319055-25167821,"1,694.40",AGGREGATE INDUSTRIES UK LTD.
Regeneration and Local Services,Technical Services,Supplies and Services,304221,Equipment and Materials,07-Aug-2017,3319055-25175049,995.93,AGGREGATE INDUSTRIES UK LTD.
Regeneration and Local Services,Technical Services,Supplies and Services,304221,Equipment and Materials,07-Aug-2017,3319055-25175050,897.13,AGGREGATE INDUSTRIES UK LTD.
Regeneration and Local Services,Technical Services,Supplies and Services,304221,Equipment and Materials,07-Aug-2017,3319055-25175051,"1,667.32",AGGREGATE INDUSTRIES UK LTD.
Regeneration and Local Services,Technical Services,Supplies and Services,304221,Equipment and Materials,07-Aug-2017,3319055-25175052,"1,003.26",AGGREGATE INDUSTRIES UK LTD.
Regeneration and Local Services,Culture & Sport,Supplies and Services,384199,Miscellaneous Expenses,07-Aug-2017,3319073-1194,"3,262.50",ASH COOPER FREELANCE SERVICES.
Regeneration and Local Services,Culture & Sport,Supplies and Services,312013,Newspapers Books and Periodicals,07-Aug-2017,3319075-5456095,588.08,ASKEWS & HOLTS LIBRARY SERVICES LTD.
Regeneration and Local Services,Culture & Sport,Supplies and Services,312013,Newspapers Books and Periodicals,07-Aug-2017,3319075-5456151,529.84,ASKEWS & HOLTS LIBRARY SERVICES LTD.
Regeneration and Local Services,Culture & Sport,Supplies and Services,312013,Newspapers Books and Periodicals,07-Aug-2017,3319075-5456178,622.09,ASKEWS & HOLTS LIBRARY SERVICES LTD.
Regeneration and Local Services,Direct Services,Third Party Payments,430100,Rendered by Private Contractors,07-Aug-2017,3319083-1698,"2,810.00",AWR ROOFING & ALUMIN RAINWATER SYSTEMS LTD.
Regeneration and Local Services,Economic Development and Housing,Supplies and Services,338066,Services,07-Aug-2017,3319097-6054,"21,881.73",BLOOM PROCUREMENT SERVICES LTD (FORMERLY NEPRO LTD).
Regeneration and Local Services,Culture & Sport,Premises,108099,Service Repairs and Maintenance,07-Aug-2017,3319110-DCCW150717,"3,000.00",CAMPBELL SINCLAIR T/A NORTH EASTERN TREE CO.
Regeneration and Local Services,Culture & Sport,Supplies and Services,324001,Provisions,07-Aug-2017,3319112-843985938,604.17,CARLSBERG UK LTD.
Regeneration and Local Services,Direct Services,Third Party Payments,430100,Rendered by Private Contractors,07-Aug-2017,3319117-2930,944.72,CATHEDRAL LOCK & SAFE SERVICES LTD.
Regeneration and Local Services,Technical Services,Supplies and Services,304221,Equipment and Materials,07-Aug-2017,3319119-3009772761,523.80,CEMEX UK MATERIALS LTD.
Regeneration and Local Services,Direct Services,Third Party Payments,430100,Rendered by Private Contractors,07-Aug-2017,3319129-8118455,"1,345.75",CLOVER CONTROLS LTD.
Regeneration and Local Services,Direct Services,Third Party Payments,430100,Rendered by Private Contractors,07-Aug-2017,3319129-8118456,"3,207.00",CLOVER CONTROLS LTD.
Regeneration and Local Services,Culture & Sport,Supplies and Services,324001,Provisions,07-Aug-2017,3319133-9103750799,985.84,COCA-COLA EUROPEAN PARTNERS GREAT BRITAIN LTD (CCEP).
Regeneration and Local Services,Culture & Sport,Third Party Payments,430100,Rendered by Private Contractors,07-Aug-2017,3319137-PSINV02216,"29,507.74",COMPETITION LINE UK LTD.
Regeneration and Local Services,Culture & Sport,Third Party Payments,430100,Rendered by Private Contractors,07-Aug-2017,3319137-PSINV02217,"7,691.50",COMPETITION LINE UK LTD.
Regeneration and Local Services,Culture & Sport,Income,720810,Fees and Charges,07-Aug-2017,3319137-PSINV02218,"26,903.77",COMPETITION LINE UK LTD.
Regeneration and Local Services,Culture & Sport,Income,720810,Fees and Charges,07-Aug-2017,3319137-PSINV02219,"20,679.49",COMPETITION LINE UK LTD.
Regeneration and Local Services,Culture & Sport,Income,720810,Fees and Charges,07-Aug-2017,3319137-PSINV02220,"4,864.99",COMPETITION LINE UK LTD.
Regeneration and Local Services,Economic Development and Housing,Supplies and Services,384199,Miscellaneous Expenses,07-Aug-2017,3319147-745,"3,030.00",CROOK HALL & GARDENS.
Regeneration and Local Services,Culture & Sport,Supplies and Services,384199,Miscellaneous Expenses,07-Aug-2017,3319175-742,"2,183.33",DURHAM CATHEDRAL LTD.
Regeneration and Local Services,Culture & Sport,Supplies and Services,384199,Miscellaneous Expenses,07-Aug-2017,3319175-743,"2,725.90",DURHAM CATHEDRAL LTD.
Regeneration and Local Services,Culture & Sport,Supplies and Services,384199,Miscellaneous Expenses,07-Aug-2017,3319185-K61317,"2,397.00",DURHAM UNIVERSITY.
Regeneration and Local Services,Economic Development and Housing,Supplies and Services,384871,Miscellaneous Expenses,07-Aug-2017,3319191-143,"1,100.00",ECS GAS TRAINING NORTH EAST LTD.
Regeneration and Local Services,Direct Services,Third Party Payments,430100,Rendered by Private Contractors,07-Aug-2017,3319204-3669,"1,260.00",F WARREN (ELECTRICAL) LTD.
Regeneration and Local Services,Direct Services,Third Party Payments,430100,Rendered by Private Contractors,07-Aug-2017,3319204-3671,620.00,F WARREN (ELECTRICAL) LTD.
Regeneration and Local Services,Direct Services,Supplies and Services,304221,Equipment and Materials,07-Aug-2017,3319204-3681,"3,958.00",F WARREN (ELECTRICAL) LTD.
Regeneration and Local Services,Direct Services,Supplies and Services,304221,Equipment and Materials,07-Aug-2017,3319204-3682,895.00,F WARREN (ELECTRICAL) LTD.
Regeneration and Local Services,Technical Services,Supplies and Services,304357,Equipment and Materials,07-Aug-2017,3319217-DCC160717,"16,482.93",GAP GROUP LTD.
Regeneration and Local Services,Direct Services,Supplies and Services,304221,Equipment and Materials,07-Aug-2017,3319219-812708,"4,016.00",GARTEC LTD.
Regeneration and Local Services,Culture & Sport,Premises,145023,Cleaning and Domestic Supplies,07-Aug-2017,3319225-06/652893,800.36,GREENHAM TRADING LTD.
Regeneration and Local Services,Direct Services,Premises,145023,Cleaning and Domestic Supplies,07-Aug-2017,3319225-06/654311,704.00,GREENHAM TRADING LTD.
Regeneration and Local Services,Technical Services,Third Party Payments,430100,Rendered by Private Contractors,07-Aug-2017,3319231-2674,"6,014.55",HIGHWAY CONSTRUCTION SERVICES LTD.
Regeneration and Local Services,Technical Services,Employees,040149,Recruitment Instruction and Training,07-Aug-2017,3319245-VIO314,"1,250.00",IF U CARE SHARE.
Regeneration and Local Services,Technical Services,Stock,926900,Stock in hand-Inventory system,07-Aug-2017,3319250-591713,"2,424.80",INSTARMAC GROUP PLC.
Regeneration and Local Services,Technical Services,Construction Work,908108,Capital - Surface Dressing,07-Aug-2017,3319255-20593,"6,832.45",JACK COUPE & SONS LTD T/A COUPE LINE.
Regeneration and Local Services,Direct Services,Third Party Payments,430100,Rendered by Private Contractors,07-Aug-2017,3319256-31128,"8,457.08",JACK TIGHE DECORATING LTD.
Regeneration and Local Services,Culture & Sport,Supplies and Services,304083,Equipment and Materials,07-Aug-2017,3319260-34998,620.00,JBL SERVICES LTD.
Regeneration and Local Services,Culture & Sport,Supplies and Services,304259,Equipment and Materials,07-Aug-2017,3319271-856680,748.87,JP LENNARD LTD.
Regeneration and Local Services,Direct Services,Supplies and Services,304221,Equipment and Materials,07-Aug-2017,3319273-BII230264,"1,820.40",JT DOVE LTD.
Regeneration and Local Services,Technical Services,Supplies and Services,304221,Equipment and Materials,07-Aug-2017,3319273-BII230279,626.20,JT DOVE LTD.
Regeneration and Local Services,Transport and Contracted Services,Supplies and Services,304245,Equipment and Materials,07-Aug-2017,3319274-14566,"5,740.00",JUST CHECKING LTD.
Regeneration and Local Services,Technical Services,Supplies and Services,304221,Equipment and Materials,07-Aug-2017,3319275-10404,665.07,KEN THOMAS (SITE CLEARANCE LTD).
Regeneration and Local Services,Technical Services,Supplies and Services,304221,Equipment and Materials,07-Aug-2017,3319275-10405,581.49,KEN THOMAS (SITE CLEARANCE LTD).
Regeneration and Local Services,Technical Services,Third Party Payments,430100,Rendered by Private Contractors,07-Aug-2017,3319283-1969,"57,716.14",L & G PLANT HIRE & SALES LTD.
Regeneration and Local Services,Economic Development and Housing,Premises,115125,Repairs to Grounds,07-Aug-2017,3319338-DL/2123,644.50,N & N SECURITY FENCING LTD.
Regeneration and Local Services,Direct Services,Third Party Payments,430100,Rendered by Private Contractors,07-Aug-2017,3319339-632028,"4,948.00",NATIONWIDE CHIMNEY COMPONENTS LTD.
Regeneration and Local Services,Direct Services,Third Party Payments,430100,Rendered by Private Contractors,07-Aug-2017,3319339-641909,"1,920.00",NATIONWIDE CHIMNEY COMPONENTS LTD.
Regeneration and Local Services,Direct Services,Third Party Payments,430100,Rendered by Private Contractors,07-Aug-2017,3319339-641933,"4,948.00",NATIONWIDE CHIMNEY COMPONENTS LTD.
Regeneration and Local Services,Direct Services,Supplies and Services,304083,Equipment and Materials,07-Aug-2017,3319340-41495,"3,420.00",NATIONWIDE RETAIL SYSTEMS LTD.
Regeneration and Local Services,Culture & Sport,Supplies and Services,312013,Newspapers Books and Periodicals,07-Aug-2017,3319346-005199,577.94,NEWSMARKET.
Regeneration and Local Services,Spatial Policy Planning Assets & Environment,Supplies and Services,336005,Advertising,07-Aug-2017,3319347-20935659,566.97,NEWSQUEST (YORKSHIRE & NORTH EAST) LTD.
Regeneration and Local Services,Culture & Sport,Supplies and Services,338047,Services,07-Aug-2017,3319353-INV-2424,833.33,NORTHERN BALLET THEATRE LTD.
Regeneration and Local Services,Direct Services,Supplies and Services,304221,Equipment and Materials,07-Aug-2017,3319355-2420676,550.71,NORTHERN TOOLS & ACCESSORIES.
Regeneration and Local Services,Direct Services,Transport,215022,Running Costs of Vehicles,07-Aug-2017,3319361-256878,"2,231.43",OIL NRG LTD.
Regeneration and Local Services,Direct Services,Transport,215005,Running Costs of Vehicles,07-Aug-2017,3319361-256879,"4,582.05",OIL NRG LTD.
Regeneration and Local Services,Direct Services,Transport,215022,Running Costs of Vehicles,07-Aug-2017,3319361-256880,"1,374.32",OIL NRG LTD.
Regeneration and Local Services,Direct Services,Transport,215005,Running Costs of Vehicles,07-Aug-2017,3319361-257023,"5,066.17",OIL NRG LTD.
Regeneration and Local Services,Direct Services,Transport,215005,Running Costs of Vehicles,07-Aug-2017,3319361-257026,"11,025.60",OIL NRG LTD.
Regeneration and Local Services,Direct Services,Supplies and Services,304221,Equipment and Materials,07-Aug-2017,3319368-XL205009,"1,023.07",PARK ELECTRICAL DISTRIBUTORS LTD.
Regeneration and Local Services,Technical Services,Stock,926900,Stock in hand-Inventory system,07-Aug-2017,3319368-XL205019,528.76,PARK ELECTRICAL DISTRIBUTORS LTD.
Regeneration and Local Services,Direct Services,Supplies and Services,304221,Equipment and Materials,07-Aug-2017,3319368-XL205041,736.00,PARK ELECTRICAL DISTRIBUTORS LTD.
Regeneration and Local Services,Technical Services,Stock,926900,Stock in hand-Inventory system,07-Aug-2017,3319368-XL205072,830.28,PARK ELECTRICAL DISTRIBUTORS LTD.
Regeneration and Local Services,Direct Services,Supplies and Services,304221,Equipment and Materials,07-Aug-2017,3319384-1738ADR951,"1,316.02",PLUMBING TRADE SUPPLIES LTD.
Regeneration and Local Services,Direct Services,Employees,040149,Recruitment Instruction and Training,07-Aug-2017,3319388-22880,"4,500.00",PPL TRAINING LTD.
Regeneration and Local Services,Economic Development and Housing,Supplies and Services,384700,Miscellaneous Expenses,07-Aug-2017,3319389-RED-08-2017-044,"1,500.00",PREMIER CARE HOMES LTD.
Regeneration and Local Services,Technical Services,Third Party Payments,430100,Rendered by Private Contractors,07-Aug-2017,3319391-145900,"33,038.78",PREMIER TRAFFIC MANAGEMENT LTD.
Regeneration and Local Services,Spatial Policy Planning Assets & Environment,Employees,040149,Recruitment Instruction and Training,07-Aug-2017,3319395-ICE459564,"3,416.00",QA LTD.
Regeneration and Local Services,Culture & Sport,Debtors,930178,Debtor - Consett Academy FM,07-Aug-2017,3319410-I/CONSETT45153,"13,931.35",ROBERTSON FACILITIES MANAGEMENT.
Regeneration and Local Services,Technical Services,Supplies and Services,304221,Equipment and Materials,07-Aug-2017,3319460-9036549162,678.00,TARMAC TRADING LTD.
Regeneration and Local Services,Technical Services,Supplies and Services,304221,Equipment and Materials,07-Aug-2017,3319460-9036555669,508.75,TARMAC TRADING LTD.
Regeneration and Local Services,Technical Services,Supplies and Services,304221,Equipment and Materials,07-Aug-2017,3319460-9036571293,567.78,TARMAC TRADING LTD.
Regeneration and Local Services,Culture & Sport,Supplies and Services,384199,Miscellaneous Expenses,07-Aug-2017,3319468-0257,"1,200.00",THE ASIAN PROJECT LTD.
Regeneration and Local Services,Direct Services,Supplies and Services,304040,Equipment and Materials,07-Aug-2017,3319469-BAB36553,"1,299.00",THE BRITISH ASSESSMENT BUREAU.
Regeneration and Local Services,Technical Services,Stock,926900,Stock in hand-Inventory system,07-Aug-2017,3319482-N/IN201385,"1,400.00",THOMAS OWEN & SONS (NEWCASTLE) LTD.
Regeneration and Local Services,Technical Services,Stock,926900,Stock in hand-Inventory system,07-Aug-2017,3319482-N/IN201391,"1,635.00",THOMAS OWEN & SONS (NEWCASTLE) LTD.
Regeneration and Local Services,Technical Services,Stock,926900,Stock in hand-Inventory system,07-Aug-2017,3319482-N/IN201392,"1,299.92",THOMAS OWEN & SONS (NEWCASTLE) LTD.
Regeneration and Local Services,Technical Services,Stock,926900,Stock in hand-Inventory system,07-Aug-2017,3319482-N/IN201420,"2,701.98",THOMAS OWEN & SONS (NEWCASTLE) LTD.
Regeneration and Local Services,Technical Services,Stock,926900,Stock in hand-Inventory system,07-Aug-2017,3319485-105591,610.00,TOFCO LTD.
Regeneration and Local Services,Direct Services,Supplies and Services,304259,Equipment and Materials,07-Aug-2017,3319496-194261,751.92,TUDOR (UK) LTD T/A TUDOR ENVIRONMENTAL.
Regeneration and Local Services,Technical Services,Supplies and Services,304221,Equipment and Materials,07-Aug-2017,3319497-175806,644.50,TYNEDALE ROADSTONE LTD.
Regeneration and Local Services,Technical Services,Supplies and Services,304221,Equipment and Materials,07-Aug-2017,3319497-175807,"1,038.00",TYNEDALE ROADSTONE LTD.
Regeneration and Local Services,Technical Services,Supplies and Services,304221,Equipment and Materials,07-Aug-2017,3319497-175808,840.45,TYNEDALE ROADSTONE LTD.
Regeneration and Local Services,Technical Services,Supplies and Services,304221,Equipment and Materials,07-Aug-2017,3319497-175862,898.15,TYNEDALE ROADSTONE LTD.
Regeneration and Local Services,Direct Services,Third Party Payments,430100,Rendered by Private Contractors,07-Aug-2017,3319507-43666,"1,982.50",W MARLEY AGRICULTURAL CONTRACTORS LTD.
Regeneration and Local Services,Direct Services,Supplies and Services,304259,Equipment and Materials,07-Aug-2017,3319513-44148,848.00,WILLOWCRETE MANUFACTURING COMPANY LTD (MFG).
Regeneration and Local Services,Direct Services,Supplies and Services,304221,Equipment and Materials,07-Aug-2017,3319515-44468587,976.65,WOLSELEY UK LTD.
Regeneration and Local Services,Direct Services,Supplies and Services,304221,Equipment and Materials,07-Aug-2017,3319515-44468588,824.21,WOLSELEY UK LTD.
Regeneration and Local Services,Technical Services,Stock,926900,Stock in hand-Inventory system,07-Aug-2017,3319515-44474004,652.08,WOLSELEY UK LTD.
Transformation and Partnerships,Partnerships & Community Engagement Div.,Supplies and Services,384086,Miscellaneous Expenses,07-Aug-2017,3319226-BLEG01-17MORS01-17,650.00,GREENSCAPE.
Transformation and Partnerships,Comms & Information Management,Supplies and Services,384199,Miscellaneous Expenses,07-Aug-2017,3319244-108540,855.00,IDOX SOFTWARE LTD.
Transformation and Partnerships,Comms & Information Management,Supplies and Services,338099,Services,07-Aug-2017,3319244-108542,512.00,IDOX SOFTWARE LTD.
Transformation and Partnerships,Partnerships & Community Engagement Div.,Supplies and Services,384086,Miscellaneous Expenses,07-Aug-2017,3319288-SHIA02-17STEW02-17,900.00,LEADGATE COMMUNITY ASSOCIATION.
Transformation and Partnerships,Comms & Information Management,Supplies and Services,336005,Advertising,07-Aug-2017,3319335-4100587323,"1,000.00",REDACTED - PAYMENT TO INDIVIDUAL
Transformation and Partnerships,Partnerships & Community Engagement Div.,Cap Exp on Grants & Other Financial Assistance (REFCUS),918004,Contributions to other bodies,07-Aug-2017,3319431-VOUCHER16NB-DCTY052,"14,394.82",SHINCLIFFE WOMEN`S INSTITUTE.
Adult and Health Services,Head of Adults,Third Party Payments,470101,Purchase of Care,08-Aug-2017,3320777-2392409,"6,031.16",3 RED ADMIRAL COURT.
Adult and Health Services,Head of Adults,Third Party Payments,470101,Purchase of Care,08-Aug-2017,3320778-2390166,"2,532.04",A CHARLES THOMAS (CARE) LTD.
Adult and Health Services,Head of Adults,Third Party Payments,470101,Purchase of Care,08-Aug-2017,3320778-2390167,"2,392.58",A CHARLES THOMAS (CARE) LTD.
Adult and Health Services,Head of Adults,Third Party Payments,470101,Purchase of Care,08-Aug-2017,3320778-2390168,"2,392.58",A CHARLES THOMAS (CARE) LTD.
Adult and Health Services,Head of Adults,Third Party Payments,470101,Purchase of Care,08-Aug-2017,3320778-2390170,"2,167.78",A CHARLES THOMAS (CARE) LTD.
Adult and Health Services,Head of Adults,Third Party Payments,470101,Purchase of Care,08-Aug-2017,3320778-2390171,"2,392.58",A CHARLES THOMAS (CARE) LTD.
Adult and Health Services,Head of Adults,Third Party Payments,470101,Purchase of Care,08-Aug-2017,3320778-2390172,"2,139.24",A CHARLES THOMAS (CARE) LTD.
Adult and Health Services,Head of Adults,Third Party Payments,470101,Purchase of Care,08-Aug-2017,3320778-2390173,"2,396.02",A CHARLES THOMAS (CARE) LTD.
Adult and Health Services,Head of Adults,Third Party Payments,470101,Purchase of Care,08-Aug-2017,3320778-2390174,"2,136.70",A CHARLES THOMAS (CARE) LTD.
Adult and Health Services,Head of Adults,Third Party Payments,470101,Purchase of Care,08-Aug-2017,3320778-2390175,"2,186.81",A CHARLES THOMAS (CARE) LTD.
Adult and Health Services,Head of Adults,Third Party Payments,470101,Purchase of Care,08-Aug-2017,3320778-2390176,"2,392.58",A CHARLES THOMAS (CARE) LTD.
Adult and Health Services,Head of Adults,Third Party Payments,470101,Purchase of Care,08-Aug-2017,3320778-2390177,"2,186.18",A CHARLES THOMAS (CARE) LTD.
Adult and Health Services,Head of Adults,Third Party Payments,470101,Purchase of Care,08-Aug-2017,3320778-2390178,"2,238.19",A CHARLES THOMAS (CARE) LTD.
Adult and Health Services,Head of Adults,Third Party Payments,470101,Purchase of Care,08-Aug-2017,3320778-2390179,840.41,A CHARLES THOMAS (CARE) LTD.
Adult and Health Services,Head of Adults,Third Party Payments,470101,Purchase of Care,08-Aug-2017,3320778-2390180,"2,392.58",A CHARLES THOMAS (CARE) LTD.
Adult and Health Services,Head of Adults,Third Party Payments,470101,Purchase of Care,08-Aug-2017,3320778-2390181,"2,521.24",A CHARLES THOMAS (CARE) LTD.
Adult and Health Services,Head of Adults,Third Party Payments,470101,Purchase of Care,08-Aug-2017,3320778-2390182,"2,184.27",A CHARLES THOMAS (CARE) LTD.
Adult and Health Services,Head of Adults,Third Party Payments,470101,Purchase of Care,08-Aug-2017,3320778-2390183,"2,150.02",A CHARLES THOMAS (CARE) LTD.
Adult and Health Services,Head of Adults,Third Party Payments,470101,Purchase of Care,08-Aug-2017,3320778-2390184,539.25,A CHARLES THOMAS (CARE) LTD.
Adult and Health Services,Head of Adults,Third Party Payments,470101,Purchase of Care,08-Aug-2017,3320778-2390185,"2,292.10",A CHARLES THOMAS (CARE) LTD.
Adult and Health Services,Head of Adults,Third Party Payments,470101,Purchase of Care,08-Aug-2017,3320778-2390186,"2,212.90",A CHARLES THOMAS (CARE) LTD.
Adult and Health Services,Head of Adults,Third Party Payments,470101,Purchase of Care,08-Aug-2017,3320778-2390187,"2,380.26",A CHARLES THOMAS (CARE) LTD.
Adult and Health Services,Head of Adults,Third Party Payments,470101,Purchase of Care,08-Aug-2017,3320778-2390188,"2,380.26",A CHARLES THOMAS (CARE) LTD.
Adult and Health Services,Head of Adults,Third Party Payments,470101,Purchase of Care,08-Aug-2017,3320778-2390189,"2,392.58",A CHARLES THOMAS (CARE) LTD.
Adult and Health Services,Head of Adults,Third Party Payments,470101,Purchase of Care,08-Aug-2017,3320778-2390190,"2,380.26",A CHARLES THOMAS (CARE) LTD.
Adult and Health Services,Head of Adults,Third Party Payments,470101,Purchase of Care,08-Aug-2017,3320778-2390191,"2,380.26",A CHARLES THOMAS (CARE) LTD.
Adult and Health Services,Head of Adults,Third Party Payments,470101,Purchase of Care,08-Aug-2017,3320778-2393811,534.81,A CHARLES THOMAS (CARE) LTD.
Adult and Health Services,Head of Adults,Third Party Payments,470101,Purchase of Care,08-Aug-2017,3320778-2394815,"1,324.00",A CHARLES THOMAS (CARE) LTD.
Adult and Health Services,Head of Adults,Third Party Payments,470101,Purchase of Care,08-Aug-2017,3320778-2394816,764.01,A CHARLES THOMAS (CARE) LTD.
Adult and Health Services,Head of Adults,Transport,230005,Contract Hire,08-Aug-2017,3320250-V18/AC,540.00,AABAT TAXIS.
Adult and Health Services,Head of Adults,Third Party Payments,470101,Purchase of Care,08-Aug-2017,3320779-2392856,"1,178.67",ABBEYVALE CARE CENTRE.
Adult and Health Services,Head of Adults,Third Party Payments,470101,Purchase of Care,08-Aug-2017,3320779-2392859,"1,116.06",ABBEYVALE CARE CENTRE.
Adult and Health Services,Head of Adults,Third Party Payments,470101,Purchase of Care,08-Aug-2017,3320779-2392860,"2,139.24",ABBEYVALE CARE CENTRE.
Adult and Health Services,Head of Adults,Third Party Payments,470101,Purchase of Care,08-Aug-2017,3320779-2392861,"1,662.23",ABBEYVALE CARE CENTRE.
Adult and Health Services,Head of Adults,Third Party Payments,470101,Purchase of Care,08-Aug-2017,3320779-2392862,"2,258.17",ABBEYVALE CARE CENTRE.
Adult and Health Services,Head of Adults,Third Party Payments,471101,Purchase of Care,08-Aug-2017,3320779-2392864,"2,218.20",ABBEYVALE CARE CENTRE.
Adult and Health Services,Head of Adults,Third Party Payments,470101,Purchase of Care,08-Aug-2017,3320779-2392866,"2,294.77",ABBEYVALE CARE CENTRE.
Adult and Health Services,Head of Adults,Third Party Payments,471101,Purchase of Care,08-Aug-2017,3320779-2392867,"2,218.20",ABBEYVALE CARE CENTRE.
Adult and Health Services,Head of Adults,Third Party Payments,471101,Purchase of Care,08-Aug-2017,3320779-2392868,"2,218.20",ABBEYVALE CARE CENTRE.
Adult and Health Services,Head of Adults,Third Party Payments,470101,Purchase of Care,08-Aug-2017,3320779-2392869,"2,139.24",ABBEYVALE CARE CENTRE.
Adult and Health Services,Head of Adults,Third Party Payments,470101,Purchase of Care,08-Aug-2017,3320779-2392870,"2,139.24",ABBEYVALE CARE CENTRE.
Adult and Health Services,Head of Adults,Third Party Payments,471101,Purchase of Care,08-Aug-2017,3320779-2392871,"2,218.20",ABBEYVALE CARE CENTRE.
Adult and Health Services,Head of Adults,Third Party Payments,470101,Purchase of Care,08-Aug-2017,3320779-2392872,"2,139.24",ABBEYVALE CARE CENTRE.
Adult and Health Services,Head of Adults,Third Party Payments,470101,Purchase of Care,08-Aug-2017,3320779-2392873,"2,139.24",ABBEYVALE CARE CENTRE.
Adult and Health Services,Head of Adults,Third Party Payments,471101,Purchase of Care,08-Aug-2017,3320779-2392874,"2,218.20",ABBEYVALE CARE CENTRE.
Adult and Health Services,Head of Adults,Third Party Payments,470101,Purchase of Care,08-Aug-2017,3320779-2392875,"1,390.00",ABBEYVALE CARE CENTRE.
Adult and Health Services,Head of Adults,Third Party Payments,470101,Purchase of Care,08-Aug-2017,3320779-2392876,"2,139.24",ABBEYVALE CARE CENTRE.
Adult and Health Services,Head of Adults,Third Party Payments,471101,Purchase of Care,08-Aug-2017,3320779-2392877,"2,218.20",ABBEYVALE CARE CENTRE.
Adult and Health Services,Head of Adults,Third Party Payments,471101,Purchase of Care,08-Aug-2017,3320779-2392878,"1,109.12",ABBEYVALE CARE CENTRE.
Adult and Health Services,Head of Adults,Third Party Payments,470101,Purchase of Care,08-Aug-2017,3320779-2392879,"2,500.00",ABBEYVALE CARE CENTRE.
Adult and Health Services,Head of Adults,Third Party Payments,471101,Purchase of Care,08-Aug-2017,3320779-2392880,"2,218.20",ABBEYVALE CARE CENTRE.
Adult and Health Services,Head of Adults,Third Party Payments,471101,Purchase of Care,08-Aug-2017,3320779-2392881,"2,218.20",ABBEYVALE CARE CENTRE.
Adult and Health Services,Head of Adults,Third Party Payments,471101,Purchase of Care,08-Aug-2017,3320779-2392882,"2,539.28",ABBEYVALE CARE CENTRE.
Adult and Health Services,Head of Adults,Third Party Payments,470101,Purchase of Care,08-Aug-2017,3320779-2392883,"2,139.24",ABBEYVALE CARE CENTRE.
Adult and Health Services,Head of Adults,Third Party Payments,471101,Purchase of Care,08-Aug-2017,3320779-2393784,"1,267.54",ABBEYVALE CARE CENTRE.
Adult and Health Services,Head of Adults,Third Party Payments,470101,Purchase of Care,08-Aug-2017,3320780-2393462,"1,967.72",ACOMB COURT.
Adult and Health Services,Head of Adults,Third Party Payments,470101,Purchase of Care,08-Aug-2017,3320781-2390751,"2,028.24",ACORN GRANGE NURSING HOME.
Adult and Health Services,Head of Adults,Third Party Payments,471101,Purchase of Care,08-Aug-2017,3320781-2390752,"1,954.42",ACORN GRANGE NURSING HOME.
Adult and Health Services,Head of Adults,Third Party Payments,471101,Purchase of Care,08-Aug-2017,3320781-2390753,"2,200.74",ACORN GRANGE NURSING HOME.
Adult and Health Services,Head of Adults,Third Party Payments,471101,Purchase of Care,08-Aug-2017,3320781-2390754,"2,353.57",ACORN GRANGE NURSING HOME.
Adult and Health Services,Head of Adults,Third Party Payments,471101,Purchase of Care,08-Aug-2017,3320781-2390755,"2,346.17",ACORN GRANGE NURSING HOME.
Adult and Health Services,Head of Adults,Third Party Payments,470101,Purchase of Care,08-Aug-2017,3320781-2390757,"2,176.44",ACORN GRANGE NURSING HOME.
Adult and Health Services,Head of Adults,Third Party Payments,471101,Purchase of Care,08-Aug-2017,3320781-2390758,"2,347.19",ACORN GRANGE NURSING HOME.
Adult and Health Services,Head of Adults,Third Party Payments,470101,Purchase of Care,08-Aug-2017,3320781-2390759,"2,076.24",ACORN GRANGE NURSING HOME.
Adult and Health Services,Head of Adults,Third Party Payments,471101,Purchase of Care,08-Aug-2017,3320781-2390760,"1,052.36",ACORN GRANGE NURSING HOME.
Adult and Health Services,Head of Adults,Third Party Payments,471101,Purchase of Care,08-Aug-2017,3320781-2390761,"2,114.73",ACORN GRANGE NURSING HOME.
Adult and Health Services,Head of Adults,Third Party Payments,471101,Purchase of Care,08-Aug-2017,3320781-2390762,"2,116.16",ACORN GRANGE NURSING HOME.
Adult and Health Services,Head of Adults,Third Party Payments,471101,Purchase of Care,08-Aug-2017,3320781-2390763,"2,308.59",ACORN GRANGE NURSING HOME.
Adult and Health Services,Head of Adults,Third Party Payments,471101,Purchase of Care,08-Aug-2017,3320781-2390764,"2,163.93",ACORN GRANGE NURSING HOME.
Adult and Health Services,Head of Adults,Third Party Payments,471101,Purchase of Care,08-Aug-2017,3320781-2390765,"2,104.76",ACORN GRANGE NURSING HOME.
Adult and Health Services,Head of Adults,Third Party Payments,470101,Purchase of Care,08-Aug-2017,3320781-2390766,"1,373.86",ACORN GRANGE NURSING HOME.
Adult and Health Services,Head of Adults,Third Party Payments,470101,Purchase of Care,08-Aug-2017,3320781-2390767,"2,264.28",ACORN GRANGE NURSING HOME.
Adult and Health Services,Head of Adults,Third Party Payments,471101,Purchase of Care,08-Aug-2017,3320781-2390768,"2,364.45",ACORN GRANGE NURSING HOME.
Adult and Health Services,Head of Adults,Third Party Payments,470101,Purchase of Care,08-Aug-2017,3320781-2390769,"2,080.44",ACORN GRANGE NURSING HOME.
Adult and Health Services,Head of Adults,Third Party Payments,471101,Purchase of Care,08-Aug-2017,3320781-2390770,"2,341.45",ACORN GRANGE NURSING HOME.
Adult and Health Services,Head of Adults,Third Party Payments,471101,Purchase of Care,08-Aug-2017,3320781-2390771,"1,052.36",ACORN GRANGE NURSING HOME.
Adult and Health Services,Head of Adults,Third Party Payments,470101,Purchase of Care,08-Aug-2017,3320781-2390772,"2,252.63",ACORN GRANGE NURSING HOME.
Adult and Health Services,Head of Adults,Third Party Payments,471101,Purchase of Care,08-Aug-2017,3320781-2390773,"2,353.57",ACORN GRANGE NURSING HOME.
Adult and Health Services,Head of Adults,Third Party Payments,471101,Purchase of Care,08-Aug-2017,3320781-2390774,"2,353.57",ACORN GRANGE NURSING HOME.
Adult and Health Services,Head of Adults,Third Party Payments,471101,Purchase of Care,08-Aug-2017,3320781-2390775,"2,353.57",ACORN GRANGE NURSING HOME.
Adult and Health Services,Head of Adults,Third Party Payments,471101,Purchase of Care,08-Aug-2017,3320781-2390776,"2,341.45",ACORN GRANGE NURSING HOME.
Adult and Health Services,Head of Adults,Third Party Payments,471101,Purchase of Care,08-Aug-2017,3320781-2390777,"2,341.45",ACORN GRANGE NURSING HOME.
Adult and Health Services,Head of Adults,Third Party Payments,470101,Purchase of Care,08-Aug-2017,3320781-2390778,"2,252.63",ACORN GRANGE NURSING HOME.
Adult and Health Services,Head of Adults,Third Party Payments,470101,Purchase of Care,08-Aug-2017,3320781-2390779,"2,252.63",ACORN GRANGE NURSING HOME.
Adult and Health Services,Head of Adults,Third Party Payments,470101,Purchase of Care,08-Aug-2017,3320781-2390780,"2,252.63",ACORN GRANGE NURSING HOME.
Adult and Health Services,Head of Adults,Third Party Payments,470101,Purchase of Care,08-Aug-2017,3320781-2393787,"1,229.24",ACORN GRANGE NURSING HOME.
Adult and Health Services,Head of Adults,Third Party Payments,471101,Purchase of Care,08-Aug-2017,3320781-2393931,"2,104.76",ACORN GRANGE NURSING HOME.
Adult and Health Services,Head of Adults,Transport,230005,Contract Hire,08-Aug-2017,3320258-0023A,"1,386.00",AIRPORT TAXIS 4U.
Adult and Health Services,Head of Adults,Third Party Payments,470101,Purchase of Care,08-Aug-2017,3320782-2392959,534.81,AKARI CARE LTD T/A AYCLIFFE CARE HOME.
Adult and Health Services,Head of Adults,Third Party Payments,474101,Purchase of Care,08-Aug-2017,3320782-2392960,"2,438.44",AKARI CARE LTD T/A AYCLIFFE CARE HOME.
Adult and Health Services,Central/Other,Debtors,930024,Debtor-free nursing care,08-Aug-2017,3320782-2392961,620.20,AKARI CARE LTD T/A AYCLIFFE CARE HOME.
Adult and Health Services,Head of Adults,Third Party Payments,474101,Purchase of Care,08-Aug-2017,3320782-2392962,"1,120.20",AKARI CARE LTD T/A AYCLIFFE CARE HOME.
Adult and Health Services,Head of Adults,Third Party Payments,474101,Purchase of Care,08-Aug-2017,3320782-2392964,"1,023.28",AKARI CARE LTD T/A AYCLIFFE CARE HOME.
Adult and Health Services,Head of Adults,Third Party Payments,471101,Purchase of Care,08-Aug-2017,3320782-2392966,"2,218.20",AKARI CARE LTD T/A AYCLIFFE CARE HOME.
Adult and Health Services,Head of Adults,Third Party Payments,471101,Purchase of Care,08-Aug-2017,3320782-2392967,"2,444.26",AKARI CARE LTD T/A AYCLIFFE CARE HOME.
Adult and Health Services,Head of Adults,Third Party Payments,474101,Purchase of Care,08-Aug-2017,3320782-2392968,"2,392.39",AKARI CARE LTD T/A AYCLIFFE CARE HOME.
Adult and Health Services,Central/Other,Debtors,930024,Debtor-free nursing care,08-Aug-2017,3320782-2392969,620.20,AKARI CARE LTD T/A AYCLIFFE CARE HOME.
Adult and Health Services,Head of Adults,Third Party Payments,474101,Purchase of Care,08-Aug-2017,3320782-2392970,"1,023.28",AKARI CARE LTD T/A AYCLIFFE CARE HOME.
Adult and Health Services,Head of Adults,Third Party Payments,470101,Purchase of Care,08-Aug-2017,3320782-2392972,"2,139.24",AKARI CARE LTD T/A AYCLIFFE CARE HOME.
Adult and Health Services,Head of Adults,Third Party Payments,470101,Purchase of Care,08-Aug-2017,3320782-2392973,"2,597.93",AKARI CARE LTD T/A AYCLIFFE CARE HOME.
Adult and Health Services,Head of Adults,Third Party Payments,470101,Purchase of Care,08-Aug-2017,3320782-2392974,"2,413.70",AKARI CARE LTD T/A AYCLIFFE CARE HOME.
Adult and Health Services,Central/Other,Debtors,930024,Debtor-free nursing care,08-Aug-2017,3320782-2392975,620.20,AKARI CARE LTD T/A AYCLIFFE CARE HOME.
Adult and Health Services,Head of Adults,Third Party Payments,471101,Purchase of Care,08-Aug-2017,3320782-2392976,"2,319.53",AKARI CARE LTD T/A AYCLIFFE CARE HOME.
Adult and Health Services,Head of Adults,Third Party Payments,471101,Purchase of Care,08-Aug-2017,3320782-2392977,"2,614.67",AKARI CARE LTD T/A AYCLIFFE CARE HOME.
Adult and Health Services,Head of Adults,Third Party Payments,474101,Purchase of Care,08-Aug-2017,3320782-2392978,"2,807.37",AKARI CARE LTD T/A AYCLIFFE CARE HOME.
Adult and Health Services,Central/Other,Debtors,930024,Debtor-free nursing care,08-Aug-2017,3320782-2392979,620.20,AKARI CARE LTD T/A AYCLIFFE CARE HOME.
Adult and Health Services,Head of Adults,Third Party Payments,474101,Purchase of Care,08-Aug-2017,3320782-2392980,"1,023.32",AKARI CARE LTD T/A AYCLIFFE CARE HOME.
Adult and Health Services,Head of Adults,Third Party Payments,470101,Purchase of Care,08-Aug-2017,3320782-2392982,"2,139.24",AKARI CARE LTD T/A AYCLIFFE CARE HOME.
Adult and Health Services,Head of Adults,Third Party Payments,471101,Purchase of Care,08-Aug-2017,3320782-2392983,"2,218.20",AKARI CARE LTD T/A AYCLIFFE CARE HOME.
Adult and Health Services,Head of Adults,Third Party Payments,474101,Purchase of Care,08-Aug-2017,3320782-2392984,"2,240.40",AKARI CARE LTD T/A AYCLIFFE CARE HOME.
Adult and Health Services,Central/Other,Debtors,930024,Debtor-free nursing care,08-Aug-2017,3320782-2392985,620.20,AKARI CARE LTD T/A AYCLIFFE CARE HOME.
Adult and Health Services,Head of Adults,Third Party Payments,471101,Purchase of Care,08-Aug-2017,3320782-2392986,"2,218.20",AKARI CARE LTD T/A AYCLIFFE CARE HOME.
Adult and Health Services,Head of Adults,Third Party Payments,471101,Purchase of Care,08-Aug-2017,3320782-2392987,"2,218.20",AKARI CARE LTD T/A AYCLIFFE CARE HOME.
Adult and Health Services,Head of Adults,Third Party Payments,471101,Purchase of Care,08-Aug-2017,3320782-2392988,"2,218.20",AKARI CARE LTD T/A AYCLIFFE CARE HOME.
Adult and Health Services,Head of Adults,Third Party Payments,471101,Purchase of Care,08-Aug-2017,3320782-2392989,"2,218.20",AKARI CARE LTD T/A AYCLIFFE CARE HOME.
Adult and Health Services,Head of Adults,Third Party Payments,471101,Purchase of Care,08-Aug-2017,3320782-2392990,"2,218.20",AKARI CARE LTD T/A AYCLIFFE CARE HOME.
Adult and Health Services,Central/Other,Debtors,930024,Debtor-free nursing care,08-Aug-2017,3320782-2392991,620.20,AKARI CARE LTD T/A AYCLIFFE CARE HOME.
Adult and Health Services,Head of Adults,Third Party Payments,474101,Purchase of Care,08-Aug-2017,3320782-2392992,"2,240.40",AKARI CARE LTD T/A AYCLIFFE CARE HOME.
Adult and Health Services,Central/Other,Debtors,930024,Debtor-free nursing care,08-Aug-2017,3320782-2392993,620.20,AKARI CARE LTD T/A AYCLIFFE CARE HOME.
Adult and Health Services,Head of Adults,Third Party Payments,471101,Purchase of Care,08-Aug-2017,3320782-2392994,"2,218.20",AKARI CARE LTD T/A AYCLIFFE CARE HOME.
Adult and Health Services,Head of Adults,Third Party Payments,474101,Purchase of Care,08-Aug-2017,3320782-2392995,"2,240.40",AKARI CARE LTD T/A AYCLIFFE CARE HOME.
Adult and Health Services,Central/Other,Debtors,930024,Debtor-free nursing care,08-Aug-2017,3320782-2392996,620.20,AKARI CARE LTD T/A AYCLIFFE CARE HOME.
Adult and Health Services,Head of Adults,Third Party Payments,470101,Purchase of Care,08-Aug-2017,3320782-2392997,"2,139.24",AKARI CARE LTD T/A AYCLIFFE CARE HOME.
Adult and Health Services,Head of Adults,Third Party Payments,471101,Purchase of Care,08-Aug-2017,3320782-2392998,"2,218.20",AKARI CARE LTD T/A AYCLIFFE CARE HOME.
Adult and Health Services,Head of Adults,Third Party Payments,470101,Purchase of Care,08-Aug-2017,3320782-2392999,"2,139.24",AKARI CARE LTD T/A AYCLIFFE CARE HOME.
Adult and Health Services,Head of Adults,Third Party Payments,474101,Purchase of Care,08-Aug-2017,3320782-2393000,"1,023.32",AKARI CARE LTD T/A AYCLIFFE CARE HOME.
Adult and Health Services,Head of Adults,Third Party Payments,470101,Purchase of Care,08-Aug-2017,3320782-2393002,"2,139.24",AKARI CARE LTD T/A AYCLIFFE CARE HOME.
Adult and Health Services,Head of Adults,Third Party Payments,470101,Purchase of Care,08-Aug-2017,3320782-2393003,"2,139.24",AKARI CARE LTD T/A AYCLIFFE CARE HOME.
Adult and Health Services,Head of Adults,Third Party Payments,471101,Purchase of Care,08-Aug-2017,3320782-2393004,"2,218.20",AKARI CARE LTD T/A AYCLIFFE CARE HOME.
Adult and Health Services,Head of Adults,Third Party Payments,471101,Purchase of Care,08-Aug-2017,3320782-2393005,"2,218.20",AKARI CARE LTD T/A AYCLIFFE CARE HOME.
Adult and Health Services,Head of Adults,Third Party Payments,474101,Purchase of Care,08-Aug-2017,3320782-2395403,880.15,AKARI CARE LTD T/A AYCLIFFE CARE HOME.
Adult and Health Services,Head of Adults,Third Party Payments,470101,Purchase of Care,08-Aug-2017,3320782-2395541,"2,444.84",AKARI CARE LTD T/A AYCLIFFE CARE HOME.
Adult and Health Services,Head of Adults,Third Party Payments,474101,Purchase of Care,08-Aug-2017,3320783-2393513,"2,279.04",AKARI CARE LTD T/A PAVILION COURT CARE HOME.
Adult and Health Services,Head of Adults,Third Party Payments,474101,Purchase of Care,08-Aug-2017,3320784-2391776,"1,500.00",AKARI CARE LTD T/A PHILIPS COURT.
Adult and Health Services,Head of Adults,Third Party Payments,474101,Purchase of Care,08-Aug-2017,3320784-2391777,"1,140.00",AKARI CARE LTD T/A PHILIPS COURT.
Adult and Health Services,Head of Adults,Third Party Payments,474101,Purchase of Care,08-Aug-2017,3320784-2391778,"1,596.00",AKARI CARE LTD T/A PHILIPS COURT.
Adult and Health Services,Head of Adults,Third Party Payments,470101,Purchase of Care,08-Aug-2017,3320784-2391779,"1,102.00",AKARI CARE LTD T/A PHILIPS COURT.
Adult and Health Services,Head of Adults,Third Party Payments,474101,Purchase of Care,08-Aug-2017,3320784-2391780,"2,000.00",AKARI CARE LTD T/A PHILIPS COURT.
Adult and Health Services,Head of Adults,Third Party Payments,474101,Purchase of Care,08-Aug-2017,3320784-2391781,"3,360.00",AKARI CARE LTD T/A PHILIPS COURT.
Adult and Health Services,Head of Adults,Third Party Payments,474101,Purchase of Care,08-Aug-2017,3320784-2391782,"1,140.00",AKARI CARE LTD T/A PHILIPS COURT.
Adult and Health Services,Head of Adults,Third Party Payments,470101,Purchase of Care,08-Aug-2017,3320785-2391472,"2,262.75",AKARI CARE LTD T/A WESTERLEIGH NURSING HOME.
Adult and Health Services,Head of Adults,Third Party Payments,470101,Purchase of Care,08-Aug-2017,3320785-2391473,"2,139.24",AKARI CARE LTD T/A WESTERLEIGH NURSING HOME.
Adult and Health Services,Head of Adults,Third Party Payments,470101,Purchase of Care,08-Aug-2017,3320785-2391474,"2,207.84",AKARI CARE LTD T/A WESTERLEIGH NURSING HOME.
Adult and Health Services,Head of Adults,Third Party Payments,470101,Purchase of Care,08-Aug-2017,3320785-2391475,"2,139.24",AKARI CARE LTD T/A WESTERLEIGH NURSING HOME.
Adult and Health Services,Head of Adults,Third Party Payments,470101,Purchase of Care,08-Aug-2017,3320785-2391476,"2,313.06",AKARI CARE LTD T/A WESTERLEIGH NURSING HOME.
Adult and Health Services,Head of Adults,Third Party Payments,470101,Purchase of Care,08-Aug-2017,3320785-2391477,"2,139.24",AKARI CARE LTD T/A WESTERLEIGH NURSING HOME.
Adult and Health Services,Head of Adults,Third Party Payments,470101,Purchase of Care,08-Aug-2017,3320785-2391478,"2,372.53",AKARI CARE LTD T/A WESTERLEIGH NURSING HOME.
Adult and Health Services,Head of Adults,Third Party Payments,470101,Purchase of Care,08-Aug-2017,3320785-2391479,"2,139.24",AKARI CARE LTD T/A WESTERLEIGH NURSING HOME.
Adult and Health Services,Head of Adults,Third Party Payments,471101,Purchase of Care,08-Aug-2017,3320785-2391480,"2,482.51",AKARI CARE LTD T/A WESTERLEIGH NURSING HOME.
Adult and Health Services,Head of Adults,Third Party Payments,470101,Purchase of Care,08-Aug-2017,3320785-2391482,"2,139.24",AKARI CARE LTD T/A WESTERLEIGH NURSING HOME.
Adult and Health Services,Head of Adults,Third Party Payments,470101,Purchase of Care,08-Aug-2017,3320785-2391483,"2,234.94",AKARI CARE LTD T/A WESTERLEIGH NURSING HOME.
Adult and Health Services,Head of Adults,Third Party Payments,471101,Purchase of Care,08-Aug-2017,3320785-2391484,"2,218.20",AKARI CARE LTD T/A WESTERLEIGH NURSING HOME.
Adult and Health Services,Head of Adults,Third Party Payments,471101,Purchase of Care,08-Aug-2017,3320785-2391485,"2,582.77",AKARI CARE LTD T/A WESTERLEIGH NURSING HOME.
Adult and Health Services,Head of Adults,Third Party Payments,471101,Purchase of Care,08-Aug-2017,3320785-2391486,"2,218.20",AKARI CARE LTD T/A WESTERLEIGH NURSING HOME.
Adult and Health Services,Head of Adults,Third Party Payments,470101,Purchase of Care,08-Aug-2017,3320785-2391487,"2,139.24",AKARI CARE LTD T/A WESTERLEIGH NURSING HOME.
Adult and Health Services,Head of Adults,Third Party Payments,471101,Purchase of Care,08-Aug-2017,3320785-2391488,"2,218.20",AKARI CARE LTD T/A WESTERLEIGH NURSING HOME.
Adult and Health Services,Head of Adults,Third Party Payments,471101,Purchase of Care,08-Aug-2017,3320785-2391489,"2,464.29",AKARI CARE LTD T/A WESTERLEIGH NURSING HOME.
Adult and Health Services,Head of Adults,Third Party Payments,471101,Purchase of Care,08-Aug-2017,3320785-2391490,554.55,AKARI CARE LTD T/A WESTERLEIGH NURSING HOME.
Adult and Health Services,Head of Adults,Third Party Payments,470101,Purchase of Care,08-Aug-2017,3320785-2391491,"2,139.24",AKARI CARE LTD T/A WESTERLEIGH NURSING HOME.
Adult and Health Services,Head of Adults,Third Party Payments,471101,Purchase of Care,08-Aug-2017,3320785-2391492,"2,218.20",AKARI CARE LTD T/A WESTERLEIGH NURSING HOME.
Adult and Health Services,Head of Adults,Third Party Payments,470101,Purchase of Care,08-Aug-2017,3320785-2391493,"2,339.75",AKARI CARE LTD T/A WESTERLEIGH NURSING HOME.
Adult and Health Services,Head of Adults,Third Party Payments,470101,Purchase of Care,08-Aug-2017,3320785-2391494,"2,139.24",AKARI CARE LTD T/A WESTERLEIGH NURSING HOME.
Adult and Health Services,Head of Adults,Third Party Payments,471101,Purchase of Care,08-Aug-2017,3320785-2391495,"1,013.20",AKARI CARE LTD T/A WESTERLEIGH NURSING HOME.
Adult and Health Services,Head of Adults,Third Party Payments,470101,Purchase of Care,08-Aug-2017,3320785-2391496,"2,139.24",AKARI CARE LTD T/A WESTERLEIGH NURSING HOME.
Adult and Health Services,Head of Adults,Third Party Payments,470101,Purchase of Care,08-Aug-2017,3320785-2391497,"2,139.24",AKARI CARE LTD T/A WESTERLEIGH NURSING HOME.
Adult and Health Services,Head of Adults,Third Party Payments,470101,Purchase of Care,08-Aug-2017,3320785-2391498,"2,139.24",AKARI CARE LTD T/A WESTERLEIGH NURSING HOME.
Adult and Health Services,Head of Adults,Third Party Payments,470101,Purchase of Care,08-Aug-2017,3320785-2391499,"2,139.24",AKARI CARE LTD T/A WESTERLEIGH NURSING HOME.
Adult and Health Services,Head of Adults,Third Party Payments,470101,Purchase of Care,08-Aug-2017,3320785-2391500,"2,139.24",AKARI CARE LTD T/A WESTERLEIGH NURSING HOME.
Adult and Health Services,Head of Adults,Third Party Payments,470101,Purchase of Care,08-Aug-2017,3320785-2391501,"2,139.24",AKARI CARE LTD T/A WESTERLEIGH NURSING HOME.
Adult and Health Services,Head of Adults,Third Party Payments,470101,Purchase of Care,08-Aug-2017,3320785-2391502,"2,139.24",AKARI CARE LTD T/A WESTERLEIGH NURSING HOME.
Adult and Health Services,Head of Adults,Third Party Payments,470101,Purchase of Care,08-Aug-2017,3320785-2391503,"2,139.24",AKARI CARE LTD T/A WESTERLEIGH NURSING HOME.
Adult and Health Services,Head of Adults,Third Party Payments,470101,Purchase of Care,08-Aug-2017,3320785-2391504,"2,139.24",AKARI CARE LTD T/A WESTERLEIGH NURSING HOME.
Adult and Health Services,Head of Adults,Third Party Payments,470101,Purchase of Care,08-Aug-2017,3320785-2391505,951.32,AKARI CARE LTD T/A WESTERLEIGH NURSING HOME.
Adult and Health Services,Head of Adults,Third Party Payments,470101,Purchase of Care,08-Aug-2017,3320785-2391506,"2,139.24",AKARI CARE LTD T/A WESTERLEIGH NURSING HOME.
Adult and Health Services,Head of Adults,Third Party Payments,470101,Purchase of Care,08-Aug-2017,3320785-2391507,"2,139.24",AKARI CARE LTD T/A WESTERLEIGH NURSING HOME.
Adult and Health Services,Head of Adults,Third Party Payments,470101,Purchase of Care,08-Aug-2017,3320785-2391508,"2,139.24",AKARI CARE LTD T/A WESTERLEIGH NURSING HOME.
Adult and Health Services,Head of Adults,Third Party Payments,470101,Purchase of Care,08-Aug-2017,3320785-2391509,"2,139.24",AKARI CARE LTD T/A WESTERLEIGH NURSING HOME.
Adult and Health Services,Head of Adults,Third Party Payments,470101,Purchase of Care,08-Aug-2017,3320785-2391510,"2,139.24",AKARI CARE LTD T/A WESTERLEIGH NURSING HOME.
Adult and Health Services,Head of Adults,Third Party Payments,470101,Purchase of Care,08-Aug-2017,3320785-2391511,"2,139.24",AKARI CARE LTD T/A WESTERLEIGH NURSING HOME.
Adult and Health Services,Head of Adults,Third Party Payments,470101,Purchase of Care,08-Aug-2017,3320785-2391512,"2,139.24",AKARI CARE LTD T/A WESTERLEIGH NURSING HOME.
Adult and Health Services,Head of Adults,Third Party Payments,471101,Purchase of Care,08-Aug-2017,3320785-2391513,"2,218.20",AKARI CARE LTD T/A WESTERLEIGH NURSING HOME.
Adult and Health Services,Head of Adults,Third Party Payments,470101,Purchase of Care,08-Aug-2017,3320785-2391514,"2,139.24",AKARI CARE LTD T/A WESTERLEIGH NURSING HOME.
Adult and Health Services,Head of Adults,Third Party Payments,470101,Purchase of Care,08-Aug-2017,3320785-2391515,"2,139.24",AKARI CARE LTD T/A WESTERLEIGH NURSING HOME.
Adult and Health Services,Head of Adults,Third Party Payments,470101,Purchase of Care,08-Aug-2017,3320785-2391516,"2,139.24",AKARI CARE LTD T/A WESTERLEIGH NURSING HOME.
Adult and Health Services,Head of Adults,Third Party Payments,470101,Purchase of Care,08-Aug-2017,3320785-2393809,916.81,AKARI CARE LTD T/A WESTERLEIGH NURSING HOME.
Adult and Health Services,Head of Adults,Third Party Payments,470101,Purchase of Care,08-Aug-2017,3320785-2395856,640.40,AKARI CARE LTD T/A WESTERLEIGH NURSING HOME.
Adult and Health Services,Head of Adults,Third Party Payments,474101,Purchase of Care,08-Aug-2017,3320786-2391816,"2,188.62",AKARI CARE LTD T/A WORDSWORTH HOUSE NURSING HOME.
Adult and Health Services,Head of Adults,Third Party Payments,474101,Purchase of Care,08-Aug-2017,3320787-2393641,"3,152.00",ALDBOURNE NURSING HOME.
Adult and Health Services,Head of Adults,Debtors,930135,Debtor Residential Care - IC+ Rehabilitation,08-Aug-2017,3320788-2391331,"1,757.23",ALLIANCE CARE.
Adult and Health Services,Head of Adults,Third Party Payments,470101,Purchase of Care,08-Aug-2017,3320788-2391333,"2,139.24",ALLIANCE CARE.
Adult and Health Services,Head of Adults,Third Party Payments,471101,Purchase of Care,08-Aug-2017,3320788-2391334,"1,109.08",ALLIANCE CARE.
Adult and Health Services,Head of Adults,Third Party Payments,470101,Purchase of Care,08-Aug-2017,3320788-2391335,"2,139.24",ALLIANCE CARE.
Adult and Health Services,Head of Adults,Third Party Payments,470102,Purchase of Care,08-Aug-2017,3320788-2391336,"1,910.03",ALLIANCE CARE.
Adult and Health Services,Head of Adults,Debtors,930135,Debtor Residential Care - IC+ Rehabilitation,08-Aug-2017,3320788-2391337,"1,833.63",ALLIANCE CARE.
Adult and Health Services,Head of Adults,Third Party Payments,470101,Purchase of Care,08-Aug-2017,3320788-2391338,"2,243.17",ALLIANCE CARE.
Adult and Health Services,Head of Adults,Debtors,930135,Debtor Residential Care - IC+ Rehabilitation,08-Aug-2017,3320788-2391342,764.01,ALLIANCE CARE.
Adult and Health Services,Head of Adults,Third Party Payments,470101,Purchase of Care,08-Aug-2017,3320788-2391343,"2,139.24",ALLIANCE CARE.
Adult and Health Services,Head of Adults,Third Party Payments,470101,Purchase of Care,08-Aug-2017,3320788-2391344,"2,062.83",ALLIANCE CARE.
Adult and Health Services,Head of Adults,Third Party Payments,470101,Purchase of Care,08-Aug-2017,3320788-2391346,"2,139.24",ALLIANCE CARE.
Adult and Health Services,Head of Adults,Debtors,930135,Debtor Residential Care - IC+ Rehabilitation,08-Aug-2017,3320788-2391347,687.61,ALLIANCE CARE.
Adult and Health Services,Head of Adults,Third Party Payments,470101,Purchase of Care,08-Aug-2017,3320788-2391348,"1,146.02",ALLIANCE CARE.
Adult and Health Services,Head of Adults,Third Party Payments,471101,Purchase of Care,08-Aug-2017,3320788-2391349,"2,218.20",ALLIANCE CARE.
Adult and Health Services,Head of Adults,Third Party Payments,474101,Purchase of Care,08-Aug-2017,3320788-2391350,"2,240.40",ALLIANCE CARE.
Adult and Health Services,Central/Other,Debtors,930024,Debtor-free nursing care,08-Aug-2017,3320788-2391351,620.20,ALLIANCE CARE.
Adult and Health Services,Head of Adults,Third Party Payments,474101,Purchase of Care,08-Aug-2017,3320788-2391352,"2,240.40",ALLIANCE CARE.
Adult and Health Services,Central/Other,Debtors,930024,Debtor-free nursing care,08-Aug-2017,3320788-2391353,620.20,ALLIANCE CARE.
Adult and Health Services,Head of Adults,Third Party Payments,470101,Purchase of Care,08-Aug-2017,3320788-2391354,"1,069.64",ALLIANCE CARE.
Adult and Health Services,Head of Adults,Third Party Payments,470101,Purchase of Care,08-Aug-2017,3320788-2391357,"2,139.24",ALLIANCE CARE.
Adult and Health Services,Head of Adults,Third Party Payments,470101,Purchase of Care,08-Aug-2017,3320788-2391358,"2,139.24",ALLIANCE CARE.
Adult and Health Services,Head of Adults,Third Party Payments,471101,Purchase of Care,08-Aug-2017,3320788-2391359,"2,218.20",ALLIANCE CARE.
Adult and Health Services,Head of Adults,Third Party Payments,471101,Purchase of Care,08-Aug-2017,3320788-2391362,"2,218.20",ALLIANCE CARE.
Adult and Health Services,Head of Adults,Third Party Payments,474101,Purchase of Care,08-Aug-2017,3320788-2391363,"2,240.40",ALLIANCE CARE.
Adult and Health Services,Central/Other,Debtors,930024,Debtor-free nursing care,08-Aug-2017,3320788-2391364,620.20,ALLIANCE CARE.
Adult and Health Services,Head of Adults,Third Party Payments,471101,Purchase of Care,08-Aug-2017,3320788-2391365,"2,218.20",ALLIANCE CARE.
Adult and Health Services,Head of Adults,Third Party Payments,470101,Purchase of Care,08-Aug-2017,3320788-2391366,"2,139.24",ALLIANCE CARE.
Adult and Health Services,Head of Adults,Third Party Payments,471101,Purchase of Care,08-Aug-2017,3320788-2391367,"2,218.20",ALLIANCE CARE.
Adult and Health Services,Head of Adults,Debtors,930135,Debtor Residential Care - IC+ Rehabilitation,08-Aug-2017,3320788-2391368,993.21,ALLIANCE CARE.
Adult and Health Services,Head of Adults,Third Party Payments,470101,Purchase of Care,08-Aug-2017,3320788-2391369,"2,139.24",ALLIANCE CARE.
Adult and Health Services,Head of Adults,Third Party Payments,474101,Purchase of Care,08-Aug-2017,3320788-2391370,"2,160.38",ALLIANCE CARE.
Adult and Health Services,Central/Other,Debtors,930024,Debtor-free nursing care,08-Aug-2017,3320788-2391371,598.05,ALLIANCE CARE.
Adult and Health Services,Head of Adults,Third Party Payments,470101,Purchase of Care,08-Aug-2017,3320788-2391372,"2,139.24",ALLIANCE CARE.
Adult and Health Services,Head of Adults,Third Party Payments,470101,Purchase of Care,08-Aug-2017,3320788-2391373,"2,139.24",ALLIANCE CARE.
Adult and Health Services,Head of Adults,Third Party Payments,470101,Purchase of Care,08-Aug-2017,3320788-2391374,"2,139.24",ALLIANCE CARE.
Adult and Health Services,Head of Adults,Third Party Payments,471101,Purchase of Care,08-Aug-2017,3320788-2391375,"2,218.20",ALLIANCE CARE.
Adult and Health Services,Head of Adults,Third Party Payments,471101,Purchase of Care,08-Aug-2017,3320788-2391376,"2,218.20",ALLIANCE CARE.
Adult and Health Services,Head of Adults,Third Party Payments,474101,Purchase of Care,08-Aug-2017,3320788-2391377,"2,240.40",ALLIANCE CARE.
Adult and Health Services,Central/Other,Debtors,930024,Debtor-free nursing care,08-Aug-2017,3320788-2391378,620.20,ALLIANCE CARE.
Adult and Health Services,Head of Adults,Third Party Payments,471101,Purchase of Care,08-Aug-2017,3320788-2391379,"2,218.20",ALLIANCE CARE.
Adult and Health Services,Head of Adults,Third Party Payments,471101,Purchase of Care,08-Aug-2017,3320788-2391380,"1,109.08",ALLIANCE CARE.
Adult and Health Services,Head of Adults,Third Party Payments,470101,Purchase of Care,08-Aug-2017,3320788-2391381,"2,139.24",ALLIANCE CARE.
Adult and Health Services,Head of Adults,Third Party Payments,471101,Purchase of Care,08-Aug-2017,3320788-2391382,"2,218.20",ALLIANCE CARE.
Adult and Health Services,Head of Adults,Third Party Payments,471101,Purchase of Care,08-Aug-2017,3320788-2391383,"2,218.20",ALLIANCE CARE.
Adult and Health Services,Head of Adults,Third Party Payments,474101,Purchase of Care,08-Aug-2017,3320788-2391384,"2,240.40",ALLIANCE CARE.
Adult and Health Services,Central/Other,Debtors,930024,Debtor-free nursing care,08-Aug-2017,3320788-2391385,620.20,ALLIANCE CARE.
Adult and Health Services,Head of Adults,Third Party Payments,470101,Purchase of Care,08-Aug-2017,3320788-2391386,"2,139.24",ALLIANCE CARE.
Adult and Health Services,Head of Adults,Third Party Payments,470101,Purchase of Care,08-Aug-2017,3320788-2391387,"2,139.24",ALLIANCE CARE.
Adult and Health Services,Head of Adults,Third Party Payments,470101,Purchase of Care,08-Aug-2017,3320788-2391388,"2,139.24",ALLIANCE CARE.
Adult and Health Services,Head of Adults,Third Party Payments,470101,Purchase of Care,08-Aug-2017,3320788-2391389,"2,399.00",ALLIANCE CARE.
Adult and Health Services,Head of Adults,Debtors,930135,Debtor Residential Care - IC+ Rehabilitation,08-Aug-2017,3320788-2394098,"1,222.42",ALLIANCE CARE.
Adult and Health Services,Head of Adults,Debtors,930135,Debtor Residential Care - IC+ Rehabilitation,08-Aug-2017,3320788-2394101,840.41,ALLIANCE CARE.
Adult and Health Services,Head of Adults,Third Party Payments,470101,Purchase of Care,08-Aug-2017,3320788-2394102,"1,298.82",ALLIANCE CARE.
Adult and Health Services,Head of Adults,Debtors,930135,Debtor Residential Care - IC+ Rehabilitation,08-Aug-2017,3320788-2394109,"1,375.22",ALLIANCE CARE.
Adult and Health Services,Head of Adults,Third Party Payments,470101,Purchase of Care,08-Aug-2017,3320788-2394112,"1,375.22",ALLIANCE CARE.
Adult and Health Services,Head of Adults,Third Party Payments,470101,Purchase of Care,08-Aug-2017,3320788-2394113,764.01,ALLIANCE CARE.
Adult and Health Services,Head of Adults,Debtors,930135,Debtor Residential Care - IC+ Rehabilitation,08-Aug-2017,3320788-2394127,"2,750.44",ALLIANCE CARE.
Adult and Health Services,Head of Adults,Debtors,930135,Debtor Residential Care - IC+ Rehabilitation,08-Aug-2017,3320788-2394143,611.21,ALLIANCE CARE.
Adult and Health Services,Head of Adults,Debtors,930135,Debtor Residential Care - IC+ Rehabilitation,08-Aug-2017,3320788-2394171,"1,222.42",ALLIANCE CARE.
Adult and Health Services,Head of Adults,Third Party Payments,470101,Purchase of Care,08-Aug-2017,3320788-2394172,"1,028.14",ALLIANCE CARE.
Adult and Health Services,Head of Adults,Third Party Payments,470101,Purchase of Care,08-Aug-2017,3320789-2392534,"1,984.00",ALLINGTON HOUSE CARE HOME.
Adult and Health Services,Head of Adults,Third Party Payments,474101,Purchase of Care,08-Aug-2017,3320790-2393008,792.00,ALLISON HOUSE.
Adult and Health Services,Head of Adults,Third Party Payments,471101,Purchase of Care,08-Aug-2017,3320791-2393515,"2,187.48",AMERIND GROVE NURSING HOME.
Adult and Health Services,Head of Adults,Third Party Payments,470101,Purchase of Care,08-Aug-2017,3320792-2392728,"2,084.00",ANCHOR CAREHOMES LTD T/A WYNYARD WOODS GRANGE RESIDENTIAL CARE HOME.
Adult and Health Services,Head of Adults,Third Party Payments,470101,Purchase of Care,08-Aug-2017,3320792-2392729,"8,261.57",ANCHOR CAREHOMES LTD T/A WYNYARD WOODS GRANGE RESIDENTIAL CARE HOME.
Adult and Health Services,Head of Adults,Third Party Payments,470101,Purchase of Care,08-Aug-2017,3320792-2392730,"2,084.00",ANCHOR CAREHOMES LTD T/A WYNYARD WOODS GRANGE RESIDENTIAL CARE HOME.
Adult and Health Services,Head of Adults,Third Party Payments,470101,Purchase of Care,08-Aug-2017,3320793-2390843,"2,016.00",ANCHOR HOUSING ASSOCIATION.
Adult and Health Services,Head of Adults,Third Party Payments,470101,Purchase of Care,08-Aug-2017,3320793-2390844,"2,016.00",ANCHOR HOUSING ASSOCIATION.
Adult and Health Services,Head of Adults,Third Party Payments,474101,Purchase of Care,08-Aug-2017,3320794-2391458,"1,620.48",ANN CHARLTON LODGE.
Adult and Health Services,Head of Adults,Third Party Payments,470101,Purchase of Care,08-Aug-2017,3320795-2390369,"1,069.61",ASCOT CARE NORTHEAST LTD.
Adult and Health Services,Head of Adults,Third Party Payments,470101,Purchase of Care,08-Aug-2017,3320795-2390370,"1,233.16",ASCOT CARE NORTHEAST LTD.
Adult and Health Services,Head of Adults,Third Party Payments,470101,Purchase of Care,08-Aug-2017,3320795-2390371,"2,200.00",ASCOT CARE NORTHEAST LTD.
Adult and Health Services,Head of Adults,Third Party Payments,470101,Purchase of Care,08-Aug-2017,3320795-2390372,"1,535.08",ASCOT CARE NORTHEAST LTD.
Adult and Health Services,Head of Adults,Third Party Payments,470101,Purchase of Care,08-Aug-2017,3320795-2390374,"1,298.82",ASCOT CARE NORTHEAST LTD.
Adult and Health Services,Head of Adults,Third Party Payments,470101,Purchase of Care,08-Aug-2017,3320795-2390375,"1,605.44",ASCOT CARE NORTHEAST LTD.
Adult and Health Services,Head of Adults,Third Party Payments,470101,Purchase of Care,08-Aug-2017,3320795-2390376,949.56,ASCOT CARE NORTHEAST LTD.
Adult and Health Services,Head of Adults,Third Party Payments,470101,Purchase of Care,08-Aug-2017,3320795-2390377,"2,139.24",ASCOT CARE NORTHEAST LTD.
Adult and Health Services,Head of Adults,Third Party Payments,470101,Purchase of Care,08-Aug-2017,3320795-2390378,"2,139.24",ASCOT CARE NORTHEAST LTD.
Adult and Health Services,Head of Adults,Third Party Payments,470101,Purchase of Care,08-Aug-2017,3320795-2390379,"1,145.68",ASCOT CARE NORTHEAST LTD.
Adult and Health Services,Head of Adults,Third Party Payments,471101,Purchase of Care,08-Aug-2017,3320795-2390380,"2,218.20",ASCOT CARE NORTHEAST LTD.
Adult and Health Services,Head of Adults,Third Party Payments,470101,Purchase of Care,08-Aug-2017,3320795-2390381,"1,309.52",ASCOT CARE NORTHEAST LTD.
Adult and Health Services,Head of Adults,Third Party Payments,470101,Purchase of Care,08-Aug-2017,3320795-2390382,"2,139.24",ASCOT CARE NORTHEAST LTD.
Adult and Health Services,Head of Adults,Third Party Payments,470101,Purchase of Care,08-Aug-2017,3320795-2390383,"1,567.08",ASCOT CARE NORTHEAST LTD.
Adult and Health Services,Head of Adults,Third Party Payments,470101,Purchase of Care,08-Aug-2017,3320795-2390384,"1,601.44",ASCOT CARE NORTHEAST LTD.
Adult and Health Services,Head of Adults,Third Party Payments,470101,Purchase of Care,08-Aug-2017,3320795-2390385,"1,626.36",ASCOT CARE NORTHEAST LTD.
Adult and Health Services,Head of Adults,Third Party Payments,470101,Purchase of Care,08-Aug-2017,3320795-2390386,"1,601.44",ASCOT CARE NORTHEAST LTD.
Adult and Health Services,Head of Adults,Third Party Payments,470101,Purchase of Care,08-Aug-2017,3320795-2390387,"1,583.92",ASCOT CARE NORTHEAST LTD.
Adult and Health Services,Head of Adults,Third Party Payments,470101,Purchase of Care,08-Aug-2017,3320795-2390388,"1,554.12",ASCOT CARE NORTHEAST LTD.
Adult and Health Services,Head of Adults,Third Party Payments,471101,Purchase of Care,08-Aug-2017,3320795-2390389,"1,186.24",ASCOT CARE NORTHEAST LTD.
Adult and Health Services,Head of Adults,Third Party Payments,470101,Purchase of Care,08-Aug-2017,3320795-2390390,"1,601.44",ASCOT CARE NORTHEAST LTD.
Adult and Health Services,Head of Adults,Third Party Payments,470101,Purchase of Care,08-Aug-2017,3320795-2390391,"1,601.44",ASCOT CARE NORTHEAST LTD.
Adult and Health Services,Head of Adults,Third Party Payments,470101,Purchase of Care,08-Aug-2017,3320795-2390392,"2,139.24",ASCOT CARE NORTHEAST LTD.
Adult and Health Services,Head of Adults,Third Party Payments,471101,Purchase of Care,08-Aug-2017,3320795-2390393,"1,808.92",ASCOT CARE NORTHEAST LTD.
Adult and Health Services,Head of Adults,Third Party Payments,470101,Purchase of Care,08-Aug-2017,3320795-2390394,"1,317.60",ASCOT CARE NORTHEAST LTD.
Adult and Health Services,Head of Adults,Third Party Payments,470101,Purchase of Care,08-Aug-2017,3320795-2390395,"2,139.24",ASCOT CARE NORTHEAST LTD.
Adult and Health Services,Head of Adults,Third Party Payments,470101,Purchase of Care,08-Aug-2017,3320796-2391074,"2,016.00",ASCOT CARE T/A THE GARDENS CARE HOME.
Adult and Health Services,Head of Adults,Third Party Payments,470101,Purchase of Care,08-Aug-2017,3320796-2391075,"2,016.00",ASCOT CARE T/A THE GARDENS CARE HOME.
Adult and Health Services,Head of Adults,Third Party Payments,470101,Purchase of Care,08-Aug-2017,3320797-2393264,"2,700.00",ASHFIELD NURSING HOME LTD.
Adult and Health Services,Head of Adults,Third Party Payments,470101,Purchase of Care,08-Aug-2017,3320798-2391071,969.00,ASHLEIGH HOUSE CARE HOME.
Adult and Health Services,Head of Adults,Third Party Payments,470101,Purchase of Care,08-Aug-2017,3320798-2391072,969.00,ASHLEIGH HOUSE CARE HOME.
Adult and Health Services,Head of Adults,Third Party Payments,470101,Purchase of Care,08-Aug-2017,3320798-2391073,"1,102.00",ASHLEIGH HOUSE CARE HOME.
Adult and Health Services,Head of Adults,Third Party Payments,470101,Purchase of Care,08-Aug-2017,3320799-2393310,953.88,ASPIRE CARE GROUP.
Adult and Health Services,Head of Adults,Third Party Payments,470101,Purchase of Care,08-Aug-2017,3320799-2393311,"1,907.72",ASPIRE CARE GROUP.
Adult and Health Services,Head of Adults,Third Party Payments,470101,Purchase of Care,08-Aug-2017,3320799-2393312,"1,907.72",ASPIRE CARE GROUP.
Adult and Health Services,Head of Adults,Third Party Payments,470101,Purchase of Care,08-Aug-2017,3320799-2393313,"1,505.12",ASPIRE CARE GROUP.
Adult and Health Services,Head of Adults,Third Party Payments,470101,Purchase of Care,08-Aug-2017,3320799-2393314,"1,518.00",ASPIRE CARE GROUP.
Adult and Health Services,Head of Adults,Third Party Payments,470101,Purchase of Care,08-Aug-2017,3320799-2393315,"1,369.92",ASPIRE CARE GROUP.
Adult and Health Services,Head of Adults,Third Party Payments,470101,Purchase of Care,08-Aug-2017,3320799-2393316,"1,369.84",ASPIRE CARE GROUP.
Adult and Health Services,Head of Adults,Third Party Payments,470101,Purchase of Care,08-Aug-2017,3320800-2392411,953.88,ASPIRE CARE GROUP.
Adult and Health Services,Head of Adults,Third Party Payments,470101,Purchase of Care,08-Aug-2017,3320800-2392412,"3,245.00",ASPIRE CARE GROUP.
Adult and Health Services,Head of Adults,Third Party Payments,470101,Purchase of Care,08-Aug-2017,3320800-2392413,"1,750.00",ASPIRE CARE GROUP.
Adult and Health Services,Head of Adults,Third Party Payments,470101,Purchase of Care,08-Aug-2017,3320800-2392414,668.64,ASPIRE CARE GROUP.
Adult and Health Services,Head of Adults,Third Party Payments,470101,Purchase of Care,08-Aug-2017,3320800-2392415,"1,907.72",ASPIRE CARE GROUP.
Adult and Health Services,Head of Adults,Third Party Payments,470101,Purchase of Care,08-Aug-2017,3320801-2391068,"1,907.72",ASPIRE CARE GROUP.
Adult and Health Services,Head of Adults,Third Party Payments,470101,Purchase of Care,08-Aug-2017,3320801-2391069,"1,907.72",ASPIRE CARE GROUP.
Adult and Health Services,Head of Adults,Third Party Payments,470101,Purchase of Care,08-Aug-2017,3320801-2391070,"1,907.72",ASPIRE CARE GROUP.
Adult and Health Services,Head of Adults,Third Party Payments,474101,Purchase of Care,08-Aug-2017,3320802-2393500,"2,071.76",ASTONBROOK CARE HOMES LTD T/A MOORLANDS CARE HOME.
Adult and Health Services,Head of Adults,Third Party Payments,474101,Purchase of Care,08-Aug-2017,3320803-2393710,"2,400.00",ASTORIA HEALTHCARE LTD T/A VICARAGE FARM CARE HOME.
Adult and Health Services,Head of Adults,Third Party Payments,474101,Purchase of Care,08-Aug-2017,3320804-2388335,"1,721.71",ATLAS CARE HOMES LTD T/A ASPEN COURT CARE HOME.
Adult and Health Services,Head of Adults,Third Party Payments,474101,Purchase of Care,08-Aug-2017,3320804-2388337,"1,036.00",ATLAS CARE HOMES LTD T/A ASPEN COURT CARE HOME.
Adult and Health Services,Head of Adults,Third Party Payments,474101,Purchase of Care,08-Aug-2017,3320804-2393261,"2,096.00",ATLAS CARE HOMES LTD T/A ASPEN COURT CARE HOME.
Adult and Health Services,Head of Adults,Third Party Payments,474101,Purchase of Care,08-Aug-2017,3320804-2393262,"1,036.00",ATLAS CARE HOMES LTD T/A ASPEN COURT CARE HOME.
Adult and Health Services,Head of Adults,Third Party Payments,470101,Purchase of Care,08-Aug-2017,3320805-2391905,"1,956.00",ATLAS CARE HOMES LTD T/A ASTER CARE NURSING HOME..
Adult and Health Services,Public Health,Third Party Payments,460802,Contract Payments,08-Aug-2017,3320280-A83021Q1IUCD,"6,101.90",AUCKLAND MEDICAL GROUP.
Adult and Health Services,Head of Adults,Third Party Payments,470101,Purchase of Care,08-Aug-2017,3320806-2392723,"4,244.80",AUTISM CARE UK (4) LTD.
Adult and Health Services,Head of Adults,Third Party Payments,470101,Purchase of Care,08-Aug-2017,3320806-2392724,"1,742.44",AUTISM CARE UK (4) LTD.
Adult and Health Services,Head of Adults,Third Party Payments,470101,Purchase of Care,08-Aug-2017,3320806-2392725,568.96,AUTISM CARE UK (4) LTD.
Adult and Health Services,Head of Adults,Third Party Payments,470101,Purchase of Care,08-Aug-2017,3320806-2392726,"3,030.60",AUTISM CARE UK (4) LTD.
Adult and Health Services,Head of Adults,Third Party Payments,470101,Purchase of Care,08-Aug-2017,3320807-2392727,"6,478.68",AUTISM NORTH.
Adult and Health Services,Head of Adults,Third Party Payments,470101,Purchase of Care,08-Aug-2017,3320808-2393268,"1,907.72",AUTISM NORTH.
Adult and Health Services,Head of Adults,Third Party Payments,470101,Purchase of Care,08-Aug-2017,3320808-2393269,"4,560.00",AUTISM NORTH.
Adult and Health Services,Head of Adults,Third Party Payments,470101,Purchase of Care,08-Aug-2017,3320808-2393270,"2,610.72",AUTISM NORTH.
Adult and Health Services,Head of Adults,Third Party Payments,470101,Purchase of Care,08-Aug-2017,3320808-2393271,"9,318.00",AUTISM NORTH.
Adult and Health Services,Head of Adults,Third Party Payments,471101,Purchase of Care,08-Aug-2017,3320809-2393453,"1,967.56",BARCHESTER HEALTHCARE HOMES LTD.
Adult and Health Services,Head of Adults,Third Party Payments,474101,Purchase of Care,08-Aug-2017,3320810-2388579,"2,220.00",BARCHESTER HEALTHCARE HOMES LTD.
Adult and Health Services,Head of Adults,Third Party Payments,474101,Purchase of Care,08-Aug-2017,3320810-2393512,"2,220.00",BARCHESTER HEALTHCARE HOMES LTD.
Adult and Health Services,Central/Other,Debtors,930024,Debtor-free nursing care,08-Aug-2017,3320811-2390926,620.20,BARCHESTER HEALTHCARE HOMES LTD.
Adult and Health Services,Head of Adults,Third Party Payments,471101,Purchase of Care,08-Aug-2017,3320811-2390927,"2,104.76",BARCHESTER HEALTHCARE HOMES LTD.
Adult and Health Services,Head of Adults,Third Party Payments,474101,Purchase of Care,08-Aug-2017,3320811-2390928,"2,321.69",BARCHESTER HEALTHCARE HOMES LTD.
Adult and Health Services,Central/Other,Debtors,930024,Debtor-free nursing care,08-Aug-2017,3320811-2390929,620.20,BARCHESTER HEALTHCARE HOMES LTD.
Adult and Health Services,Central/Other,Debtors,930024,Debtor-free nursing care,08-Aug-2017,3320811-2390932,620.20,BARCHESTER HEALTHCARE HOMES LTD.
Adult and Health Services,Head of Adults,Third Party Payments,474101,Purchase of Care,08-Aug-2017,3320811-2390933,"1,564.07",BARCHESTER HEALTHCARE HOMES LTD.
Adult and Health Services,Head of Adults,Third Party Payments,474101,Purchase of Care,08-Aug-2017,3320811-2390934,"2,133.32",BARCHESTER HEALTHCARE HOMES LTD.
Adult and Health Services,Central/Other,Debtors,930024,Debtor-free nursing care,08-Aug-2017,3320811-2390935,620.20,BARCHESTER HEALTHCARE HOMES LTD.
Adult and Health Services,Head of Adults,Third Party Payments,474101,Purchase of Care,08-Aug-2017,3320811-2390936,"2,271.29",BARCHESTER HEALTHCARE HOMES LTD.
Adult and Health Services,Central/Other,Debtors,930024,Debtor-free nursing care,08-Aug-2017,3320811-2390937,620.20,BARCHESTER HEALTHCARE HOMES LTD.
Adult and Health Services,Central/Other,Debtors,930024,Debtor-free nursing care,08-Aug-2017,3320811-2390938,859.59,BARCHESTER HEALTHCARE HOMES LTD.
Adult and Health Services,Head of Adults,Third Party Payments,474101,Purchase of Care,08-Aug-2017,3320811-2390939,"2,145.29",BARCHESTER HEALTHCARE HOMES LTD.
Adult and Health Services,Central/Other,Debtors,930024,Debtor-free nursing care,08-Aug-2017,3320811-2390940,620.20,BARCHESTER HEALTHCARE HOMES LTD.
Adult and Health Services,Central/Other,Debtors,930024,Debtor-free nursing care,08-Aug-2017,3320811-2390941,620.20,BARCHESTER HEALTHCARE HOMES LTD.
Adult and Health Services,Head of Adults,Third Party Payments,474101,Purchase of Care,08-Aug-2017,3320811-2390942,"2,377.39",BARCHESTER HEALTHCARE HOMES LTD.
Adult and Health Services,Central/Other,Debtors,930024,Debtor-free nursing care,08-Aug-2017,3320811-2390943,620.20,BARCHESTER HEALTHCARE HOMES LTD.
Adult and Health Services,Head of Adults,Third Party Payments,474101,Purchase of Care,08-Aug-2017,3320811-2390945,"2,365.15",BARCHESTER HEALTHCARE HOMES LTD.
Adult and Health Services,Central/Other,Debtors,930024,Debtor-free nursing care,08-Aug-2017,3320811-2390946,620.20,BARCHESTER HEALTHCARE HOMES LTD.
Adult and Health Services,Head of Adults,Third Party Payments,474101,Purchase of Care,08-Aug-2017,3320811-2390948,"2,377.39",BARCHESTER HEALTHCARE HOMES LTD.
Adult and Health Services,Central/Other,Debtors,930024,Debtor-free nursing care,08-Aug-2017,3320811-2390949,620.20,BARCHESTER HEALTHCARE HOMES LTD.
Adult and Health Services,Head of Adults,Third Party Payments,474101,Purchase of Care,08-Aug-2017,3320811-2390951,"2,365.15",BARCHESTER HEALTHCARE HOMES LTD.
Adult and Health Services,Central/Other,Debtors,930024,Debtor-free nursing care,08-Aug-2017,3320811-2390952,620.20,BARCHESTER HEALTHCARE HOMES LTD.
Adult and Health Services,Head of Adults,Third Party Payments,474101,Purchase of Care,08-Aug-2017,3320811-2390954,"1,062.88",BARCHESTER HEALTHCARE HOMES LTD.
Adult and Health Services,Head of Adults,Third Party Payments,474101,Purchase of Care,08-Aug-2017,3320811-2390955,"1,093.12",BARCHESTER HEALTHCARE HOMES LTD.
Adult and Health Services,Central/Other,Debtors,930024,Debtor-free nursing care,08-Aug-2017,3320811-2390957,620.20,BARCHESTER HEALTHCARE HOMES LTD.
Adult and Health Services,Head of Adults,Third Party Payments,474101,Purchase of Care,08-Aug-2017,3320811-2390958,"2,377.39",BARCHESTER HEALTHCARE HOMES LTD.
Adult and Health Services,Central/Other,Debtors,930024,Debtor-free nursing care,08-Aug-2017,3320811-2390959,620.20,BARCHESTER HEALTHCARE HOMES LTD.
Adult and Health Services,Head of Adults,Third Party Payments,474101,Purchase of Care,08-Aug-2017,3320811-2390961,"1,062.88",BARCHESTER HEALTHCARE HOMES LTD.
Adult and Health Services,Head of Adults,Third Party Payments,474101,Purchase of Care,08-Aug-2017,3320811-2390963,"2,419.15",BARCHESTER HEALTHCARE HOMES LTD.
Adult and Health Services,Central/Other,Debtors,930024,Debtor-free nursing care,08-Aug-2017,3320811-2390964,620.20,BARCHESTER HEALTHCARE HOMES LTD.
Adult and Health Services,Head of Adults,Third Party Payments,474101,Purchase of Care,08-Aug-2017,3320811-2390966,"2,579.55",BARCHESTER HEALTHCARE HOMES LTD.
